Ref No,Fund Type,Dept,Cost Centre Description    ,Description    ,Creditor Name    ,GL Code Net Amount,Payment date        
2,Revenue,CAHD,Bed Purchasing - South,Permanent Residential,.,2112, 20-Dec-2016
3,Revenue,CAHD,South Glos Users in South Glos Homes,Permanent Nursing,.,1674.11, 20-Dec-2016
4,Revenue,CAHD,South Glos Users in South Glos Homes,Permanent Nursing,.,625, 20-Dec-2016
5,Revenue,CAHD,Bed Purchasing - North,Permanent Nursing,.,3252, 20-Dec-2016
6,Revenue,CAHD,Bed Purchasing - South,Permanent Nursing,.,3252, 20-Dec-2016
7,Revenue,CAHD,South Glos Users in South Glos Homes,Permanent Nursing,.,625, 20-Dec-2016
8,Revenue,CAHD,Bed Purchasing - North,Permanent Nursing,.,3252, 20-Dec-2016
9,Revenue,CAHD,South Glos Users in South Glos Homes,Permanent Nursing,.,625, 20-Dec-2016
10,Revenue,CAHD,South Glos Users in South Glos Homes,Permanent Nursing,.,1718.75, 20-Dec-2016
11,Revenue,CAHD,South Glos Users in South Glos Homes,Permanent Nursing,.,625, 20-Dec-2016
12,Revenue,CAHD,Bed Purchasing - South,Permanent Nursing,.,3252, 20-Dec-2016
13,Revenue,CAHD,South Glos Users in South Glos Homes,Permanent Nursing,.,625, 20-Dec-2016
14,Revenue,CAHD,South Glos Users in South Glos Homes,Permanent Nursing,.,691.96, 20-Dec-2016
15,Revenue,CAHD,South Glos Users in South Glos Homes,Permanent Nursing,.,625, 20-Dec-2016
16,Revenue,CAHD,Bed Purchasing - North,Permanent Residential,.,4200, 20-Dec-2016
17,Revenue,CAHD,Bed Purchasing - South,Permanent Nursing,.,3575, 20-Dec-2016
18,Revenue,CAHD,South Glos Users in South Glos Homes,Permanent Nursing,.,625, 20-Dec-2016
19,Revenue,CAHD,Bed Purchasing - North,Permanent Nursing,.,4975, 20-Dec-2016
20,Revenue,CAHD,South Glos Users in South Glos Homes,Permanent Nursing,.,625, 20-Dec-2016
21,Revenue,CAHD,Bed Purchasing - Southmead Hospital,Permanent Nursing,.,3775, 20-Dec-2016
22,Revenue,CAHD,Bed Purchasing - Southmead Hospital,Permanent Nursing,.,3640.18, 20-Dec-2016
23,Revenue,CAHD,South Glos Users in South Glos Homes,Permanent Nursing,.,625, 20-Dec-2016
24,Revenue,CAHD,South Glos Users in South Glos Homes,Permanent Nursing,.,513.39, 20-Dec-2016
25,Revenue,CAHD,South Glos Users in South Glos Homes,Permanent Nursing,.,625, 20-Dec-2016
26,Revenue,CAHD,South Glos Users in South Glos Homes,Permanent Nursing,.,625, 20-Dec-2016
27,Revenue,CAHD,South Glos Users in South Glos Homes,Permanent Nursing,.,625, 20-Dec-2016
28,Revenue,CAHD,South Glos Users in South Glos Homes,Permanent Nursing,.,625, 20-Dec-2016
29,Revenue,CAHD,South Glos Users in South Glos Homes,Permanent Nursing,.,625, 20-Dec-2016
30,Revenue,CAHD,South Glos Users in South Glos Homes,Permanent Nursing,.,625, 20-Dec-2016
31,Revenue,CAHD,South Glos Users in South Glos Homes,Permanent Nursing,.,625, 20-Dec-2016
32,Revenue,CAHD,South Glos Users in South Glos Homes,Permanent Nursing,.,625, 20-Dec-2016
33,Revenue,CAHD,South Glos Users in South Glos Homes,Permanent Nursing,.,625, 20-Dec-2016
34,Revenue,CAHD,Bed Purchasing - North,Permanent Nursing,.,3252, 20-Dec-2016
35,Revenue,CAHD,South Glos Users in South Glos Homes,Permanent Nursing,.,625, 20-Dec-2016
36,Revenue,CAHD,Bed Purchasing - North,Fees & Charges Income - General,.,746.86, 20-Dec-2016
37,Revenue,CAHD,Bed Purchasing - North,Permanent Nursing,.,3075, 20-Dec-2016
38,Revenue,CAHD,South Glos Users in South Glos Homes,Permanent Nursing,.,625, 20-Dec-2016
39,Revenue,CAHD,Bed Purchasing - North,Permanent Nursing,.,3252, 20-Dec-2016
40,Revenue,CAHD,South Glos Users in South Glos Homes,Permanent Nursing,.,625, 20-Dec-2016
41,Revenue,CAHD,18-25 Year Olds,Permanent Residential,1 St Georges House,13858.04, 20-Dec-2016
42,Revenue,CAHD,Supporting People Programme,Grants to Voluntary Bodies,1625 Independent People,17102.16, 01-Dec-2016
43,Revenue,CAHD,Supporting People Programme,Grants to Voluntary Bodies,1625 Independent People,17102.16, 29-Dec-2016
44,Revenue,CAHD,Home Care - Elderly - North,Supported Living,2430 The Quadrant,5041.76, 20-Dec-2016
45,Revenue,CAHD,Home Care - Elderly - North,Supported Living,2430 The Quadrant,5041.76, 20-Dec-2016
46,Revenue,CAHD,Home Care - Elderly - South,Day Care / Social Activities,3 Trees Community Support Ltd,92.2, 05-Dec-2016
47,Revenue,CAHD,Home Care - Elderly - North,Day Care / Social Activities,3 Trees Community Support Ltd,1336.9, 05-Dec-2016
48,Revenue,CAHD,Home Care - Elderly - North,Other Small Contracts,3 Trees Community Support Ltd,700.72, 05-Dec-2016
49,Revenue,CAHD,Home Care - Elderly - North,Supported Living,3 Trees Community Support Ltd,8627.76, 05-Dec-2016
50,Revenue,CAHD,Home Care - Elderly - South,Day Care / Social Activities,3 Trees Community Support Ltd,92.2, 08-Dec-2016
51,Revenue,CAHD,Home Care - Elderly - North,Day Care / Social Activities,3 Trees Community Support Ltd,1355.34, 08-Dec-2016
52,Revenue,CAHD,Home Care - Elderly - North,Other Small Contracts,3 Trees Community Support Ltd,700.72, 08-Dec-2016
53,Revenue,CAHD,Home Care - Elderly - North,Supported Living,3 Trees Community Support Ltd,8648.25, 08-Dec-2016
54,Revenue,CAHD,Home Care - Elderly - South,Day Care / Social Activities,3 Trees Community Support Ltd,92.2, 13-Dec-2016
55,Revenue,CAHD,Home Care - Elderly - North,Day Care / Social Activities,3 Trees Community Support Ltd,1355.34, 13-Dec-2016
56,Revenue,CAHD,Home Care - Elderly - North,Other Small Contracts,3 Trees Community Support Ltd,700.72, 13-Dec-2016
57,Revenue,CAHD,Home Care - Elderly - North,Supported Living,3 Trees Community Support Ltd,8629.05, 13-Dec-2016
58,Revenue,CAHD,Home Care - Elderly - South,Day Care / Social Activities,3 Trees Community Support Ltd,92.2, 20-Dec-2016
59,Revenue,CAHD,Home Care - Elderly - North,Day Care / Social Activities,3 Trees Community Support Ltd,1359.95, 20-Dec-2016
60,Revenue,CAHD,Home Care - Elderly - North,Other Small Contracts,3 Trees Community Support Ltd,700.72, 20-Dec-2016
61,Revenue,CAHD,Home Care - Elderly - North,Supported Living,3 Trees Community Support Ltd,8628.76, 20-Dec-2016
62,Revenue,CAHD,Home Care - Elderly - North,Supported Living,3 Trees Community Support Ltd,583.44, 07-Dec-2016
63,Revenue,CAHD,Home Care - Elderly - North,Supported Living,3 Trees Community Support Ltd,702.3, 07-Dec-2016
64,Revenue,CAHD,Bed Purchasing - South,Permanent Residential,5Th Floor Harlech Court,16863.44, 20-Dec-2016
65,Revenue,CAHD,18-25 Year Olds,Permanent Residential,5Th Floor Harlech Court,14432.04, 20-Dec-2016
66,Revenue,CAHD,18-25 Year Olds,Permanent Residential,5Th Floor Harlech Court,14570.6, 20-Dec-2016
67,Revenue,CAHD,18-25 Year Olds,Permanent Residential,5Th Floor Harlech Court,12962.24, 20-Dec-2016
68,Revenue,CAHD,Bed Purchasing - North,Permanent Residential,5Th Floor Harlech Court,15666.92, 20-Dec-2016
69,Revenue,CAHD,Bed Purchasing - North,Permanent Residential,5Th Floor Harlech Court,13923.28, 20-Dec-2016
70,Revenue,CAHD,Jointly Funded H&SC Packages,Permanent Residential,5Th Floor Harlech Court,3445.36, 20-Dec-2016
71,Revenue,CAHD,18-25 Year Olds,Permanent Residential,5Th Floor Harlech Court,16489.68, 20-Dec-2016
72,Revenue,CAHD,Bed Purchasing - South,Permanent Residential,5Th Floor Harlech Court,9857.44, 20-Dec-2016
73,Revenue,CAHD,Bed purchasing - S28A Under 65 - South,Permanent Residential,5Th Floor Harlech Court,10316.44, 20-Dec-2016
74,Revenue,CAHD,Bed Purchasing - South,Permanent Residential,5Th Floor Harlech Court,10819.48, 20-Dec-2016
75,Revenue,CAHD,Alexandra Way,Premises Maintenance by Contractor,A E Horder (Contracting) Limited,573.93, 29-Dec-2016
76,Revenue,CAHD,CSC - Fostering General,Care Management/Assessment Staff Pay,A G Family Support Ltd,6150, 23-Dec-2016
77,Revenue,CAHD,Bed Purchasing - Southmead Hospital,Permanent Residential,Abbots Leigh Nursing,2380, 20-Dec-2016
78,Revenue,CAHD,Bed Purchasing - North,Permanent Nursing,ABI Development Limited,7494.4, 20-Dec-2016
79,Revenue,CAHD,Home Care - Elderly - South,Day Care / Social Activities,About Me Care and Support Limited,1341.68, 19-Dec-2016
80,Revenue,CAHD,Home Care - Elderly - South,Day Care / Social Activities,About Me Care and Support Limited,784.45, 28-Dec-2016
81,Revenue,CAHD,Training - Adult Services,Training Expenses,Acorn Health & Safety Limited,465, 14-Dec-2016
82,Revenue,CAHD,Training Budget - Children`s Social Serv,Training Expenses,Acorn Health & Safety Limited,449, 20-Dec-2016
83,Revenue,CAHD,Training - Adult Services,Training Expenses,Acorn Health & Safety Limited,1516, 28-Dec-2016
84,Revenue,CAHD,CSC - LAT Placements,Preventative Assistance,ACPAS Limited,730, 12-Dec-2016
85,Revenue,CAHD,Older People's Commissioned Se,Grants to Voluntary Bodies,Action for Blind People,24606, 29-Dec-2016
86,Revenue,CAHD,Mental Health and Emotional Wellbeing,Other Small Contracts,Age UK South Gloucestershire,13725, 29-Dec-2016
87,Revenue,CAHD,Home Care - Elderly - South,Other Small Contracts,Agincare UK Limited,879.75, 09-Dec-2016
88,Revenue,CAHD,Home Care - Elderly - North,Other Small Contracts,Agincare UK Limited,836.74, 09-Dec-2016
89,Revenue,CAHD,Home Care - Elderly - South,Other Small Contracts,Agincare UK Limited,903.21, 09-Dec-2016
90,Revenue,CAHD,Home Care - Elderly - North,Other Small Contracts,Agincare UK Limited,586.5, 09-Dec-2016
91,Revenue,CAHD,Home Care - Elderly - South,Other Small Contracts,Agincare UK Limited,930.58, 13-Dec-2016
92,Revenue,CAHD,Home Care - Elderly - North,Other Small Contracts,Agincare UK Limited,836.74, 13-Dec-2016
93,Revenue,CAHD,Home Care - Elderly - South,Other Small Contracts,Agincare UK Limited,1032, 13-Dec-2016
94,Revenue,CAHD,Home Care - Elderly - North,Other Small Contracts,Agincare UK Limited,1294.3, 13-Dec-2016
95,Revenue,CAHD,Home Care - Elderly - South,Other Small Contracts,Agincare UK Limited,1225.5, 20-Dec-2016
96,Revenue,CAHD,Home Care - Elderly - North,Other Small Contracts,Agincare UK Limited,1311.5, 20-Dec-2016
97,Revenue,CAHD,Home Care - Elderly - South,Other Small Contracts,Agincare UK Limited,1866.2, 23-Dec-2016
98,Revenue,CAHD,Home Care - Elderly - North,Other Small Contracts,Agincare UK Limited,1311.5, 23-Dec-2016
99,Revenue,CAHD,Home Care - Elderly - South,Other Small Contracts,Agincare UK Limited,1771.6, 20-Dec-2016
100,Revenue,CAHD,Home Care - Elderly - North,Other Small Contracts,Agincare UK Limited,1307.2, 20-Dec-2016
101,Revenue,CAHD,Prison Assessments & Costs,Other Supplies & Services,Agincare UK Limited,4132.95, 08-Dec-2016
102,Revenue,CAHD,Home Care - Elderly - North,Day Care / Social Activities,Agincare UK Nutfield,103.2, 20-Dec-2016
103,Revenue,CAHD,Home Care - Elderly - North,Other Small Contracts,Agincare UK Nutfield,2098.4, 20-Dec-2016
104,Revenue,CAHD,Home care - Elderly MH - South,Other Small Contracts,Agincare UK Nutfield,60.2, 20-Dec-2016
105,Revenue,CAHD,Home Care - Elderly - North,Day Care / Social Activities,Agincare UK Nutfield,120.4, 20-Dec-2016
106,Revenue,CAHD,Home Care - Elderly - North,Other Small Contracts,Agincare UK Nutfield,2111.3, 20-Dec-2016
107,Revenue,CAHD,Home care - Elderly MH - South,Other Small Contracts,Agincare UK Nutfield,68.8, 20-Dec-2016
108,Revenue,CAHD,Home Care - Elderly - North,Day Care / Social Activities,Agincare UK Nutfield,30.1, 20-Dec-2016
109,Revenue,CAHD,Home Care - Elderly - North,Other Small Contracts,Agincare UK Nutfield,2016.7, 20-Dec-2016
110,Revenue,CAHD,Home care - Elderly MH - South,Other Small Contracts,Agincare UK Nutfield,68.8, 20-Dec-2016
111,Revenue,CAHD,Home Care - Elderly - North,Day Care / Social Activities,Agincare UK Nutfield,146.2, 29-Dec-2016
112,Revenue,CAHD,Home Care - Elderly - North,Other Small Contracts,Agincare UK Nutfield,1995.2, 29-Dec-2016
113,Revenue,CAHD,Home care - Elderly MH - South,Other Small Contracts,Agincare UK Nutfield,68.8, 29-Dec-2016
114,Revenue,CAHD,Home Care - Elderly - North,Other Small Contracts,Agincare UK Nutfield,581.26, 07-Dec-2016
115,Revenue,CAHD,Home Care - Elderly - South,Supported Living,Alexandra Homes (Bristol) Limited,862.5, 13-Dec-2016
116,Revenue,CAHD,Home Care - Elderly - South,Supported Living,Alexandra Homes (Bristol) Limited,897, 14-Dec-2016
117,Revenue,CAHD,Home Care - Elderly - South,Other Small Contracts,AliMo Care Ltd,1327.12, 09-Dec-2016
118,Revenue,CAHD,Home Care - Elderly - South,Other Small Contracts,AliMo Care Ltd,1405.56, 14-Dec-2016
119,Revenue,CAHD,Home Care - Elderly - South,Other Small Contracts,AliMo Care Ltd,1454.18, 29-Dec-2016
120,Revenue,CAHD,Mental Health and Emotional Wellbeing,Other Small Contracts,Alzheimers Society,11062.75, 29-Dec-2016
121,Revenue,CAHD,CSC - Vinney Green Secure Unit,R & M by Departments,Amari Plastics PLC,1823.61, 22-Dec-2016
122,Revenue,CAHD,Bed Purchasing - South,Permanent Nursing,Ambleside Nusing Home,2098.88, 20-Dec-2016
123,Revenue,CAHD,Bed Purchasing - Southmead Hospital,Permanent Nursing,Amerind Grove Nursing Home,2537.76, 20-Dec-2016
124,Revenue,CAHD,Bed Purchasing - Southmead Hospital,Permanent Nursing,Amerind Grove Nursing Home,2234.08, 20-Dec-2016
125,Revenue,CAHD,CSC - Agency Fostering,Foster Parent Allowances,Amicus Foster Care Ltd,5234.56, 02-Dec-2016
126,Revenue,CAHD,CSC - Agency Fostering,Foster Parent Allowances,Amicus Foster Care Ltd,4650.3, 02-Dec-2016
127,Revenue,CAHD,Supporting People Programme,Grants to Voluntary Bodies,Anchor Housing,812.5, 01-Dec-2016
128,Revenue,CAHD,Supporting People Programme,Grants to Voluntary Bodies,Anchor Housing,812.5, 29-Dec-2016
129,Revenue,CAHD,Supporting People Programme,Grants to Voluntary Bodies,Anchor Housing,3918.6, 01-Dec-2016
130,Revenue,CAHD,CSC - Safeguarding Board,Training Expenses,Individual,2200, 29-Dec-2016
131,Revenue,CAHD,CSC - Safeguarding Board,Training Expenses,Individual,850, 29-Dec-2016
132,Revenue,CAHD,Direct Payments - Phys Dis - North,Grants to Voluntary Bodies,Aquarium Card Management Solutions Ltd,2302.5, 29-Dec-2016
133,Revenue,CAHD,Independent Special Placements - Pre 16,Other Private Contractors,Arc Schools,18625, 16-Dec-2016
134,Revenue,CAHD,CSC - LAT Placements,Training Expenses,Archway Community College,1080, 29-Dec-2016
135,Revenue,CAHD,CSC - LAT Placements,Training Expenses,Archway Community College,1440, 22-Dec-2016
136,Revenue,CAHD,CSC - LAT Placements,Training Expenses,Archway Community College,1080, 29-Dec-2016
137,Revenue,CAHD,Bed Purchasing - North,Permanent Residential,Ark Care Homes Ltd,10895.08, 20-Dec-2016
138,Revenue,CAHD,S117 Placements PCT,Permanent Residential,Ash View House,7148.68, 20-Dec-2016
139,Revenue,CAHD,18-25 Year Olds,Permanent Residential,Ash View House,6716.52, 20-Dec-2016
140,Revenue,CAHD,Section 117 Placements MH Younger,Permanent Residential,Ash View House,4658.52, 20-Dec-2016
141,Revenue,CAHD,Jointly Funded H&SC Packages,Permanent Residential,Ash View House,1996.52, 20-Dec-2016
142,Revenue,CAHD,Bed purchasing - Elderly S117 - South,Permanent Residential,Ash View House,6331.72, 20-Dec-2016
143,Revenue,CAHD,DAT Treatment,Rent,Ashville Asset Management Limited,2777.7, 29-Dec-2016
144,Revenue,CAHD,DAT Treatment,Rent,Ashville Asset Management Limited,1416.68, 29-Dec-2016
145,Revenue,CAHD,DAT Treatment,Rent,Ashville Asset Management Limited,7390.8, 29-Dec-2016
146,Revenue,CAHD,DAT Treatment,Rent,Ashville Asset Management Limited,3769.44, 29-Dec-2016
147,Revenue,CAHD,Bed Purchasing - North,Permanent Residential,Aspects 2 Limited,6841.76, 20-Dec-2016
148,Revenue,CAHD,Supporting People Programme,Grants to Voluntary Bodies,Aspects and Milestones Trust,3298.58, 01-Dec-2016
149,Revenue,CAHD,Supporting People Programme,Grants to Voluntary Bodies,Aspects and Milestones Trust,1653.75, 01-Dec-2016
150,Revenue,CAHD,Supporting People Programme,Grants to Voluntary Bodies,Aspects and Milestones Trust,2014.33, 01-Dec-2016
151,Revenue,CAHD,Supporting People Programme,Grants to Voluntary Bodies,Aspects and Milestones Trust,3298.58, 29-Dec-2016
152,Revenue,CAHD,Supporting People Programme,Grants to Voluntary Bodies,Aspects and Milestones Trust,1653.75, 29-Dec-2016
153,Revenue,CAHD,Supporting People Programme,Grants to Voluntary Bodies,Aspects and Milestones Trust,2014.33, 29-Dec-2016
154,Revenue,CAHD,CSC - Vinney Green Secure Unit,Operational Equipment,Associated Access Equipment Ltd,980.85, 29-Dec-2016
155,Revenue,CAHD,Bed Purchasing - South,Permanent Residential,Autism Specialised Care Homes,6155.84, 20-Dec-2016
156,Revenue,CAHD,Younger Adult Mental Health,Health Services (Third Party Payments),Avon & Wiltshire Mental Health,1666, 02-Dec-2016
157,Revenue,CAHD,CSC - YOT Pooled Budget,Other Supplies & Services,Avon & Wiltshire Mental Health,1215, 22-Dec-2016
158,Revenue,CAHD,Younger Adult Mental Health,Health Services (Third Party Payments),Avon & Wiltshire Mental Health,1666, 29-Dec-2016
159,Revenue,CAHD,HQ Central Training & Health and Safety,Operational Equipment,Avon Armour Limited,786, 23-Dec-2016
160,Revenue,CAHD,Leadership and Business Support,Other Small Contracts,Avon Local Pharmaceutical Committee,3960, 13-Dec-2016
161,Revenue,CAHD,Grange School Holding Account,Redundancy/Early Retirement,Avon Pension Fund,41728.11, 23-Dec-2016
162,Revenue,CAHD,Grange School Holding Account,Redundancy/Early Retirement,Avon Pension Fund,11594.77, 23-Dec-2016
163,Revenue,CAHD,Grange School Holding Account,Redundancy/Early Retirement,Avon Pension Fund,199850.63, 05-Dec-2016
164,Revenue,CAHD,CSC - Safeguarding Board,Other Supplies & Services,Barnardo Services Limited,2708.5, 19-Dec-2016
165,Revenue,CAHD,CSC - Safeguarding Board,Other Supplies & Services,Barnardo Services Limited,2708.5, 19-Dec-2016
166,Revenue,CAHD,Pensions - Non DSG,Annual Pension,Bath & North East Somerset Council,113839.66, 23-Dec-2016
167,Revenue,CAHD,Training - Adult Services,Training Expenses,Bawa Healthcare & Leisure,775, 12-Dec-2016
168,Revenue,CAHD,Bed Purchasing - Southmead Hospital,Permanent Nursing,Bayview Nursing & Residential Home,2026.76, 20-Dec-2016
169,Revenue,CAHD,Bed Purchasing - North,Permanent Residential,Beaufort House,2412, 20-Dec-2016
170,Revenue,CAHD,Bed Purchasing - North,Permanent Residential,Beaufort House,2432.64, 20-Dec-2016
171,Revenue,CAHD,Bed Purchasing - South,Permanent Residential,Beaufort House,2400, 20-Dec-2016
172,Revenue,CAHD,Bed Purchasing - South,Permanent Residential,Beaufort House,1714.29, 20-Dec-2016
173,Revenue,CAHD,Bed Purchasing - South,Permanent Residential,Beaufort House,2309.36, 20-Dec-2016
174,Revenue,CAHD,Bed Purchasing - Southmead Hospital,Permanent Residential,Beaufort House,2432.64, 20-Dec-2016
175,Revenue,CAHD,Bed Purchasing - North,Permanent Residential,Beaufort House,2376.92, 20-Dec-2016
176,Revenue,CAHD,Bed Purchasing - North,Permanent Residential,Beaufort House,2376.92, 20-Dec-2016
177,Revenue,CAHD,Bed Purchasing - North,Permanent Residential,Beaufort House,2554.28, 20-Dec-2016
178,Revenue,CAHD,Bed Purchasing - Southmead Hospital,Permanent Residential,Beaufort House,2432.64, 20-Dec-2016
179,Revenue,CAHD,Bed Purchasing - South,Permanent Residential,Bedrock Lodge,3583.08, 20-Dec-2016
180,Revenue,CAHD,Bed Purchasing - South,Permanent Residential,Bedrock Lodge,3527.36, 20-Dec-2016
181,Revenue,CAHD,Section 117 Placements MH Younger,Permanent Residential,Bedrock Lodge,1925, 20-Dec-2016
182,Revenue,CAHD,South Glos Users in South Glos Homes,Permanent Nursing,Beech House,625, 20-Dec-2016
183,Revenue,CAHD,Bed Purchasing - South,Permanent Residential,Beech House,2800, 20-Dec-2016
184,Revenue,CAHD,South Glos Users in South Glos Homes,Permanent Nursing,Beech House,625, 20-Dec-2016
185,Revenue,CAHD,South Glos Users in South Glos Homes,Permanent Nursing,Beech House,625, 20-Dec-2016
186,Revenue,CAHD,South Glos Users in South Glos Homes,Permanent Nursing,Beech House,625, 20-Dec-2016
187,Revenue,CAHD,Bed Purchasing - North,Permanent Nursing,Beech House,2675, 20-Dec-2016
188,Revenue,CAHD,South Glos Users in South Glos Homes,Permanent Nursing,Beech House,625, 20-Dec-2016
189,Revenue,CAHD,South Glos Users in South Glos Homes,Permanent Nursing,Beech House,625, 20-Dec-2016
190,Revenue,CAHD,South Glos Users in South Glos Homes,Permanent Nursing,Beech House,625, 20-Dec-2016
191,Revenue,CAHD,South Glos Users in South Glos Homes,Permanent Nursing,Beech House,625, 20-Dec-2016
192,Revenue,CAHD,Bed Purchasing - North,Permanent Nursing,Beech House,2992.16, 20-Dec-2016
193,Revenue,CAHD,South Glos Users in South Glos Homes,Permanent Nursing,Beech House,625, 20-Dec-2016
194,Revenue,CAHD,Bed Purchasing - North,Permanent Residential,Beech House,2800, 20-Dec-2016
195,Revenue,CAHD,South Glos Users in South Glos Homes,Permanent Nursing,Beech House,625, 20-Dec-2016
196,Revenue,CAHD,South Glos Users in South Glos Homes,Permanent Nursing,Beech House,625, 20-Dec-2016
197,Revenue,CAHD,South Glos Users in South Glos Homes,Permanent Nursing,Beech House,625, 20-Dec-2016
198,Revenue,CAHD,South Glos Users in South Glos Homes,Permanent Nursing,Beech House,625, 20-Dec-2016
199,Revenue,CAHD,South Glos Users in South Glos Homes,Permanent Nursing,Beech House,625, 20-Dec-2016
200,Revenue,CAHD,South Glos Users in South Glos Homes,Permanent Nursing,Beech House,625, 20-Dec-2016
201,Revenue,CAHD,South Glos Users in South Glos Homes,Permanent Nursing,Beech House,625, 20-Dec-2016
202,Revenue,CAHD,South Glos Users in South Glos Homes,Permanent Nursing,Beech House,625, 20-Dec-2016
203,Revenue,CAHD,South Glos Users in South Glos Homes,Permanent Nursing,Beech House,625, 20-Dec-2016
204,Revenue,CAHD,Bed Purchasing - North,Respite Planned - Residential,Beech House,3521.43, 20-Dec-2016
205,Revenue,CAHD,South Glos Users in South Glos Homes,Permanent Nursing,Beech House,625, 20-Dec-2016
206,Revenue,CAHD,South Glos Users in South Glos Homes,Permanent Nursing,Beech House,625, 20-Dec-2016
207,Revenue,CAHD,Bed Purchasing - North,Permanent Nursing,Beech House,3129, 20-Dec-2016
208,Revenue,CAHD,South Glos Users in South Glos Homes,Permanent Nursing,Beech House,625, 20-Dec-2016
209,Revenue,CAHD,South Glos Users in South Glos Homes,Permanent Nursing,Beech House,625, 20-Dec-2016
210,Revenue,CAHD,South Glos Users in South Glos Homes,Permanent Nursing,Beech House,625, 20-Dec-2016
211,Revenue,CAHD,South Glos Users in South Glos Homes,Permanent Nursing,Beech House,625, 20-Dec-2016
212,Revenue,CAHD,South Glos Users in South Glos Homes,Permanent Nursing,Beech House,625, 20-Dec-2016
213,Revenue,CAHD,South Glos Users in South Glos Homes,Permanent Nursing,Beech House,625, 20-Dec-2016
214,Revenue,CAHD,Statemented Support Payments to OLAs,Other L.A.'s - General,Beechen Cliff School,716.64, 09-Dec-2016
215,Revenue,CAHD,Statemented Support Payments to OLAs,Other L.A.'s - General,Beechen Cliff School,716.64, 23-Dec-2016
216,Revenue,CAHD,Home Care - Elderly - North,Other Small Contracts,Bibby Factors Bristol Limited,8361.54, 06-Dec-2016
217,Revenue,CAHD,Home Care - Elderly - North,Other Small Contracts,Bibby Factors Bristol Limited,7457.78, 29-Dec-2016
218,Revenue,CAHD,CSC - Vinney Green Secure Unit,Training Expenses,Blackhorse Sports and Community Association,600, 15-Dec-2016
219,Revenue,CAHD,Bed Purchasing - North,Permanent Nursing,Blossom Field,3478.68, 20-Dec-2016
220,Revenue,CAHD,South Glos Users in South Glos Homes,Permanent Nursing,Blossom Field,625, 20-Dec-2016
221,Revenue,CAHD,Bed Purchasing - North,Permanent Nursing,Blossom Field,3559.76, 20-Dec-2016
222,Revenue,CAHD,South Glos Users in South Glos Homes,Permanent Nursing,Blossom Field,625, 20-Dec-2016
223,Revenue,CAHD,Bed Purchasing - Elderly S117- North,Permanent Nursing,Blossom Field,3494.32, 20-Dec-2016
224,Revenue,CAHD,South Glos Users in South Glos Homes,Permanent Nursing,Blossom Field,625, 20-Dec-2016
225,Revenue,CAHD,South Glos Users in South Glos Homes,Permanent Nursing,Blossom Field,625, 20-Dec-2016
226,Revenue,CAHD,Bed Purchasing - Southmead Hospital,Permanent Nursing,Blossom Field,4800, 20-Dec-2016
227,Revenue,CAHD,South Glos Users in South Glos Homes,Permanent Nursing,Blossom Field,625, 20-Dec-2016
228,Revenue,CAHD,Bed Purchasing - North,Permanent Nursing,Blossom Field,3762.48, 20-Dec-2016
229,Revenue,CAHD,South Glos Users in South Glos Homes,Permanent Nursing,Blossom Field,625, 20-Dec-2016
230,Revenue,CAHD,South Glos Users in South Glos Homes,Permanent Nursing,Blossom Field,625, 20-Dec-2016
231,Revenue,CAHD,South Glos Users in South Glos Homes,Permanent Nursing,Blossom Field,625, 20-Dec-2016
232,Revenue,CAHD,South Glos Users in South Glos Homes,Permanent Nursing,Blossom Field,625, 20-Dec-2016
233,Revenue,CAHD,South Glos Users in South Glos Homes,Permanent Nursing,Blossom Field,625, 20-Dec-2016
234,Revenue,CAHD,South Glos Users in South Glos Homes,Permanent Nursing,Blossom Field,625, 20-Dec-2016
235,Revenue,CAHD,Bed purchasing - Elderly S117 - South,Permanent Nursing,Blossom Field,4800, 20-Dec-2016
236,Revenue,CAHD,Bed purchasing - Elderly S117 - South,Permanent Nursing,Blossom Field,4459.84, 20-Dec-2016
237,Revenue,CAHD,South Glos Users in South Glos Homes,Permanent Nursing,Blossom Field,625, 20-Dec-2016
238,Revenue,CAHD,South Glos Users in South Glos Homes,Permanent Nursing,Blossom Field,625, 20-Dec-2016
239,Revenue,CAHD,South Glos Users in South Glos Homes,Permanent Nursing,Blossom Field,625, 20-Dec-2016
240,Revenue,CAHD,South Glos Users in South Glos Homes,Permanent Nursing,Blossom Field,625, 20-Dec-2016
241,Revenue,CAHD,Bed purchasing - Elderly S117 - South,Permanent Nursing,Blossom Field,4411.2, 20-Dec-2016
242,Revenue,CAHD,South Glos Users in South Glos Homes,Permanent Nursing,Blossom Field,625, 20-Dec-2016
243,Revenue,CAHD,South Glos Users in South Glos Homes,Permanent Nursing,Blossom Field,625, 20-Dec-2016
244,Revenue,CAHD,South Glos Users in South Glos Homes,Permanent Nursing,Blossom Field,625, 20-Dec-2016
245,Revenue,CAHD,South Glos Users in South Glos Homes,Permanent Nursing,Blossom Field,625, 20-Dec-2016
246,Revenue,CAHD,South Glos Users in South Glos Homes,Permanent Nursing,Blossom Field,625, 20-Dec-2016
247,Revenue,CAHD,South Glos Users in South Glos Homes,Permanent Nursing,Blossom Field,625, 20-Dec-2016
248,Revenue,CAHD,South Glos Users in South Glos Homes,Permanent Nursing,Blossom Field,625, 20-Dec-2016
249,Revenue,CAHD,South Glos Users in South Glos Homes,Permanent Nursing,Blossom Field,625, 20-Dec-2016
250,Revenue,CAHD,South Glos Users in South Glos Homes,Permanent Nursing,Blossom Field,625, 20-Dec-2016
251,Revenue,CAHD,South Glos Users in South Glos Homes,Permanent Nursing,Blossom Field,625, 20-Dec-2016
252,Revenue,CAHD,South Glos Users in South Glos Homes,Permanent Nursing,Blossom Field,513.39, 20-Dec-2016
253,Revenue,CAHD,Bed Purchasing - North,Permanent Nursing,Blossom Field,3494.32, 20-Dec-2016
254,Revenue,CAHD,South Glos Users in South Glos Homes,Permanent Nursing,Blossom Field,625, 20-Dec-2016
255,Revenue,CAHD,Bed Purchasing - North,Permanent Nursing,Blossom Field,3438.84, 20-Dec-2016
256,Revenue,CAHD,South Glos Users in South Glos Homes,Permanent Nursing,Blossom Field,625, 20-Dec-2016
257,Revenue,CAHD,South Glos Users in South Glos Homes,Permanent Nursing,Blossom Field,625, 20-Dec-2016
258,Revenue,CAHD,South Glos Users in South Glos Homes,Permanent Nursing,Blossom Field,625, 20-Dec-2016
259,Revenue,CAHD,South Glos Users in South Glos Homes,Permanent Nursing,Blossom Fields,625, 19-Dec-2016
260,Revenue,CAHD,South Glos Users in South Glos Homes,Permanent Nursing,Blossom Fields,625, 19-Dec-2016
261,Revenue,CAHD,South Glos Users in South Glos Homes,Permanent Nursing,Blossom Fields,625, 19-Dec-2016
262,Revenue,CAHD,Bed Purchasing - North,Permanent Nursing,Blossom Fields,1860.16, 19-Dec-2016
263,Revenue,CAHD,Bed Purchasing - Southmead Hospital,Permanent Nursing,Blossom Fields,2129.2, 19-Dec-2016
264,Revenue,CAHD,Bed Purchasing - North,Permanent Nursing,Blossom Fields,2652, 19-Dec-2016
265,Revenue,CAHD,Home Care - Elderly - South,Other Small Contracts,Bluebird Care (South Gloucestershire),597.38, 20-Dec-2016
266,Revenue,CAHD,Home Care - Elderly - North,Other Small Contracts,Bluebird Care (South Gloucestershire),1300.15, 20-Dec-2016
267,Revenue,CAHD,Home Care - Elderly - South,Other Small Contracts,Bluebird Care (South Gloucestershire),602.4, 20-Dec-2016
268,Revenue,CAHD,Home Care - Elderly - North,Other Small Contracts,Bluebird Care (South Gloucestershire),1252.18, 20-Dec-2016
269,Revenue,CAHD,Home Care - Elderly - South,Other Small Contracts,Bluebird Care (South Gloucestershire),597.38, 23-Dec-2016
270,Revenue,CAHD,Home Care - Elderly - North,Other Small Contracts,Bluebird Care (South Gloucestershire),1131.7, 23-Dec-2016
271,Revenue,CAHD,Home Care - Elderly - South,Other Small Contracts,Bluebird Care (South Gloucestershire),582.32, 29-Dec-2016
272,Revenue,CAHD,Home Care - Elderly - North,Other Small Contracts,Bluebird Care (South Gloucestershire),986.12, 29-Dec-2016
273,Revenue,CAHD,Training - Adult Services,Training Expenses,Bob Dawson,975, 19-Dec-2016
274,Revenue,CAHD,Sexual Health,Other Small Contracts,Boots UK Ltd,650.24, 02-Dec-2016
275,Revenue,CAHD,Sexual Health,Other Small Contracts,Boots UK Ltd,852.31, 02-Dec-2016
276,Revenue,CAHD,Bed purchasing - S28A Under 65 - South,Permanent Residential,Bradbury House,4791.88, 20-Dec-2016
277,Revenue,CAHD,Bed Purchasing - South,Permanent Residential,Bradbury House,8267.72, 20-Dec-2016
278,Revenue,CAHD,Bed purchasing - S28A Under 65 - South,Permanent Residential,Bradbury House,7061.04, 20-Dec-2016
279,Revenue,CAHD,18-25 Year Olds,Permanent Residential,Bradbury House,9382.12, 20-Dec-2016
280,Revenue,CAHD,Bed purchasing - Elderly S117 - South,Permanent Residential,Bradbury House,8462.56, 20-Dec-2016
281,Revenue,CAHD,Jointly Funded H&SC Packages,Permanent Residential,Bradbury House,3144.08, 20-Dec-2016
282,Revenue,CAHD,Home Care - Elderly - North,Other Small Contracts,Bramble Home Care Limited,531.86, 08-Dec-2016
283,Revenue,CAHD,Home Care - Elderly - North,Other Small Contracts,Bramble Home Care Limited,1026, 28-Dec-2016
284,Revenue,CAHD,CSC - Residential Placements,Permanent Residential,Branas ISAF Ltd,21035.71, 06-Dec-2016
285,Revenue,CAHD,South Glos Users in South Glos Homes,Permanent Nursing,Brandon Trust,625, 20-Dec-2016
286,Revenue,CAHD,South Glos Users in South Glos Homes,Permanent Nursing,Brandon Trust,625, 20-Dec-2016
287,Revenue,CAHD,South Glos Users in South Glos Homes,Permanent Nursing,Brandon Trust,625, 20-Dec-2016
288,Revenue,CAHD,Bed Purchasing - South,Permanent Nursing,Brandon Trust,5537.76, 20-Dec-2016
289,Revenue,CAHD,South Glos Users in South Glos Homes,Permanent Nursing,Brandon Trust,625, 20-Dec-2016
290,Revenue,CAHD,Bed Purchasing - South,Permanent Residential,Brandon Trust,10847.76, 20-Dec-2016
291,Revenue,CAHD,Bed Purchasing - South,Permanent Residential,Brandon Trust,4495.92, 20-Dec-2016
292,Revenue,CAHD,Bed Purchasing - Southmead Hospital,Permanent Nursing,Brandon Trust,5487.72, 20-Dec-2016
293,Revenue,CAHD,South Glos Users in South Glos Homes,Permanent Nursing,Brandon Trust,625, 20-Dec-2016
294,Revenue,CAHD,Bed Purchasing - South,Permanent Nursing,Brandon Trust,5487.72, 20-Dec-2016
295,Revenue,CAHD,South Glos Users in South Glos Homes,Permanent Nursing,Brandon Trust,625, 20-Dec-2016
296,Revenue,CAHD,Bed purchasing - S28A Under 65 - South,Permanent Nursing,Brandon Trust,5817.92, 20-Dec-2016
297,Revenue,CAHD,South Glos Users in South Glos Homes,Permanent Nursing,Brandon Trust,625, 20-Dec-2016
298,Revenue,CAHD,Bed purchasing - S28A Under 65 - South,Permanent Residential,Brandon Trust,5714.96, 20-Dec-2016
299,Revenue,CAHD,Bed Purchasing - LD S28A- Over 65- South,Permanent Nursing,Brandon Trust,5817.92, 20-Dec-2016
300,Revenue,CAHD,South Glos Users in South Glos Homes,Permanent Nursing,Brandon Trust,625, 20-Dec-2016
301,Revenue,CAHD,Bed Purchasing - LD S28A- Over 65- South,Permanent Nursing,Brandon Trust,5487.72, 20-Dec-2016
302,Revenue,CAHD,South Glos Users in South Glos Homes,Permanent Nursing,Brandon Trust,625, 20-Dec-2016
303,Revenue,CAHD,Bed Purchasing - South,Permanent Residential,Brandon Trust,3708.68, 20-Dec-2016
304,Revenue,CAHD,Bed purchasing - S28A Under 65 - South,Permanent Residential,Brandon Trust,5657.72, 20-Dec-2016
305,Revenue,CAHD,Bed purchasing - S28A Under 65 - South,Permanent Residential,Brandon Trust,5714.76, 20-Dec-2016
306,Revenue,CAHD,South Glos Users in South Glos Homes,Permanent Nursing,Brandon Trust,625, 20-Dec-2016
307,Revenue,CAHD,Bed purchasing - S28A Under 65 - South,Permanent Nursing,Brandon Trust,5817.92, 20-Dec-2016
308,Revenue,CAHD,South Glos Users in South Glos Homes,Permanent Nursing,Brandon Trust,625, 20-Dec-2016
309,Revenue,CAHD,Bed purchasing -S28A  Under 65 - North,Permanent Nursing,Brandon Trust,5267.04, 20-Dec-2016
310,Revenue,CAHD,Bed purchasing - S28A Under 65 - South,Permanent Residential,Brandon Trust,5714.76, 20-Dec-2016
311,Revenue,CAHD,Bed Purchasing - LD S28A- Over 65- South,Permanent Residential,Brandon Trust,5372.72, 20-Dec-2016
312,Revenue,CAHD,Social Lettings Agency,Fees - General,Individual,11.41, 02-Dec-2016
313,Revenue,CAHD,Social Lettings Agency,Other Supplies & Services,Individual,746.54, 02-Dec-2016
314,Revenue,CAHD,Bed Purchasing - Southmead Hospital,Permanent Residential,Bridge House Care Home,2392, 20-Dec-2016
315,Revenue,CAHD,Bed Purchasing - North,Permanent Residential,Bridge House Care Home,2351.56, 20-Dec-2016
316,Revenue,CAHD,Bed purchasing - Elderly S117 - South,Respite Planned - Residential,Bridge House Care Home,2392, 20-Dec-2016
317,Revenue,CAHD,Bed Purchasing - North,Permanent Residential,Bridge House Care Home,2163.68, 20-Dec-2016
318,Revenue,CAHD,Home Care - Elderly - North,Day Care / Social Activities,Bridge House Care Home,715, 20-Dec-2016
319,Revenue,CAHD,Bed Purchasing - North,Permanent Residential,Bridge House Care Home,2274.48, 20-Dec-2016
320,Revenue,CAHD,CSC - Vinney Green Secure Unit,Training Expenses,Bridgwater College,2573, 16-Dec-2016
321,Revenue,CAHD,Bed Purchasing - North,Permanent Residential,Bridgwater Court,10192.44, 20-Dec-2016
322,Revenue,CAHD,Bed Purchasing - South,Permanent Residential,Brightbow,2654.68, 20-Dec-2016
323,Revenue,CAHD,MH Purchasing - Younger,Permanent Residential,Brightbow,2179.12, 20-Dec-2016
324,Revenue,CAHD,Health Inequalities,Other Small Contracts,Bristol & Avon Chinese Womens Group,500, 29-Dec-2016
325,Revenue,CAHD,Statemented Support Academies,Schools Funding,Bristol & South Gloucestershire UTC,649.97, 09-Dec-2016
326,Revenue,CAHD,Statemented Support Academies,Schools Funding,Bristol & South Gloucestershire UTC,649.97, 23-Dec-2016
327,Revenue,CAHD,Statemented Support Academies,Other Public Bodies,Bristol & South Gloucestershire UTC,4875, 29-Dec-2016
328,Revenue,CAHD,Older People's Commissioned Se,Grants to Voluntary Bodies,Bristol Area Stroke Foundation,17419, 29-Dec-2016
329,Revenue,CAHD,CSC - Section 17 - ART,Personal Needs of Clients,Bristol Children`s contact Services Ltd,15660, 08-Dec-2016
330,Revenue,CAHD,CSC - Care Leavers Independent Living,Independent Living,Bristol Children`s contact Services Ltd,34833.38, 23-Dec-2016
331,Revenue,CAHD,CSC - Care Leavers Independent Living,Independent Living,Bristol Children`s contact Services Ltd,52319.78, 29-Dec-2016
332,Revenue,CAHD,Connecting Care,Software Support & Maintenance,Bristol City Council,135300, 12-Dec-2016
333,Revenue,CAHD,ICES / NRS Contract,Preventative Assistance,Bristol City Council,1674, 08-Dec-2016
334,Revenue,CAHD,Placements OLA Special Schools and RB,Other L.A.'s - General,Bristol City Council - Schools,2148, 23-Dec-2016
335,Revenue,CAHD,Placements OLA Special Schools and RB,Other L.A.'s - General,Bristol City Council - Schools,2148, 19-Dec-2016
336,Revenue,CAHD,Placements OLA Special Schools and RB,Other L.A.'s - General,Bristol City Council - Schools,2750.5, 23-Dec-2016
337,Revenue,CAHD,Placements OLA Special Schools and RB,Other L.A.'s - General,Bristol City Council - Schools,2750.5, 19-Dec-2016
338,Revenue,CAHD,Placements OLA Special Schools and RB,Other L.A.'s - General,Bristol City Council - Schools,1444.92, 23-Dec-2016
339,Revenue,CAHD,Placements OLA Special Schools and RB,Other L.A.'s - General,Bristol City Council - Schools,1444.92, 19-Dec-2016
340,Revenue,CAHD,Statemented Support Payments to OLAs,Other L.A.'s - General,Bristol City Council - Schools,1374.97, 09-Dec-2016
341,Revenue,CAHD,Statemented Support Payments to OLAs,Other L.A.'s - General,Bristol City Council - Schools,1374.97, 23-Dec-2016
342,Revenue,CAHD,Placements OLA Special Schools and RB,Other L.A.'s - General,Bristol City Council - Schools,2750.5, 23-Dec-2016
343,Revenue,CAHD,Placements OLA Special Schools and RB,Other L.A.'s - General,Bristol City Council - Schools,2750.5, 19-Dec-2016
344,Revenue,CAHD,Placements OLA Special Schools and RB,Other L.A.'s - General,Bristol City Council - Schools,1398, 23-Dec-2016
345,Revenue,CAHD,Placements OLA Special Schools and RB,Other L.A.'s - General,Bristol City Council - Schools,1398, 19-Dec-2016
346,Revenue,CAHD,Placements OLA Special Schools and RB,Other L.A.'s - General,Bristol City Council - Schools,833.33, 23-Dec-2016
347,Revenue,CAHD,Placements OLA Special Schools and RB,Other L.A.'s - General,Bristol City Council - Schools,833.33, 19-Dec-2016
348,Revenue,CAHD,Placements OLA Special Schools and RB,Other L.A.'s - General,Bristol City Council - Schools,1333.33, 23-Dec-2016
349,Revenue,CAHD,Placements OLA Special Schools and RB,Other L.A.'s - General,Bristol City Council - Schools,1333.33, 19-Dec-2016
350,Revenue,CAHD,Placements OLA Special Schools and RB,Other L.A.'s - General,Bristol City Council - Schools,3583.83, 23-Dec-2016
351,Revenue,CAHD,Placements OLA Special Schools and RB,Other L.A.'s - General,Bristol City Council - Schools,3583.83, 19-Dec-2016
352,Revenue,CAHD,Placements OLA Special Schools and RB,Other L.A.'s - General,Bristol City Council - Schools,2750.5, 23-Dec-2016
353,Revenue,CAHD,Placements OLA Special Schools and RB,Other L.A.'s - General,Bristol City Council - Schools,2750.5, 19-Dec-2016
354,Revenue,CAHD,Placements OLA Special Schools and RB,Other L.A.'s - General,Bristol City Council - Schools,2750.5, 23-Dec-2016
355,Revenue,CAHD,Placements OLA Special Schools and RB,Other L.A.'s - General,Bristol City Council - Schools,2750.5, 19-Dec-2016
356,Revenue,CAHD,Placements OLA Special Schools and RB,Other L.A.'s - General,Bristol City Council - Schools,1477.33, 23-Dec-2016
357,Revenue,CAHD,Placements OLA Special Schools and RB,Other L.A.'s - General,Bristol City Council - Schools,2954.65, 19-Dec-2016
358,Revenue,CAHD,Placements OLA Special Schools and RB,Other L.A.'s - General,Bristol City Council - Schools,977.33, 23-Dec-2016
359,Revenue,CAHD,Placements OLA Special Schools and RB,Other L.A.'s - General,Bristol City Council - Schools,977.33, 19-Dec-2016
360,Revenue,CAHD,Placements OLA Special Schools and RB,Other L.A.'s - General,Bristol City Council - Schools,1477.33, 23-Dec-2016
361,Revenue,CAHD,Placements OLA Special Schools and RB,Other L.A.'s - General,Bristol City Council - Schools,1477.33, 19-Dec-2016
362,Revenue,CAHD,Placements OLA Special Schools and RB,Other L.A.'s - General,Bristol City Council - Schools,833.33, 23-Dec-2016
363,Revenue,CAHD,Placements OLA Special Schools and RB,Other L.A.'s - General,Bristol City Council - Schools,833.33, 19-Dec-2016
364,Revenue,CAHD,Placements OLA Special Schools and RB,Other L.A.'s - General,Bristol City Council - Schools,2750.5, 23-Dec-2016
365,Revenue,CAHD,Placements OLA Special Schools and RB,Other L.A.'s - General,Bristol City Council - Schools,2750.5, 19-Dec-2016
366,Revenue,CAHD,Statemented Support Payments to OLAs,Other L.A.'s - General,Bristol City Council - Schools,641.64, 09-Dec-2016
367,Revenue,CAHD,Statemented Support Payments to OLAs,Other L.A.'s - General,Bristol City Council - Schools,641.64, 23-Dec-2016
368,Revenue,CAHD,Placements OLA Special Schools and RB,Other L.A.'s - General,Bristol City Council - Schools,866.5, 23-Dec-2016
369,Revenue,CAHD,Placements OLA Special Schools and RB,Other L.A.'s - General,Bristol City Council - Schools,866.5, 19-Dec-2016
370,Revenue,CAHD,Placements OLA Special Schools and RB,Other L.A.'s - General,Bristol City Council - Schools,4335.04, 23-Dec-2016
371,Revenue,CAHD,Placements OLA Special Schools and RB,Other L.A.'s - General,Bristol City Council - Schools,4335.04, 19-Dec-2016
372,Revenue,CAHD,Placements OLA Special Schools and RB,Other L.A.'s - General,Bristol City Council - Schools,2750.5, 23-Dec-2016
373,Revenue,CAHD,Placements OLA Special Schools and RB,Other L.A.'s - General,Bristol City Council - Schools,2750.5, 19-Dec-2016
374,Revenue,CAHD,Placements OLA Special Schools and RB,Other L.A.'s - General,Bristol City Council - Schools,1398, 23-Dec-2016
375,Revenue,CAHD,Placements OLA Special Schools and RB,Other L.A.'s - General,Bristol City Council - Schools,1398, 19-Dec-2016
376,Revenue,CAHD,Placements OLA Special Schools and RB,Other L.A.'s - General,Bristol City Council - Schools,2750.5, 23-Dec-2016
377,Revenue,CAHD,Placements OLA Special Schools and RB,Other L.A.'s - General,Bristol City Council - Schools,2750.5, 19-Dec-2016
378,Revenue,CAHD,Placements OLA Special Schools and RB,Other L.A.'s - General,Bristol City Council - Schools,2200.4, 23-Dec-2016
379,Revenue,CAHD,Placements OLA Special Schools and RB,Other L.A.'s - General,Bristol City Council - Schools,2200.4, 19-Dec-2016
380,Revenue,CAHD,Placements OLA Special Schools and RB,Other L.A.'s - General,Bristol City Council - Schools,2227.33, 23-Dec-2016
381,Revenue,CAHD,Placements OLA Special Schools and RB,Other L.A.'s - General,Bristol City Council - Schools,2227.33, 19-Dec-2016
382,Revenue,CAHD,Placements OLA Special Schools and RB,Other L.A.'s - General,Bristol City Council - Schools,2750.5, 23-Dec-2016
383,Revenue,CAHD,Placements OLA Special Schools and RB,Other L.A.'s - General,Bristol City Council - Schools,2750.5, 19-Dec-2016
384,Revenue,CAHD,Placements OLA Special Schools and RB,Other L.A.'s - General,Bristol City Council - Schools,3060.67, 23-Dec-2016
385,Revenue,CAHD,Placements OLA Special Schools and RB,Other L.A.'s - General,Bristol City Council - Schools,3060.67, 19-Dec-2016
386,Revenue,CAHD,Placements OLA Special Schools and RB,Other L.A.'s - General,Bristol City Council - Schools,944.92, 23-Dec-2016
387,Revenue,CAHD,Placements OLA Special Schools and RB,Other L.A.'s - General,Bristol City Council - Schools,944.92, 19-Dec-2016
388,Revenue,CAHD,CSC - LAT Placements,Personal Needs of Clients,Bristol Clifton & West of England Zoological,600, 23-Dec-2016
389,Revenue,CAHD,Home Care - Elderly - North,Day Care / Social Activities,Bristol Community Links North,983.52, 20-Dec-2016
390,Revenue,CAHD,Statemented Support Payments to OLAs,Other L.A.'s - General,Bristol Free School,933.3, 09-Dec-2016
391,Revenue,CAHD,Statemented Support Payments to OLAs,Other L.A.'s - General,Bristol Free School,933.3, 23-Dec-2016
392,Revenue,CAHD,Home Care - Elderly - South,Supported Living,Bristol Houses UK Limited,614.46, 09-Dec-2016
393,Revenue,CAHD,Home Care - Elderly - South,Day Care / Social Activities,Bristol Houses UK Limited,1073.31, 09-Dec-2016
394,Revenue,CAHD,Home Care - Elderly - North,Day Care / Social Activities,Bristol Houses UK Limited,1053.36, 22-Dec-2016
395,Revenue,CAHD,Supporting People Programme,Grants to Voluntary Bodies,Bristol Missing Link,1464.83, 01-Dec-2016
396,Revenue,CAHD,Supporting People Programme,Grants to Voluntary Bodies,Bristol Missing Link,1464.83, 29-Dec-2016
397,Revenue,CAHD,Grange School Holding Account,Water Charges,Bristol Wessex Billing Services Limited,2210.92, 05-Dec-2016
398,Revenue,CAHD,Alexandra Way,Water Charges,Bristol Wessex Billing Services Limited,543.06, 22-Dec-2016
399,Revenue,CAHD,CSC - Vinney Green Secure Unit,Water Charges,Bristol Wessex Billing Services Limited,849.78, 22-Dec-2016
400,Revenue,CAHD,Home Care - Elderly - North,Day Care / Social Activities,Britannia House,937.28, 20-Dec-2016
401,Revenue,CAHD,18-25 Year Olds,Day Care / Social Activities,Britannia House,702.96, 20-Dec-2016
402,Revenue,CAHD,Home Care - Elderly - North,Day Care / Social Activities,Britannia House,702.96, 20-Dec-2016
403,Revenue,CAHD,Home Care - Elderly - North,Day Care / Social Activities,Britannia House,937.28, 20-Dec-2016
404,Revenue,CAHD,Home Care - Elderly - South,Day Care / Social Activities,Britannia House,937.28, 20-Dec-2016
405,Revenue,CAHD,Home Care - Elderly - South,Day Care / Social Activities,Britannia House,702.96, 20-Dec-2016
406,Revenue,CAHD,Home Care - Elderly - South,Day Care / Social Activities,Britannia House,702.96, 20-Dec-2016
407,Revenue,CAHD,CSC - Care Leavers Independent Living,Independent Living,Bromford Housing Association,857.22, 02-Dec-2016
408,Revenue,CAHD,CSC - Asylum Seekers - Unaccompanied,Independent Living,Bromford Housing Association,2045.7, 02-Dec-2016
409,Revenue,CAHD,CSC - Asylum Seekers - Unaccompanied,Independent Living,Bromford Housing Association,2045.7, 02-Dec-2016
410,Revenue,CAHD,CSC - Asylum Seekers - Unaccompanied,Independent Living,Bromford Housing Association,681.9, 02-Dec-2016
411,Revenue,CAHD,CSC - Asylum Seekers - Unaccompanied,Independent Living,Bromford Housing Association,545.52, 23-Dec-2016
412,Revenue,CAHD,Supporting People Programme,Grants to Voluntary Bodies,Bromford Housing Group,14395.08, 01-Dec-2016
413,Revenue,CAHD,Supporting People Programme,Grants to Voluntary Bodies,Bromford Housing Group,14395.08, 29-Dec-2016
414,Revenue,CAHD,Tenancy Start Up Scheme,Other Supplies & Services,Brunel Associates,1550, 05-Dec-2016
415,Revenue,CAHD,Home Care - Elderly - North,Private & Voluntary Home Care,Brunelcare,23822.65, 05-Dec-2016
416,Revenue,CAHD,Home Care - Elderly - North,Private & Voluntary Home Care,Brunelcare,23822.65, 12-Dec-2016
417,Revenue,CAHD,Home Care - Elderly - North,Private & Voluntary Home Care,Brunelcare,23822.65, 19-Dec-2016
418,Revenue,CAHD,Home Care - Elderly - North,Private & Voluntary Home Care,Brunelcare,23822.65, 23-Dec-2016
419,Revenue,CAHD,Home Care - Elderly - North,Private & Voluntary Home Care,Brunelcare,23822.65, 29-Dec-2016
420,Revenue,CAHD,Bed Purchasing - Southmead Hospital,Permanent Nursing,Brunelcare,2248.07, 20-Dec-2016
421,Revenue,CAHD,South Glos Users in South Glos Homes,Permanent Nursing,Brunelcare,669.64, 20-Dec-2016
422,Revenue,CAHD,Bed Purchasing - South,Permanent Nursing,Brunelcare,1895.57, 20-Dec-2016
423,Revenue,CAHD,South Glos Users in South Glos Homes,Permanent Nursing,Brunelcare,669.64, 20-Dec-2016
424,Revenue,CAHD,Bed Purchasing - Elderly S117- North,Permanent Nursing,Brunelcare,3077.14, 20-Dec-2016
425,Revenue,CAHD,Bed Purchasing - South,Permanent Nursing,Brunelcare,607.37, 20-Dec-2016
426,Revenue,CAHD,Bed Purchasing - South,Permanent Nursing,Brunelcare,2747.64, 20-Dec-2016
427,Revenue,CAHD,Bed Purchasing - Elderly S117- North,Permanent Nursing,Brunelcare,3077.14, 20-Dec-2016
428,Revenue,CAHD,South Glos Users in South Glos Homes,Permanent Nursing,Brunelcare,669.64, 20-Dec-2016
429,Revenue,CAHD,Bed Purchasing - Southmead Hospital,Permanent Nursing,Brunelcare,1397.49, 20-Dec-2016
430,Revenue,CAHD,Bed Purchasing - South,Permanent Nursing,Brunelcare,2308.54, 20-Dec-2016
431,Revenue,CAHD,South Glos Users in South Glos Homes,Permanent Nursing,Brunelcare,669.64, 20-Dec-2016
432,Revenue,CAHD,Bed Purchasing - South,Permanent Nursing,Brunelcare,2331.69, 20-Dec-2016
433,Revenue,CAHD,South Glos Users in South Glos Homes,Permanent Nursing,Brunelcare,669.64, 20-Dec-2016
434,Revenue,CAHD,Bed purchasing - Elderly S117 - South,Permanent Nursing,Brunelcare,3077.14, 20-Dec-2016
435,Revenue,CAHD,South Glos Users in South Glos Homes,Permanent Nursing,Brunelcare,669.64, 20-Dec-2016
436,Revenue,CAHD,Bed Purchasing - North,Permanent Nursing,Brunelcare,2448.17, 20-Dec-2016
437,Revenue,CAHD,South Glos Users in South Glos Homes,Permanent Nursing,Brunelcare,669.64, 20-Dec-2016
438,Revenue,CAHD,Bed Purchasing - Southmead Hospital,Permanent Nursing,Brunelcare,2351.7, 20-Dec-2016
439,Revenue,CAHD,South Glos Users in South Glos Homes,Permanent Nursing,Brunelcare,669.64, 20-Dec-2016
440,Revenue,CAHD,Bed Purchasing - North,Permanent Nursing,Brunelcare,2470.37, 20-Dec-2016
441,Revenue,CAHD,South Glos Users in South Glos Homes,Permanent Nursing,Brunelcare,669.64, 20-Dec-2016
442,Revenue,CAHD,Bed Purchasing - North,Permanent Nursing,Brunelcare,2517, 20-Dec-2016
443,Revenue,CAHD,South Glos Users in South Glos Homes,Permanent Nursing,Brunelcare,669.64, 20-Dec-2016
444,Revenue,CAHD,Bed Purchasing - Southmead Hospital,Permanent Nursing,Brunelcare,2517, 20-Dec-2016
445,Revenue,CAHD,South Glos Users in South Glos Homes,Permanent Nursing,Brunelcare,669.64, 20-Dec-2016
446,Revenue,CAHD,Bed Purchasing - Southmead Hospital,Permanent Nursing,Brunelcare,2430.34, 20-Dec-2016
447,Revenue,CAHD,South Glos Users in South Glos Homes,Permanent Nursing,Brunelcare,669.64, 20-Dec-2016
448,Revenue,CAHD,Bed Purchasing - Elderly S117- North,Permanent Nursing,Brunelcare,3077.14, 20-Dec-2016
449,Revenue,CAHD,Bed Purchasing - South,Permanent Nursing,Brunelcare,820.57, 20-Dec-2016
450,Revenue,CAHD,Bed Purchasing - North,Respite Planned - Nursing,Brunelcare,718, 20-Dec-2016
451,Revenue,CAHD,Bed Purchasing - South,Respite Planned - Nursing,Brunelcare,1538.57, 20-Dec-2016
452,Revenue,CAHD,Bed Purchasing - South,Permanent Nursing,Brunelcare,2770.25, 20-Dec-2016
453,Revenue,CAHD,Pathway 2 - (Interim Beds),Permanent Nursing,Brunelcare,15407, 05-Dec-2016
454,Revenue,CAHD,Pathway 2 - (Interim Beds),Permanent Nursing,Brunelcare,15407, 29-Dec-2016
455,Revenue,CAHD,Home Care - Elderly - South,Other Small Contracts,Brunelcare,2329.64, 01-Dec-2016
456,Revenue,CAHD,Home Care - Elderly - North,Other Small Contracts,Brunelcare,1416.22, 01-Dec-2016
457,Revenue,CAHD,Home Care - Elderly - South,Other Small Contracts,Brunelcare,2287.74, 01-Dec-2016
458,Revenue,CAHD,Home Care - Elderly - North,Other Small Contracts,Brunelcare,1391.08, 01-Dec-2016
459,Revenue,CAHD,Home Care - Elderly - South,Other Small Contracts,Brunelcare,2223.26, 01-Dec-2016
460,Revenue,CAHD,Home Care - Elderly - North,Other Small Contracts,Brunelcare,1383.46, 01-Dec-2016
461,Revenue,CAHD,Home Care - Elderly - South,Other Small Contracts,Brunelcare,2347.02, 01-Dec-2016
462,Revenue,CAHD,Home Care - Elderly - North,Other Small Contracts,Brunelcare,1436.5, 01-Dec-2016
463,Revenue,CAHD,Home Care - Elderly - South,Other Small Contracts,Brunelcare,2329.34, 29-Dec-2016
464,Revenue,CAHD,Home Care - Elderly - North,Other Small Contracts,Brunelcare,1449.76, 29-Dec-2016
465,Revenue,CAHD,Home Care - Elderly - South,Other Small Contracts,Brunelcare,2422.16, 29-Dec-2016
466,Revenue,CAHD,Home Care - Elderly - North,Other Small Contracts,Brunelcare,1409.98, 29-Dec-2016
467,Revenue,CAHD,Woodleaze,Agency Staff (Admin/Support Staff) Pay,BS Project Services Limited,648.57, 08-Dec-2016
468,Revenue,CAHD,Bed Purchasing - North,Permanent Nursing,Bupa Care Services  Bridge House,1740, 20-Dec-2016
469,Revenue,CAHD,Jointly Funded H&SC Packages,Permanent Nursing,Bupa Care Services  Bridge House,4344.04, 20-Dec-2016
470,Revenue,CAHD,South Glos Users in all other LA Homes,Permanent Nursing,Bupa Care Services  Bridge House,860.16, 20-Dec-2016
471,Revenue,CAHD,CSC - Vinney Green Secure Unit,Premises Maintenance by Contractor,BWS Security Systems Limited,4213.3, 19-Dec-2016
472,Revenue,CAHD,Grange School Holding Account,Street Care - Grounds Maintenance,C P S (Grounds) Limited,1648.77, 05-Dec-2016
473,Revenue,CAHD,Statemented Support Payments to OLAs,Other L.A.'s - General,Cabot Learning Federation,1099.97, 09-Dec-2016
474,Revenue,CAHD,Statemented Support Payments to OLAs,Other L.A.'s - General,Cabot Learning Federation,1099.97, 23-Dec-2016
475,Revenue,CAHD,Academy Resource Base Funding,Other Public Bodies,Cabot Learning Federation,1561.64, 02-Dec-2016
476,Revenue,CAHD,Academy Resource Base Funding,Other Public Bodies,Cabot Learning Federation,1191.78, 02-Dec-2016
477,Revenue,CAHD,Academy Resource Base Funding,Other Public Bodies,Cabot Learning Federation,1726.03, 02-Dec-2016
478,Revenue,CAHD,Academy Resource Base Funding,Other Public Bodies,Cabot Learning Federation,1561.64, 02-Dec-2016
479,Revenue,CAHD,Academy Resource Base Funding,Other Public Bodies,Cabot Learning Federation,1561.64, 02-Dec-2016
480,Revenue,CAHD,Academy Resource Base Funding,Other Public Bodies,Cabot Learning Federation,1561.64, 02-Dec-2016
481,Revenue,CAHD,Academy Resource Base Funding,Other Public Bodies,Cabot Learning Federation,1561.64, 02-Dec-2016
482,Revenue,CAHD,Academy Resource Base Funding,Other Public Bodies,Cabot Learning Federation,1613.7, 02-Dec-2016
483,Revenue,CAHD,Academy Resource Base Funding,Other Public Bodies,Cabot Learning Federation,1613.7, 29-Dec-2016
484,Revenue,CAHD,Academy Resource Base Funding,Other Public Bodies,Cabot Learning Federation,1231.51, 29-Dec-2016
485,Revenue,CAHD,Academy Resource Base Funding,Other Public Bodies,Cabot Learning Federation,509.59, 29-Dec-2016
486,Revenue,CAHD,Academy Resource Base Funding,Other Public Bodies,Cabot Learning Federation,509.59, 29-Dec-2016
487,Revenue,CAHD,Academy Resource Base Funding,Other Public Bodies,Cabot Learning Federation,509.59, 29-Dec-2016
488,Revenue,CAHD,Academy Resource Base Funding,Other Public Bodies,Cabot Learning Federation,509.59, 29-Dec-2016
489,Revenue,CAHD,Academy Resource Base Funding,Other Public Bodies,Cabot Learning Federation,1783.56, 29-Dec-2016
490,Revenue,CAHD,Academy Resource Base Funding,Other Public Bodies,Cabot Learning Federation,509.59, 29-Dec-2016
491,Revenue,CAHD,Academy Resource Base Funding,Other Public Bodies,Cabot Learning Federation,509.59, 29-Dec-2016
492,Revenue,CAHD,Academy Resource Base Funding,Other Public Bodies,Cabot Learning Federation,509.59, 29-Dec-2016
493,Revenue,CAHD,Academy Resource Base Funding,Other Public Bodies,Cabot Learning Federation,1613.7, 29-Dec-2016
494,Revenue,CAHD,Academy Resource Base Funding,Other Public Bodies,Cabot Learning Federation,509.59, 29-Dec-2016
495,Revenue,CAHD,Academy Resource Base Funding,Other Public Bodies,Cabot Learning Federation,509.59, 29-Dec-2016
496,Revenue,CAHD,Academy Resource Base Funding,Other Public Bodies,Cabot Learning Federation,1613.7, 29-Dec-2016
497,Revenue,CAHD,Academy Resource Base Funding,Other Public Bodies,Cabot Learning Federation,509.59, 29-Dec-2016
498,Revenue,CAHD,Academy Resource Base Funding,Other Public Bodies,Cabot Learning Federation,509.59, 29-Dec-2016
499,Revenue,CAHD,Academy Resource Base Funding,Other Public Bodies,Cabot Learning Federation,509.59, 29-Dec-2016
500,Revenue,CAHD,Academy Resource Base Funding,Other Public Bodies,Cabot Learning Federation,509.59, 29-Dec-2016
501,Revenue,CAHD,Academy Resource Base Funding,Other Public Bodies,Cabot Learning Federation,509.59, 29-Dec-2016
502,Revenue,CAHD,Academy Resource Base Funding,Other Public Bodies,Cabot Learning Federation,509.59, 29-Dec-2016
503,Revenue,CAHD,Academy Resource Base Funding,Other Public Bodies,Cabot Learning Federation,509.59, 29-Dec-2016
504,Revenue,CAHD,Academy Resource Base Funding,Other Public Bodies,Cabot Learning Federation,509.59, 29-Dec-2016
505,Revenue,CAHD,Academy Resource Base Funding,Other Public Bodies,Cabot Learning Federation,1613.7, 29-Dec-2016
506,Revenue,CAHD,Academy Resource Base Funding,Other Public Bodies,Cabot Learning Federation,1613.7, 29-Dec-2016
507,Revenue,CAHD,Statemented Support Payments to OLAs,Other L.A.'s - General,Cabot Learning Federation,524.97, 09-Dec-2016
508,Revenue,CAHD,Statemented Support Payments to OLAs,Other L.A.'s - General,Cabot Learning Federation,524.97, 23-Dec-2016
509,Revenue,CAHD,Statemented Support Academies,Schools Funding,Cabot Learning Federation,641.64, 09-Dec-2016
510,Revenue,CAHD,Statemented Support Academies,Schools Funding,Cabot Learning Federation,641.64, 23-Dec-2016
511,Revenue,CAHD,Statemented Support Academies,Schools Funding,Cabot Learning Federation,691.64, 09-Dec-2016
512,Revenue,CAHD,Statemented Support Academies,Schools Funding,Cabot Learning Federation,691.64, 23-Dec-2016
513,Revenue,CAHD,Statemented Support Academies,Schools Funding,Cabot Learning Federation,691.64, 09-Dec-2016
514,Revenue,CAHD,Statemented Support Academies,Schools Funding,Cabot Learning Federation,691.64, 23-Dec-2016
515,Revenue,CAHD,Statemented Support Academies,Schools Funding,Cabot Learning Federation,624.97, 09-Dec-2016
516,Revenue,CAHD,Statemented Support Academies,Schools Funding,Cabot Learning Federation,624.97, 23-Dec-2016
517,Revenue,CAHD,Statemented Support Academies,Schools Funding,Cabot Learning Federation,558.3, 09-Dec-2016
518,Revenue,CAHD,Statemented Support Academies,Schools Funding,Cabot Learning Federation,558.3, 23-Dec-2016
519,Revenue,CAHD,Statemented Support Academies,Schools Funding,Cabot Learning Federation,583.3, 09-Dec-2016
520,Revenue,CAHD,Statemented Support Academies,Schools Funding,Cabot Learning Federation,583.3, 23-Dec-2016
521,Revenue,CAHD,Statemented Support Academies,Schools Funding,Cabot Learning Federation,583.3, 09-Dec-2016
522,Revenue,CAHD,Statemented Support Academies,Schools Funding,Cabot Learning Federation,583.3, 23-Dec-2016
523,Revenue,CAHD,Statemented Support Academies,Schools Funding,Cabot Learning Federation,1408.3, 09-Dec-2016
524,Revenue,CAHD,Statemented Support Academies,Schools Funding,Cabot Learning Federation,1408.3, 23-Dec-2016
525,Revenue,CAHD,Statemented Support Academies,Schools Funding,Cabot Learning Federation,599.97, 09-Dec-2016
526,Revenue,CAHD,Statemented Support Academies,Schools Funding,Cabot Learning Federation,599.97, 23-Dec-2016
527,Revenue,CAHD,Statemented Support Academies,Schools Funding,Cabot Learning Federation,724.97, 09-Dec-2016
528,Revenue,CAHD,Statemented Support Academies,Schools Funding,Cabot Learning Federation,724.97, 23-Dec-2016
529,Revenue,CAHD,Statemented Support Academies,Schools Funding,Cabot Learning Federation,691.64, 09-Dec-2016
530,Revenue,CAHD,Statemented Support Academies,Schools Funding,Cabot Learning Federation,691.64, 23-Dec-2016
531,Revenue,CAHD,Statemented Support Academies,Schools Funding,Cabot Learning Federation,583.3, 09-Dec-2016
532,Revenue,CAHD,Statemented Support Academies,Schools Funding,Cabot Learning Federation,583.3, 23-Dec-2016
533,Revenue,CAHD,Statemented Support Academies,Schools Funding,Cabot Learning Federation,1316.64, 09-Dec-2016
534,Revenue,CAHD,Statemented Support Academies,Schools Funding,Cabot Learning Federation,1316.64, 23-Dec-2016
535,Revenue,CAHD,Statemented Support Academies,Schools Funding,Cabot Learning Federation,624.97, 09-Dec-2016
536,Revenue,CAHD,Statemented Support Academies,Schools Funding,Cabot Learning Federation,624.97, 23-Dec-2016
537,Revenue,CAHD,Statemented Support Academies,Schools Funding,Cabot Learning Federation,899.97, 09-Dec-2016
538,Revenue,CAHD,Statemented Support Academies,Schools Funding,Cabot Learning Federation,899.97, 23-Dec-2016
539,Revenue,CAHD,Statemented Support Academies,Schools Funding,Cabot Learning Federation,599.97, 09-Dec-2016
540,Revenue,CAHD,Statemented Support Academies,Schools Funding,Cabot Learning Federation,683.3, 09-Dec-2016
541,Revenue,CAHD,Statemented Support Academies,Schools Funding,Cabot Learning Federation,683.3, 23-Dec-2016
542,Revenue,CAHD,Statemented Support Academies,Schools Funding,Cabot Learning Federation,958.3, 09-Dec-2016
543,Revenue,CAHD,Statemented Support Academies,Schools Funding,Cabot Learning Federation,958.3, 23-Dec-2016
544,Revenue,CAHD,Statemented Support Academies,Schools Funding,Cabot Learning Federation,749.97, 09-Dec-2016
545,Revenue,CAHD,Statemented Support Academies,Schools Funding,Cabot Learning Federation,749.97, 23-Dec-2016
546,Revenue,CAHD,Statemented Support Academies,Schools Funding,Cabot Learning Federation,933.3, 09-Dec-2016
547,Revenue,CAHD,Statemented Support Academies,Schools Funding,Cabot Learning Federation,933.3, 23-Dec-2016
548,Revenue,CAHD,Statemented Support Academies,Schools Funding,Cabot Learning Federation,549.97, 09-Dec-2016
549,Revenue,CAHD,Statemented Support Academies,Schools Funding,Cabot Learning Federation,549.97, 23-Dec-2016
550,Revenue,CAHD,Statemented Support Payments to OLAs,Other L.A.'s - General,Cabot Learning Federation,583.3, 09-Dec-2016
551,Revenue,CAHD,Statemented Support Payments to OLAs,Other L.A.'s - General,Cabot Learning Federation,583.3, 23-Dec-2016
552,Revenue,CAHD,Statemented Support Academies,Schools Funding,Cabot Learning Federation,841.64, 09-Dec-2016
553,Revenue,CAHD,Statemented Support Academies,Schools Funding,Cabot Learning Federation,841.64, 23-Dec-2016
554,Revenue,CAHD,Statemented Support Academies,Schools Funding,Cabot Learning Federation,1308.3, 09-Dec-2016
555,Revenue,CAHD,Statemented Support Academies,Schools Funding,Cabot Learning Federation,1308.3, 23-Dec-2016
556,Revenue,CAHD,Sexual Health,Other Small Contracts,Cadbury Heath Healthcare,1414.34, 09-Dec-2016
557,Revenue,CAHD,Independent Special Placements - Pre 16,Other Private Contractors,Calder House School,5400, 23-Dec-2016
558,Revenue,CAHD,Post 16 High Needs Placements,Other Private Contractors,Cambian Whinfell School Ltd,26302.7, 29-Dec-2016
559,Revenue,CAHD,Post 16 High Needs Placements,Other Private Contractors,Cambian Whinfell School Ltd,28734.89, 29-Dec-2016
560,Revenue,CAHD,Home Care - Elderly - North,Day Care / Social Activities,Camphill Communities Thornbury Limited,1000, 09-Dec-2016
561,Revenue,CAHD,Home Care - Elderly - North,Other Small Contracts,Camphill Communities Thornbury Limited,144, 09-Dec-2016
562,Revenue,CAHD,Home Care - Elderly - North,Supported Living,Camphill Communities Thornbury Limited,916, 09-Dec-2016
563,Revenue,CAHD,Home Care - Elderly - North,Day Care / Social Activities,Camphill Communities Thornbury Limited,1104, 02-Dec-2016
564,Revenue,CAHD,Home Care - Elderly - North,Other Small Contracts,Camphill Communities Thornbury Limited,144, 02-Dec-2016
565,Revenue,CAHD,Home Care - Elderly - North,Supported Living,Camphill Communities Thornbury Limited,796, 02-Dec-2016
566,Revenue,CAHD,Home Care - Elderly - North,Day Care / Social Activities,Camphill Communities Thornbury Limited,888, 09-Dec-2016
567,Revenue,CAHD,Home Care - Elderly - North,Other Small Contracts,Camphill Communities Thornbury Limited,144, 09-Dec-2016
568,Revenue,CAHD,Home Care - Elderly - North,Supported Living,Camphill Communities Thornbury Limited,888, 09-Dec-2016
569,Revenue,CAHD,Home Care - Elderly - North,Day Care / Social Activities,Camphill Communities Thornbury Limited,1242.37, 15-Dec-2016
570,Revenue,CAHD,Home Care - Elderly - North,Other Small Contracts,Camphill Communities Thornbury Limited,158.04, 15-Dec-2016
571,Revenue,CAHD,Home Care - Elderly - North,Supported Living,Camphill Communities Thornbury Limited,952.63, 15-Dec-2016
572,Revenue,CAHD,Home Care - Elderly - North,Day Care / Social Activities,Camphill Communities Thornbury Limited,1229.2, 23-Dec-2016
573,Revenue,CAHD,Home Care - Elderly - North,Other Small Contracts,Camphill Communities Thornbury Limited,158.04, 23-Dec-2016
574,Revenue,CAHD,Home Care - Elderly - North,Supported Living,Camphill Communities Thornbury Limited,1141.4, 23-Dec-2016
575,Revenue,CAHD,Home Care - Elderly - North,Day Care / Social Activities,Camphill Communities Thornbury Limited,1224.81, 29-Dec-2016
576,Revenue,CAHD,Home Care - Elderly - North,Other Small Contracts,Camphill Communities Thornbury Limited,158.04, 29-Dec-2016
577,Revenue,CAHD,Home Care - Elderly - North,Supported Living,Camphill Communities Thornbury Limited,1014.09, 29-Dec-2016
578,Revenue,CAHD,Bed Purchasing - Elderly S117- North,Permanent Residential,Canjayor,2391.32, 20-Dec-2016
579,Revenue,CAHD,0-25  Service Staffing,Agency Staff (Admin/Support Staff) Pay,Capita Resourcing Limited,9180, 08-Dec-2016
580,Revenue,CAHD,CAH Assistant Directors,Agency Staff (Admin/Support Staff) Pay,Capita Resourcing Limited,6710, 20-Dec-2016
581,Revenue,CAHD,Home Care - Elderly - North,Other Small Contracts,Care 1st Homecare,1276.69, 07-Dec-2016
582,Revenue,CAHD,Home Care - Elderly - South,Other Small Contracts,Care Horizons Limited,442.32, 20-Dec-2016
583,Revenue,CAHD,Home Care - Elderly - North,Day Care / Social Activities,Care Horizons Limited,528.96, 20-Dec-2016
584,Revenue,CAHD,Home Care - Elderly - North,Other Small Contracts,Care Horizons Limited,287.28, 20-Dec-2016
585,Revenue,CAHD,Home Care - Elderly - South,Other Small Contracts,Care Horizons Limited,346.56, 20-Dec-2016
586,Revenue,CAHD,Home Care - Elderly - North,Day Care / Social Activities,Care Horizons Limited,547.2, 20-Dec-2016
587,Revenue,CAHD,Home Care - Elderly - North,Other Small Contracts,Care Horizons Limited,633.84, 20-Dec-2016
588,Revenue,CAHD,Home Care - Elderly - South,Other Small Contracts,Care Horizons Limited,346.56, 13-Dec-2016
589,Revenue,CAHD,Home Care - Elderly - North,Day Care / Social Activities,Care Horizons Limited,533.52, 13-Dec-2016
590,Revenue,CAHD,Home Care - Elderly - North,Other Small Contracts,Care Horizons Limited,629.28, 13-Dec-2016
591,Revenue,CAHD,Home Care - Elderly - South,Other Small Contracts,Care Horizons Limited,355.68, 20-Dec-2016
592,Revenue,CAHD,Home Care - Elderly - North,Day Care / Social Activities,Care Horizons Limited,506.16, 20-Dec-2016
593,Revenue,CAHD,Home Care - Elderly - North,Other Small Contracts,Care Horizons Limited,642.96, 20-Dec-2016
594,Revenue,CAHD,Home Care - Elderly - North,Other Supplies & Services,Care Monitoring 2000 Limited,2616, 05-Dec-2016
595,Revenue,CAHD,Home Care Monitoring (CM2000),Other Supplies & Services,Care Monitoring 2000 Limited,9403.62, 14-Dec-2016
596,Revenue,CAHD,Home Care - Elderly - South,Other Small Contracts,Carers R Us (Bristol) Limited,676.5, 01-Dec-2016
597,Revenue,CAHD,Home Care - Elderly - North,Other Small Contracts,Carers R Us (Bristol) Limited,2037.58, 01-Dec-2016
598,Revenue,CAHD,Home Care - Elderly - South,Other Small Contracts,Carers R Us (Bristol) Limited,692.9, 01-Dec-2016
599,Revenue,CAHD,Home Care - Elderly - North,Other Small Contracts,Carers R Us (Bristol) Limited,2073.26, 01-Dec-2016
600,Revenue,CAHD,Home Care - Elderly - South,Other Small Contracts,Carers R Us (Bristol) Limited,716.04, 01-Dec-2016
601,Revenue,CAHD,Home Care - Elderly - North,Other Small Contracts,Carers R Us (Bristol) Limited,2188.25, 01-Dec-2016
602,Revenue,CAHD,Home Care - Elderly - South,Other Small Contracts,Carers R Us (Bristol) Limited,733.72, 01-Dec-2016
603,Revenue,CAHD,Home Care - Elderly - North,Other Small Contracts,Carers R Us (Bristol) Limited,2188.25, 01-Dec-2016
604,Revenue,CAHD,Home Care - Elderly - South,Other Small Contracts,Carers R Us (Bristol) Limited,720.46, 20-Dec-2016
605,Revenue,CAHD,Home Care - Elderly - North,Other Small Contracts,Carers R Us (Bristol) Limited,2191.74, 20-Dec-2016
606,Revenue,CAHD,Home Care - Elderly - South,Other Small Contracts,Carers R Us (Bristol) Limited,733.72, 20-Dec-2016
607,Revenue,CAHD,Home Care - Elderly - North,Other Small Contracts,Carers R Us (Bristol) Limited,2192.67, 20-Dec-2016
608,Revenue,CAHD,Home Care - Elderly - South,Other Small Contracts,Carers R Us (Bristol) Limited,751.4, 20-Dec-2016
609,Revenue,CAHD,Home Care - Elderly - North,Other Small Contracts,Carers R Us (Bristol) Limited,2191.74, 20-Dec-2016
610,Revenue,CAHD,Home Care - Elderly - North,Other Small Contracts,Carers R Us (Bristol) Limited,743.43, 07-Dec-2016
611,Revenue,CAHD,SLA Grants - Support Serv,Grants to Voluntary Bodies,Carers Support Centre,18991.5, 29-Dec-2016
612,Revenue,CAHD,Health Inequalities,Other Small Contracts,Carers Support Centre,60016.25, 29-Dec-2016
613,Revenue,CAHD,SLA Grants - Support Serv,Grants to Voluntary Bodies,Carers Support Centre,25025, 29-Dec-2016
614,Revenue,CAHD,SLA Grants - Support Serv,Grants to Voluntary Bodies,Carers Support Centre,12275, 29-Dec-2016
615,Revenue,CAHD,Home Care - Elderly - South,Other Small Contracts,Caring Comes 1st Ltd,1101.48, 01-Dec-2016
616,Revenue,CAHD,Statemented Support Academies,Schools Funding,Castle School Education Trust,891.64, 09-Dec-2016
617,Revenue,CAHD,Statemented Support Academies,Schools Funding,Castle School Education Trust,1124.97, 23-Dec-2016
618,Revenue,CAHD,Statemented Support Academies,Schools Funding,Castle School Education Trust,783.3, 09-Dec-2016
619,Revenue,CAHD,Statemented Support Academies,Schools Funding,Castle School Education Trust,783.3, 23-Dec-2016
620,Revenue,CAHD,Statemented Support Academies,Schools Funding,Castle School Education Trust,583.3, 09-Dec-2016
621,Revenue,CAHD,Statemented Support Academies,Schools Funding,Castle School Education Trust,583.3, 23-Dec-2016
622,Revenue,CAHD,Statemented Support Academies,Schools Funding,Castle School Education Trust,524.97, 09-Dec-2016
623,Revenue,CAHD,Statemented Support Academies,Schools Funding,Castle School Education Trust,524.97, 23-Dec-2016
624,Revenue,CAHD,Statemented Support Academies,Schools Funding,Castle School Education Trust,1324.97, 09-Dec-2016
625,Revenue,CAHD,Statemented Support Academies,Schools Funding,Castle School Education Trust,1324.97, 23-Dec-2016
626,Revenue,CAHD,Statemented Support Academies,Schools Funding,Castle School Education Trust,591.64, 09-Dec-2016
627,Revenue,CAHD,Statemented Support Academies,Schools Funding,Castle School Education Trust,591.64, 23-Dec-2016
628,Revenue,CAHD,Statemented Support Academies,Schools Funding,Castle School Education Trust,1049.97, 09-Dec-2016
629,Revenue,CAHD,Statemented Support Academies,Schools Funding,Castle School Education Trust,1049.97, 23-Dec-2016
630,Revenue,CAHD,Statemented Support Academies,Schools Funding,Castle School Education Trust,1083.3, 09-Dec-2016
631,Revenue,CAHD,Statemented Support Academies,Schools Funding,Castle School Education Trust,1083.3, 23-Dec-2016
632,Revenue,CAHD,Statemented Support Academies,Schools Funding,Castle School Education Trust,649.97, 09-Dec-2016
633,Revenue,CAHD,Statemented Support Academies,Schools Funding,Castle School Education Trust,649.97, 23-Dec-2016
634,Revenue,CAHD,Statemented Support Academies,Schools Funding,Castle School Education Trust,1474.97, 09-Dec-2016
635,Revenue,CAHD,Statemented Support Academies,Schools Funding,Castle School Education Trust,1474.97, 23-Dec-2016
636,Revenue,CAHD,Statemented Support Academies,Schools Funding,Castle School Education Trust,708.3, 09-Dec-2016
637,Revenue,CAHD,Statemented Support Academies,Schools Funding,Castle School Education Trust,708.3, 23-Dec-2016
638,Revenue,CAHD,Statemented Support Academies,Schools Funding,Castle School Education Trust,966.64, 09-Dec-2016
639,Revenue,CAHD,Statemented Support Academies,Schools Funding,Castle School Education Trust,966.64, 23-Dec-2016
640,Revenue,CAHD,Statemented Support Academies,Schools Funding,Castle School Education Trust,766.64, 09-Dec-2016
641,Revenue,CAHD,Statemented Support Academies,Schools Funding,Castle School Education Trust,766.64, 23-Dec-2016
642,Revenue,CAHD,Statemented Support Academies,Schools Funding,Castle School Education Trust,583.3, 09-Dec-2016
643,Revenue,CAHD,Statemented Support Academies,Schools Funding,Castle School Education Trust,583.3, 23-Dec-2016
644,Revenue,CAHD,Statemented Support Academies,Schools Funding,Castle School Education Trust,508.3, 09-Dec-2016
645,Revenue,CAHD,Statemented Support Academies,Schools Funding,Castle School Education Trust,508.3, 23-Dec-2016
646,Revenue,CAHD,Statemented Support Academies,Schools Funding,Castle School Education Trust,874.97, 09-Dec-2016
647,Revenue,CAHD,Statemented Support Academies,Schools Funding,Castle School Education Trust,874.97, 23-Dec-2016
648,Revenue,CAHD,Statemented Support Academies,Schools Funding,Castle School Education Trust,733.3, 09-Dec-2016
649,Revenue,CAHD,Statemented Support Academies,Schools Funding,Castle School Education Trust,733.3, 23-Dec-2016
650,Revenue,CAHD,Statemented Support Academies,Schools Funding,Castle School Education Trust,874.97, 09-Dec-2016
651,Revenue,CAHD,Statemented Support Academies,Schools Funding,Castle School Education Trust,874.97, 23-Dec-2016
652,Revenue,CAHD,Statemented Support Academies,Schools Funding,Castle School Education Trust,883.3, 09-Dec-2016
653,Revenue,CAHD,Statemented Support Academies,Schools Funding,Castle School Education Trust,883.3, 23-Dec-2016
654,Revenue,CAHD,Statemented Support Academies,Schools Funding,Castle School Education Trust,891.64, 09-Dec-2016
655,Revenue,CAHD,Statemented Support Academies,Schools Funding,Castle School Education Trust,891.64, 23-Dec-2016
656,Revenue,CAHD,Statemented Support Academies,Schools Funding,Castle School Education Trust,599.97, 09-Dec-2016
657,Revenue,CAHD,Statemented Support Academies,Schools Funding,Castle School Education Trust,599.97, 23-Dec-2016
658,Revenue,CAHD,Statemented Support Academies,Schools Funding,Castle School Education Trust,1166.64, 09-Dec-2016
659,Revenue,CAHD,Statemented Support Academies,Schools Funding,Castle School Education Trust,1166.64, 23-Dec-2016
660,Revenue,CAHD,Statemented Support Academies,Schools Funding,Castle School Education Trust,658.3, 09-Dec-2016
661,Revenue,CAHD,Statemented Support Academies,Schools Funding,Castle School Education Trust,658.3, 23-Dec-2016
662,Revenue,CAHD,Statemented Support Academies,Schools Funding,Castle School Education Trust,608.3, 09-Dec-2016
663,Revenue,CAHD,Statemented Support Academies,Schools Funding,Castle School Education Trust,608.3, 23-Dec-2016
664,Revenue,CAHD,Statemented Support Academies,Schools Funding,Castle School Education Trust,691.64, 09-Dec-2016
665,Revenue,CAHD,Statemented Support Academies,Schools Funding,Castle School Education Trust,691.64, 23-Dec-2016
666,Revenue,CAHD,Statemented Support Academies,Schools Funding,Castle School Education Trust,558.3, 09-Dec-2016
667,Revenue,CAHD,Statemented Support Academies,Schools Funding,Castle School Education Trust,558.3, 23-Dec-2016
668,Revenue,CAHD,Statemented Support Academies,Schools Funding,Castle School Education Trust,1133.3, 09-Dec-2016
669,Revenue,CAHD,Statemented Support Academies,Schools Funding,Castle School Education Trust,1133.3, 23-Dec-2016
670,Revenue,CAHD,Statemented Support Academies,Schools Funding,Castle School Education Trust,1283.3, 09-Dec-2016
671,Revenue,CAHD,Statemented Support Academies,Schools Funding,Castle School Education Trust,1283.3, 23-Dec-2016
672,Revenue,CAHD,Social Lettings Agency,Fees - General,Individual,10.53, 01-Dec-2016
673,Revenue,CAHD,Social Lettings Agency,Fees & Charges Income - General,Individual,595.11, 01-Dec-2016
674,Revenue,CAHD,Social Lettings Agency,Fees - General,Individual,10.53, 29-Dec-2016
675,Revenue,CAHD,Social Lettings Agency,Fees & Charges Income - General,Individual,595.11, 29-Dec-2016
676,Revenue,CAHD,Bed Purchasing - Southmead Hospital,Permanent Nursing,Cedar Care Homes Limited,4800, 20-Dec-2016
677,Revenue,CAHD,Bed Purchasing - Southmead Hospital,Permanent Nursing,Cedar Care Homes Limited,514.29, 20-Dec-2016
678,Revenue,CAHD,Bed Purchasing - Southmead Hospital,Permanent Nursing,Cedar Care Homes Limited,514.29, 20-Dec-2016
679,Revenue,CAHD,Bed Purchasing - North,Permanent Residential,Charlton House,1831.32, 20-Dec-2016
680,Revenue,CAHD,Sexual Health,Other Small Contracts,Chelsea and Westminster Hospital,757.06, 19-Dec-2016
681,Revenue,CAHD,Home Care - Elderly - South,Other Small Contracts,Cherish Able Care Limited,5979.16, 02-Dec-2016
682,Revenue,CAHD,Home Care - Elderly - North,Other Small Contracts,Cherish Able Care Limited,68.48, 02-Dec-2016
683,Revenue,CAHD,Home Care - Elderly - South,Other Small Contracts,Cherish Able Care Limited,5726.64, 08-Dec-2016
684,Revenue,CAHD,Home Care - Elderly - North,Other Small Contracts,Cherish Able Care Limited,171.2, 08-Dec-2016
685,Revenue,CAHD,Home Care - Elderly - South,Other Small Contracts,Cherish Able Care Limited,6091.62, 15-Dec-2016
686,Revenue,CAHD,Home Care - Elderly - North,Other Small Contracts,Cherish Able Care Limited,247.52, 15-Dec-2016
687,Revenue,CAHD,Home Care - Elderly - South,Other Small Contracts,Cherish Able Care Limited,6042.14, 23-Dec-2016
688,Revenue,CAHD,Home Care - Elderly - North,Other Small Contracts,Cherish Able Care Limited,247.52, 23-Dec-2016
689,Revenue,CAHD,Home Care - Elderly - South,Other Small Contracts,Cherish Able Care Limited,5931.64, 29-Dec-2016
690,Revenue,CAHD,Home Care - Elderly - North,Other Small Contracts,Cherish Able Care Limited,247.52, 29-Dec-2016
691,Revenue,CAHD,Bed purchasing -S28A  Under 65 - North,Permanent Residential,Chescombe Lodge,9237.72, 20-Dec-2016
692,Revenue,CAHD,CSC - Access Response Team,Furniture & Fittings Loose,Child Seat Safety Limited,152.9, 14-Dec-2016
693,Revenue,CAHD,South Hub Offices,Furniture & Fittings Loose,Child Seat Safety Limited,458.7, 14-Dec-2016
694,Revenue,CAHD,Home Care - Elderly - South,Supported Living,Choisy Care Limited,871.2, 01-Dec-2016
695,Revenue,CAHD,18-25 Year Olds,Permanent Residential,Chosen Care Ltd  Citibase Watford,7591.04, 20-Dec-2016
696,Revenue,CAHD,Bed Purchasing - Elderly S117- North,Permanent Residential,Chosen Care Ltd  Citibase Watford,24264.93, 20-Dec-2016
697,Revenue,CAHD,Jointly Funded H&SC Packages,Permanent Residential,Chosen Care Ltd  Citibase Watford,24264.73, 20-Dec-2016
698,Revenue,CAHD,Bed Purchasing - Elderly S117- North,Permanent Residential,Chosen Care Ltd  Citibase Watford,24264.93, 20-Dec-2016
699,Revenue,CAHD,Jointly Funded H&SC Packages,Permanent Residential,Chosen Care Ltd  Citibase Watford,24264.73, 20-Dec-2016
700,Revenue,CAHD,Bed Purchasing - Elderly S117- North,Permanent Residential,Chosen Care Ltd  Citibase Watford,4995.72, 20-Dec-2016
701,Revenue,CAHD,Jointly Funded H&SC Packages,Permanent Residential,Chosen Care Ltd  Citibase Watford,4995.68, 20-Dec-2016
702,Revenue,CAHD,18-25 Year Olds,Permanent Residential,Chosen Care Ltd  Citibase Watford,5995.48, 20-Dec-2016
703,Revenue,CAHD,Health Inequalities,Other Small Contracts,Christine Wheeler Support Groups,500, 29-Dec-2016
704,Revenue,CAHD,Health Inequalities,Other Small Contracts,Christine Wheeler Support Groups,500, 29-Dec-2016
705,Revenue,CAHD,Health Inequalities,Other Small Contracts,Christine Wheeler Support Groups,500, 29-Dec-2016
706,Revenue,CAHD,Tenancy Start Up Scheme,Other Supplies & Services,Individual,700, 02-Dec-2016
707,Revenue,CAHD,Bed Purchasing - Southmead Hospital,Permanent Nursing,Churchill Property Services,2221.04, 20-Dec-2016
708,Revenue,CAHD,Learning Difficulties,Other Supplies & Services,Circadian Trust,825.5, 01-Dec-2016
709,Revenue,CAHD,Learning Difficulties,Other Supplies & Services,Circadian Trust,635, 29-Dec-2016
710,Revenue,CAHD,Bed Purchasing - Southmead Hospital,Permanent Nursing,Clarence Park Nursing Home,658, 20-Dec-2016
711,Revenue,CAHD,Bed Purchasing - South,Permanent Residential,Cleeve Lodge,1196.28, 20-Dec-2016
712,Revenue,CAHD,Bed Purchasing - South,Permanent Residential,Cleeve Lodge,2331.28, 20-Dec-2016
713,Revenue,CAHD,Bed Purchasing - South,Permanent Residential,Cleeve Lodge,2493.44, 20-Dec-2016
714,Revenue,CAHD,Bed Purchasing - South,Permanent Residential,Cleeve Lodge,2454.84, 20-Dec-2016
715,Revenue,CAHD,Bed purchasing - Under 65s PWLD - North,Permanent Residential,Clerkenleap Barn,11039.9, 20-Dec-2016
716,Revenue,CAHD,Bed purchasing - Under 65s PWLD - North,Permanent Residential,Clerkenleap Barn,5944.56, 20-Dec-2016
717,Revenue,CAHD,Bed Purchasing - South,Permanent Residential,Collingwood Residential Home,2120.4, 20-Dec-2016
718,Revenue,CAHD,Bed Purchasing - Southmead Hospital,Respite Planned - Residential,Collingwood Residential Home,2320, 20-Dec-2016
719,Revenue,CAHD,Bed Purchasing - Southmead Hospital,Respite Planned - Residential,Collingwood Residential Home,1160, 20-Dec-2016
720,Revenue,CAHD,Bed Purchasing - Southmead Hospital,Permanent Residential,Collingwood Residential Home,2320, 20-Dec-2016
721,Revenue,CAHD,Bed Purchasing - South,Permanent Residential,Collingwood Residential Home,2120.4, 20-Dec-2016
722,Revenue,CAHD,Home Care - Elderly - South,Day Care / Social Activities,Collingwood Residential Home,553.44, 20-Dec-2016
723,Revenue,CAHD,Bed Purchasing - South,Permanent Residential,Collingwood Residential Home,2200, 20-Dec-2016
724,Revenue,CAHD,Bed Purchasing - South,Permanent Residential,Collingwood Residential Home,1957.44, 20-Dec-2016
725,Revenue,CAHD,CSC - Vinney Green Secure Unit,R & M by Departments,Complete Weed Control (North Wessex) Ltd,587, 14-Dec-2016
726,Revenue,CAHD,Bed and Breakfast,Bed & Breakfast,Connolly & Callaghan Limited,511, 09-Dec-2016
727,Revenue,CAHD,Bed and Breakfast,Bed & Breakfast,Connolly & Callaghan Limited,476, 09-Dec-2016
728,Revenue,CAHD,Bed and Breakfast,Bed & Breakfast,Connolly & Callaghan Limited,441, 07-Dec-2016
729,Revenue,CAHD,Bed and Breakfast,Bed & Breakfast,Connolly & Callaghan Limited,546, 09-Dec-2016
730,Revenue,CAHD,Bed and Breakfast,Bed & Breakfast,Connolly & Callaghan Limited,581, 09-Dec-2016
731,Revenue,CAHD,Bed and Breakfast,Bed & Breakfast,Connolly & Callaghan Limited,546, 09-Dec-2016
732,Revenue,CAHD,Bed and Breakfast,Bed & Breakfast,Connolly & Callaghan Limited,546, 07-Dec-2016
733,Revenue,CAHD,Bed and Breakfast,Bed & Breakfast,Connolly & Callaghan Limited,476, 09-Dec-2016
734,Revenue,CAHD,Bed and Breakfast,Bed & Breakfast,Connolly & Callaghan Limited,476, 09-Dec-2016
735,Revenue,CAHD,Bed and Breakfast,Bed & Breakfast,Connolly & Callaghan Limited,546, 07-Dec-2016
736,Revenue,CAHD,Bed and Breakfast,Bed & Breakfast,Connolly & Callaghan Limited,546, 09-Dec-2016
737,Revenue,CAHD,Bed and Breakfast,Bed & Breakfast,Connolly & Callaghan Limited,616, 09-Dec-2016
738,Revenue,CAHD,Bed and Breakfast,Bed & Breakfast,Connolly & Callaghan Limited,511, 09-Dec-2016
739,Revenue,CAHD,Bed and Breakfast,Bed & Breakfast,Connolly & Callaghan Limited,476, 09-Dec-2016
740,Revenue,CAHD,Bed and Breakfast,Bed & Breakfast,Connolly & Callaghan Limited,476, 09-Dec-2016
741,Revenue,CAHD,Bed and Breakfast,Bed & Breakfast,Connolly & Callaghan Limited,511, 09-Dec-2016
742,Revenue,CAHD,Bed and Breakfast,Bed & Breakfast,Connolly & Callaghan Limited,546, 07-Dec-2016
743,Revenue,CAHD,Bed and Breakfast,Bed & Breakfast,Connolly & Callaghan Limited,441, 09-Dec-2016
744,Revenue,CAHD,Bed and Breakfast,Bed & Breakfast,Connolly & Callaghan Limited,791, 07-Dec-2016
745,Revenue,CAHD,Bed and Breakfast,Bed & Breakfast,Connolly & Callaghan Limited,441, 02-Dec-2016
746,Revenue,CAHD,Bed and Breakfast,Bed & Breakfast,Connolly & Callaghan Limited,546, 05-Dec-2016
747,Revenue,CAHD,Bed and Breakfast,Bed & Breakfast,Connolly & Callaghan Limited,476, 02-Dec-2016
748,Revenue,CAHD,Bed and Breakfast,Bed & Breakfast,Connolly & Callaghan Limited,546, 02-Dec-2016
749,Revenue,CAHD,Bed and Breakfast,Bed & Breakfast,Connolly & Callaghan Limited,476, 05-Dec-2016
750,Revenue,CAHD,Bed and Breakfast,Bed & Breakfast,Connolly & Callaghan Limited,546, 02-Dec-2016
751,Revenue,CAHD,Bed and Breakfast,Bed & Breakfast,Connolly & Callaghan Limited,546, 05-Dec-2016
752,Revenue,CAHD,Bed and Breakfast,Bed & Breakfast,Connolly & Callaghan Limited,511, 02-Dec-2016
753,Revenue,CAHD,Bed and Breakfast,Bed & Breakfast,Connolly & Callaghan Limited,476, 05-Dec-2016
754,Revenue,CAHD,Bed and Breakfast,Bed & Breakfast,Connolly & Callaghan Limited,546, 02-Dec-2016
755,Revenue,CAHD,Bed and Breakfast,Bed & Breakfast,Connolly & Callaghan Limited,791, 02-Dec-2016
756,Revenue,CAHD,Bed and Breakfast,Bed & Breakfast,Connolly & Callaghan Limited,441, 13-Dec-2016
757,Revenue,CAHD,Bed and Breakfast,Bed & Breakfast,Connolly & Callaghan Limited,581, 13-Dec-2016
758,Revenue,CAHD,Bed and Breakfast,Bed & Breakfast,Connolly & Callaghan Limited,546, 13-Dec-2016
759,Revenue,CAHD,Bed and Breakfast,Bed & Breakfast,Connolly & Callaghan Limited,476, 13-Dec-2016
760,Revenue,CAHD,Bed and Breakfast,Bed & Breakfast,Connolly & Callaghan Limited,546, 13-Dec-2016
761,Revenue,CAHD,Bed and Breakfast,Bed & Breakfast,Connolly & Callaghan Limited,476, 21-Dec-2016
762,Revenue,CAHD,Bed and Breakfast,Bed & Breakfast,Connolly & Callaghan Limited,546, 13-Dec-2016
763,Revenue,CAHD,Bed and Breakfast,Bed & Breakfast,Connolly & Callaghan Limited,616, 13-Dec-2016
764,Revenue,CAHD,Bed and Breakfast,Bed & Breakfast,Connolly & Callaghan Limited,511, 13-Dec-2016
765,Revenue,CAHD,Bed and Breakfast,Bed & Breakfast,Connolly & Callaghan Limited,476, 13-Dec-2016
766,Revenue,CAHD,Bed and Breakfast,Bed & Breakfast,Connolly & Callaghan Limited,546, 13-Dec-2016
767,Revenue,CAHD,Bed and Breakfast,Bed & Breakfast,Connolly & Callaghan Limited,791, 13-Dec-2016
768,Revenue,CAHD,Bed and Breakfast,Bed & Breakfast,Connolly & Callaghan Limited,441, 16-Dec-2016
769,Revenue,CAHD,Bed and Breakfast,Bed & Breakfast,Connolly & Callaghan Limited,776, 16-Dec-2016
770,Revenue,CAHD,Bed and Breakfast,Bed & Breakfast,Connolly & Callaghan Limited,581, 16-Dec-2016
771,Revenue,CAHD,Bed and Breakfast,Bed & Breakfast,Connolly & Callaghan Limited,546, 16-Dec-2016
772,Revenue,CAHD,Bed and Breakfast,Bed & Breakfast,Connolly & Callaghan Limited,476, 16-Dec-2016
773,Revenue,CAHD,Bed and Breakfast,Bed & Breakfast,Connolly & Callaghan Limited,476, 19-Dec-2016
774,Revenue,CAHD,Bed and Breakfast,Bed & Breakfast,Connolly & Callaghan Limited,546, 16-Dec-2016
775,Revenue,CAHD,Bed and Breakfast,Bed & Breakfast,Connolly & Callaghan Limited,476, 19-Dec-2016
776,Revenue,CAHD,Bed and Breakfast,Bed & Breakfast,Connolly & Callaghan Limited,546, 16-Dec-2016
777,Revenue,CAHD,Bed and Breakfast,Bed & Breakfast,Connolly & Callaghan Limited,616, 21-Dec-2016
778,Revenue,CAHD,Bed and Breakfast,Bed & Breakfast,Connolly & Callaghan Limited,511, 16-Dec-2016
779,Revenue,CAHD,Bed and Breakfast,Bed & Breakfast,Connolly & Callaghan Limited,476, 16-Dec-2016
780,Revenue,CAHD,Bed and Breakfast,Bed & Breakfast,Connolly & Callaghan Limited,546, 16-Dec-2016
781,Revenue,CAHD,Bed and Breakfast,Bed & Breakfast,Connolly & Callaghan Limited,791, 16-Dec-2016
782,Revenue,CAHD,Bed and Breakfast,Bed & Breakfast,Connolly & Callaghan Limited,441, 28-Dec-2016
783,Revenue,CAHD,Bed and Breakfast,Bed & Breakfast,Connolly & Callaghan Limited,546, 28-Dec-2016
784,Revenue,CAHD,Bed and Breakfast,Bed & Breakfast,Connolly & Callaghan Limited,476, 28-Dec-2016
785,Revenue,CAHD,Bed and Breakfast,Bed & Breakfast,Connolly & Callaghan Limited,476, 28-Dec-2016
786,Revenue,CAHD,Bed and Breakfast,Bed & Breakfast,Connolly & Callaghan Limited,546, 28-Dec-2016
787,Revenue,CAHD,Bed and Breakfast,Bed & Breakfast,Connolly & Callaghan Limited,476, 28-Dec-2016
788,Revenue,CAHD,Bed and Breakfast,Bed & Breakfast,Connolly & Callaghan Limited,546, 28-Dec-2016
789,Revenue,CAHD,Bed and Breakfast,Bed & Breakfast,Connolly & Callaghan Limited,616, 28-Dec-2016
790,Revenue,CAHD,Bed and Breakfast,Bed & Breakfast,Connolly & Callaghan Limited,476, 28-Dec-2016
791,Revenue,CAHD,Bed and Breakfast,Bed & Breakfast,Connolly & Callaghan Limited,511, 28-Dec-2016
792,Revenue,CAHD,Bed and Breakfast,Bed & Breakfast,Connolly & Callaghan Limited,476, 28-Dec-2016
793,Revenue,CAHD,Bed and Breakfast,Bed & Breakfast,Connolly & Callaghan Limited,546, 28-Dec-2016
794,Revenue,CAHD,Bed Purchasing - S28A - Over 65- North,Permanent Residential,Cream Ii Ltd  Longrun House,8765.56, 20-Dec-2016
795,Revenue,CAHD,Bed Purchasing - South,Permanent Residential,Cream Ii Ltd  Longrun House,3083.64, 20-Dec-2016
796,Revenue,CAHD,Jointly Funded H&SC Packages,Permanent Residential,Cream Ii Ltd  Longrun House,2683.04, 20-Dec-2016
797,Revenue,CAHD,Bed purchasing -S28A  Under 65 - North,Permanent Residential,Creedy Court,10026.24, 20-Dec-2016
798,Revenue,CAHD,Bed Purchasing - S28A - Over 65- North,Permanent Residential,Creedy Court,8424.52, 20-Dec-2016
799,Revenue,CAHD,Bed Purchasing - North,Permanent Residential,Creedy Court,13295.84, 20-Dec-2016
800,Revenue,CAHD,Independent Special Placements - Pre 16,Other Private Contractors,Cruckton Hall School,39234, 09-Dec-2016
801,Revenue,CAHD,CSC - Safeguarding Board,Training Expenses,Cruidin Training and Consultancy Ltd,2105, 23-Dec-2016
802,Revenue,CAHD,TSG Practice Placements,Training Expenses,Cruidin Training and Consultancy Ltd,2102.3, 23-Dec-2016
803,Revenue,CAHD,Brokerage and Information Service,Grants to Voluntary Bodies,Curo Care & Support,33845, 29-Dec-2016
804,Revenue,CAHD,Bed Purchasing - South,Permanent Residential,Daneswood,11606.96, 20-Dec-2016
805,Revenue,CAHD,Bed Purchasing - North,Permanent Residential,Daneswood,9710.32, 20-Dec-2016
806,Revenue,CAHD,Bed Purchasing - Elderly S117- North,Permanent Nursing,Danshell Healthcare Group,10285.72, 20-Dec-2016
807,Revenue,CAHD,Jointly Funded H&SC Packages,Permanent Nursing,Danshell Healthcare Group,1526.28, 20-Dec-2016
808,Revenue,CAHD,Learning Difficulties PSL,Other Supplies & Services,Individual,2105.5, 22-Dec-2016
809,Revenue,CAHD,CSC - Adoption Support Fund,Post Adoption,Individual,538, 28-Dec-2016
810,Revenue,CAHD,Public Health Project Funding,Membership Fees,Debigno Ltd trading as Pathway Analytics,750, 01-Dec-2016
811,Revenue,CAHD,Home Care - Elderly - South,Supported Living,Design House,2711.04, 20-Dec-2016
812,Revenue,CAHD,Home Care - Elderly - South,Supported Living,Design House,2898.08, 20-Dec-2016
813,Revenue,CAHD,Home Care - Elderly - South,Supported Living,Design House,2964.08, 20-Dec-2016
814,Revenue,CAHD,Home Care - Elderly - South,Supported Living,Design House,2832.08, 20-Dec-2016
815,Revenue,CAHD,Home Care - Elderly - South,Supported Living,Design House,2496.52, 20-Dec-2016
816,Revenue,CAHD,Home Care - Elderly - South,Supported Living,Design House,2496.52, 20-Dec-2016
817,Revenue,CAHD,Home Care - Elderly - South,Supported Living,Design House,1794.4, 20-Dec-2016
818,Revenue,CAHD,Home Care - Elderly - South,Supported Living,Design House,1794.4, 20-Dec-2016
819,Revenue,CAHD,Home Care - Elderly - South,Supported Living,Design House,2381.04, 20-Dec-2016
820,Revenue,CAHD,Home Care - Elderly - South,Supported Living,Design House,3852.08, 20-Dec-2016
821,Revenue,CAHD,Home Care - Elderly - South,Supported Living,Design House,2889.8, 20-Dec-2016
822,Revenue,CAHD,Home Care - Elderly - South,Supported Living,Design House,2064.14, 20-Dec-2016
823,Revenue,CAHD,Home Care - Elderly - South,Supported Living,Design House,2744.04, 20-Dec-2016
824,Revenue,CAHD,Home Care - Elderly - South,Supported Living,Design House,2793.56, 20-Dec-2016
825,Revenue,CAHD,Home Care - Elderly - South,Supported Living,Design House,2135.92, 20-Dec-2016
826,Revenue,CAHD,Home Care - Elderly - South,Supported Living,Design House,1794.4, 20-Dec-2016
827,Revenue,CAHD,Home Care - Elderly - South,Supported Living,Design House,1794.4, 20-Dec-2016
828,Revenue,CAHD,Home Care - Elderly - South,Supported Living,Design House,2135.92, 20-Dec-2016
829,Revenue,CAHD,Bed Purchasing - South,Permanent Residential,Devon & Cornwall Autistic Community Trus,9403.8, 20-Dec-2016
830,Revenue,CAHD,Health Inequalities,Other Small Contracts,Dhek Bhal,500, 29-Dec-2016
831,Revenue,CAHD,Bed Purchasing - South,Permanent Residential,Dimensions  Suite 2,5327.04, 20-Dec-2016
832,Revenue,CAHD,SACRE,Consultants Fees,Diocesan Board of Finance Limited,2262.25, 01-Dec-2016
833,Revenue,CAHD,CSC - Legal Fees,Professional Fees,DNA Worldwide Group,892, 05-Dec-2016
834,Revenue,CAHD,Community Support - North,Preventative Assistance,Dobbins Industrial Cleaning Limited,580, 09-Dec-2016
835,Revenue,CAHD,Home Care - Elderly - South,Day Care / Social Activities,DoCare Ltd,71.4, 16-Dec-2016
836,Revenue,CAHD,Home Care - Elderly - South,Other Small Contracts,DoCare Ltd,306, 16-Dec-2016
837,Revenue,CAHD,Home Care - Elderly - North,Other Small Contracts,DoCare Ltd,5559.3, 16-Dec-2016
838,Revenue,CAHD,Home Care - Elderly - South,Day Care / Social Activities,DoCare Ltd,76.5, 16-Dec-2016
839,Revenue,CAHD,Home Care - Elderly - South,Other Small Contracts,DoCare Ltd,306, 16-Dec-2016
840,Revenue,CAHD,Home Care - Elderly - North,Other Small Contracts,DoCare Ltd,5869.9, 16-Dec-2016
841,Revenue,CAHD,Home Care - Elderly - South,Day Care / Social Activities,DoCare Ltd,71.4, 16-Dec-2016
842,Revenue,CAHD,Home Care - Elderly - South,Other Small Contracts,DoCare Ltd,520.2, 16-Dec-2016
843,Revenue,CAHD,Home Care - Elderly - North,Other Small Contracts,DoCare Ltd,5651.2, 16-Dec-2016
844,Revenue,CAHD,Home Care - Elderly - South,Day Care / Social Activities,DoCare Ltd,66.3, 29-Dec-2016
845,Revenue,CAHD,Home Care - Elderly - South,Other Small Contracts,DoCare Ltd,789.6, 29-Dec-2016
846,Revenue,CAHD,Home Care - Elderly - North,Other Small Contracts,DoCare Ltd,5144.5, 29-Dec-2016
847,Revenue,CAHD,Statemented Support Academies,Schools Funding,Downend School,583.3, 09-Dec-2016
848,Revenue,CAHD,Statemented Support Academies,Schools Funding,Downend School,583.3, 23-Dec-2016
849,Revenue,CAHD,Statemented Support Academies,Schools Funding,Downend School,983.3, 09-Dec-2016
850,Revenue,CAHD,Statemented Support Academies,Schools Funding,Downend School,983.3, 23-Dec-2016
851,Revenue,CAHD,Statemented Support Academies,Schools Funding,Downend School,574.97, 09-Dec-2016
852,Revenue,CAHD,Statemented Support Academies,Schools Funding,Downend School,574.97, 23-Dec-2016
853,Revenue,CAHD,Statemented Support Academies,Schools Funding,Downend School,591.64, 09-Dec-2016
854,Revenue,CAHD,Statemented Support Academies,Schools Funding,Downend School,591.64, 23-Dec-2016
855,Revenue,CAHD,Statemented Support Academies,Schools Funding,Downend School,1008.3, 09-Dec-2016
856,Revenue,CAHD,Statemented Support Academies,Schools Funding,Downend School,1008.3, 23-Dec-2016
857,Revenue,CAHD,Statemented Support Academies,Schools Funding,Downend School,666.64, 09-Dec-2016
858,Revenue,CAHD,Statemented Support Academies,Schools Funding,Downend School,666.64, 23-Dec-2016
859,Revenue,CAHD,Statemented Support Academies,Schools Funding,Downend School,583.3, 09-Dec-2016
860,Revenue,CAHD,Statemented Support Academies,Schools Funding,Downend School,583.3, 23-Dec-2016
861,Revenue,CAHD,Statemented Support Academies,Schools Funding,Downend School,583.3, 09-Dec-2016
862,Revenue,CAHD,Statemented Support Academies,Schools Funding,Downend School,583.3, 23-Dec-2016
863,Revenue,CAHD,Sexual Health,Other Supplies & Services,Dr Annie Egginton,940, 14-Dec-2016
864,Revenue,CAHD,Social Lettings Agency,Other Supplies & Services,Individual,605.64, 23-Dec-2016
865,Revenue,CAHD,CSC - Adoption Support Fund,Post Adoption,Individual,689.6, 08-Dec-2016
866,Revenue,CAHD,Bed Purchasing - North,Permanent Nursing,Drakes Court,2259.56, 20-Dec-2016
867,Revenue,CAHD,South Glos Users in South Glos Homes,Permanent Nursing,Drakes Court,736.61, 20-Dec-2016
868,Revenue,CAHD,South Glos Users in South Glos Homes,Permanent Nursing,Drakes Court,625, 20-Dec-2016
869,Revenue,CAHD,South Glos Users in South Glos Homes,Permanent Nursing,Drakes Court,625, 20-Dec-2016
870,Revenue,CAHD,South Glos Users in South Glos Homes,Permanent Nursing,Drakes Court,625, 20-Dec-2016
871,Revenue,CAHD,Bed Purchasing - Southmead Hospital,Permanent Nursing,Drakes Court,1966.72, 20-Dec-2016
872,Revenue,CAHD,South Glos Users in South Glos Homes,Permanent Nursing,Drakes Court,625, 20-Dec-2016
873,Revenue,CAHD,Bed Purchasing - Southmead Hospital,Permanent Nursing,Drakes Court,1888.64, 20-Dec-2016
874,Revenue,CAHD,South Glos Users in South Glos Homes,Permanent Nursing,Drakes Court,625, 20-Dec-2016
875,Revenue,CAHD,South Glos Users in South Glos Homes,Permanent Nursing,Drakes Court,625, 20-Dec-2016
876,Revenue,CAHD,Bed Purchasing - North,Permanent Nursing,Drakes Court,1888.64, 20-Dec-2016
877,Revenue,CAHD,South Glos Users in South Glos Homes,Permanent Nursing,Drakes Court,625, 20-Dec-2016
878,Revenue,CAHD,Bed Purchasing - North,Respite Planned - Nursing,Drakes Court,2700, 20-Dec-2016
879,Revenue,CAHD,Bed Purchasing - North,Respite Planned - Nursing,Drakes Court,1350, 20-Dec-2016
880,Revenue,CAHD,South Glos Users in South Glos Homes,Permanent Nursing,Drakes Court,625, 20-Dec-2016
881,Revenue,CAHD,South Glos Users in South Glos Homes,Permanent Nursing,Drakes Court,625, 20-Dec-2016
882,Revenue,CAHD,Bed Purchasing - North,Permanent Nursing,Drakes Court,1888.64, 20-Dec-2016
883,Revenue,CAHD,Bed Purchasing - Southmead Hospital,Permanent Nursing,Drakes Court,1888.64, 20-Dec-2016
884,Revenue,CAHD,South Glos Users in South Glos Homes,Permanent Nursing,Drakes Court,625, 20-Dec-2016
885,Revenue,CAHD,Bed Purchasing - North,Permanent Residential,Drakes Court,1831.32, 20-Dec-2016
886,Revenue,CAHD,Bed Purchasing - North,Permanent Nursing,Drakes Court,2254, 20-Dec-2016
887,Revenue,CAHD,South Glos Users in South Glos Homes,Permanent Nursing,Drakes Court,625, 20-Dec-2016
888,Revenue,CAHD,Bed Purchasing - Southmead Hospital,Fees & Charges Income - General,Drakes Court,958.35, 20-Dec-2016
889,Revenue,CAHD,South Glos Users in South Glos Homes,Permanent Nursing,Drakes Court,625, 20-Dec-2016
890,Revenue,CAHD,South Glos Users in South Glos Homes,Permanent Nursing,Drakes Court,625, 20-Dec-2016
891,Revenue,CAHD,South Glos Users in South Glos Homes,Permanent Nursing,Drakes Court,625, 20-Dec-2016
892,Revenue,CAHD,MH Purchasing - Younger,Permanent Residential,Dunraven House,2243.8, 20-Dec-2016
893,Revenue,CAHD,Bed and Breakfast,Bed & Breakfast,E J Bartlett,490, 12-Dec-2016
894,Revenue,CAHD,Bed and Breakfast,Bed & Breakfast,E J Bartlett,434, 05-Dec-2016
895,Revenue,CAHD,Bed and Breakfast,Bed & Breakfast,E J Bartlett,420, 05-Dec-2016
896,Revenue,CAHD,Bed and Breakfast,Bed & Breakfast,E J Bartlett,490, 19-Dec-2016
897,Revenue,CAHD,Bed and Breakfast,Bed & Breakfast,E J Bartlett,434, 13-Dec-2016
898,Revenue,CAHD,Bed and Breakfast,Bed & Breakfast,E J Bartlett,420, 13-Dec-2016
899,Revenue,CAHD,Bed and Breakfast,Bed & Breakfast,E J Bartlett,490, 20-Dec-2016
900,Revenue,CAHD,Bed and Breakfast,Bed & Breakfast,E J Bartlett,420, 20-Dec-2016
901,Revenue,CAHD,Bed and Breakfast,Bed & Breakfast,E J Bartlett,490, 28-Dec-2016
902,Revenue,CAHD,Bed and Breakfast,Bed & Breakfast,E J Bartlett,420, 28-Dec-2016
903,Revenue,CAHD,Bed and Breakfast,Bed & Breakfast,E J Bartlett,490, 29-Dec-2016
904,Revenue,CAHD,Bed Purchasing - North,Permanent Residential,East Court,2614.48, 20-Dec-2016
905,Revenue,CAHD,Home Care - Elderly - South,Day Care / Social Activities,Easton Community Centre,533.28, 20-Dec-2016
906,Revenue,CAHD,Home Care - Elderly - South,Day Care / Social Activities,Easton Community Centre,533.28, 20-Dec-2016
907,Revenue,CAHD,Home Care - Elderly - North,Day Care / Social Activities,Easton Community Centre,533.28, 20-Dec-2016
908,Revenue,CAHD,Bed Purchasing - North,Permanent Residential,Edgecumbe Lodge,10735, 20-Dec-2016
909,Revenue,CAHD,Bed Purchasing - North,Permanent Residential,Edgecumbe Lodge,2260, 20-Dec-2016
910,Revenue,CAHD,Bed Purchasing - North,Fees & Charges Income - General,Edgecumbe Lodge,3790.47, 20-Dec-2016
911,Revenue,CAHD,Bed Purchasing - Southmead Hospital,Permanent Residential,Edgecumbe Lodge,1831.32, 20-Dec-2016
912,Revenue,CAHD,Bed Purchasing - South,Permanent Residential,Edgecumbe Lodge,2101.44, 20-Dec-2016
913,Revenue,CAHD,Bed Purchasing - South,Permanent Residential,Edgecumbe Lodge,2128.56, 20-Dec-2016
914,Revenue,CAHD,Bed Purchasing - North,Permanent Residential,Edgecumbe Lodge,2290.72, 20-Dec-2016
915,Revenue,CAHD,Bed Purchasing - South,Permanent Residential,Edgecumbe Lodge,2128.56, 20-Dec-2016
916,Revenue,CAHD,Bed Purchasing - South,Permanent Residential,Edgecumbe Lodge,2400, 20-Dec-2016
917,Revenue,CAHD,Bed Purchasing - South,Permanent Residential,Edgecumbe Lodge,2228.57, 20-Dec-2016
918,Revenue,CAHD,Bed Purchasing - Southmead Hospital,Permanent Residential,Edgecumbe Lodge,2400, 20-Dec-2016
919,Revenue,CAHD,Bed Purchasing - North,Permanent Residential,Edgecumbe Lodge,2128.56, 20-Dec-2016
920,Revenue,CAHD,Bed Purchasing - Southmead Hospital,Permanent Residential,Edgemont House Ltd,1824.48, 20-Dec-2016
921,Revenue,CAHD,Bed Purchasing - South,Permanent Residential,Edgemont House Ltd,5631.43, 20-Dec-2016
922,Revenue,CAHD,Bed Purchasing - South,Permanent Residential,Edgemont House Ltd,2160, 20-Dec-2016
923,Revenue,CAHD,Bed Purchasing - South,Fees & Charges Income - General,Edgemont House Ltd,1344.34, 20-Dec-2016
924,Revenue,CAHD,Bed Purchasing - Southmead Hospital,Respite Planned - Residential,Edgemont House Ltd,2320, 20-Dec-2016
925,Revenue,CAHD,Bed Purchasing - South,Permanent Residential,Edgemont House Ltd,1954.68, 20-Dec-2016
926,Revenue,CAHD,South Glos Users in South Glos Homes,Permanent Nursing,Edgemont View Nursing Home,625, 20-Dec-2016
927,Revenue,CAHD,South Glos Users in South Glos Homes,Permanent Nursing,Edgemont View Nursing Home,625, 20-Dec-2016
928,Revenue,CAHD,South Glos Users in South Glos Homes,Permanent Nursing,Edgemont View Nursing Home,625, 20-Dec-2016
929,Revenue,CAHD,South Glos Users in South Glos Homes,Permanent Nursing,Edgemont View Nursing Home,625, 20-Dec-2016
930,Revenue,CAHD,South Glos Users in South Glos Homes,Permanent Nursing,Edgemont View Nursing Home,625, 20-Dec-2016
931,Revenue,CAHD,Bed Purchasing - South,Permanent Nursing,Edgemont View Nursing Home,21257.14, 20-Dec-2016
932,Revenue,CAHD,Bed Purchasing - South,Permanent Nursing,Edgemont View Nursing Home,1395, 20-Dec-2016
933,Revenue,CAHD,South Glos Users in South Glos Homes,Permanent Nursing,Edgemont View Nursing Home,625, 20-Dec-2016
934,Revenue,CAHD,Bed Purchasing - South,Fees & Charges Income - General,Edgemont View Nursing Home,3404.42, 20-Dec-2016
935,Revenue,CAHD,South Glos Users in South Glos Homes,Permanent Nursing,Edgemont View Nursing Home,625, 20-Dec-2016
936,Revenue,CAHD,South Glos Users in South Glos Homes,Permanent Nursing,Edgemont View Nursing Home,625, 20-Dec-2016
937,Revenue,CAHD,South Glos Users in South Glos Homes,Permanent Nursing,Edgemont View Nursing Home,625, 20-Dec-2016
938,Revenue,CAHD,South Glos Users in South Glos Homes,Permanent Nursing,Edgemont View Nursing Home,625, 20-Dec-2016
939,Revenue,CAHD,South Glos Users in South Glos Homes,Permanent Nursing,Edgemont View Nursing Home,625, 20-Dec-2016
940,Revenue,CAHD,Bed Purchasing - South,Permanent Nursing,Edgemont View Nursing Home,2299.08, 20-Dec-2016
941,Revenue,CAHD,South Glos Users in South Glos Homes,Permanent Nursing,Edgemont View Nursing Home,625, 20-Dec-2016
942,Revenue,CAHD,Bed Purchasing - South,Permanent Nursing,Edgemont View Nursing Home,2182.88, 20-Dec-2016
943,Revenue,CAHD,South Glos Users in South Glos Homes,Permanent Nursing,Edgemont View Nursing Home,625, 20-Dec-2016
944,Revenue,CAHD,South Glos Users in South Glos Homes,Permanent Nursing,Edgemont View Nursing Home,625, 20-Dec-2016
945,Revenue,CAHD,South Glos Users in South Glos Homes,Permanent Nursing,Edgemont View Nursing Home,625, 20-Dec-2016
946,Revenue,CAHD,South Glos Users in South Glos Homes,Permanent Nursing,Edgemont View Nursing Home,625, 20-Dec-2016
947,Revenue,CAHD,South Glos Users in South Glos Homes,Permanent Nursing,Edgemont View Nursing Home,625, 20-Dec-2016
948,Revenue,CAHD,Bed Purchasing - Southmead Hospital,Permanent Nursing,Edgemont View Nursing Home,2880, 20-Dec-2016
949,Revenue,CAHD,South Glos Users in South Glos Homes,Permanent Nursing,Edgemont View Nursing Home,625, 20-Dec-2016
950,Revenue,CAHD,Planning and Partnerships Procurement,Other Supplies & Services,Eldercare,3092.7, 29-Dec-2016
951,Revenue,CAHD,Supporting People Programme,Grants to Voluntary Bodies,Elim Housing Association Limited,5139.16, 01-Dec-2016
952,Revenue,CAHD,Supporting People Programme,Grants to Voluntary Bodies,Elim Housing Association Limited,5139.16, 29-Dec-2016
953,Revenue,CAHD,Home Care - Elderly - South,Day Care / Social Activities,Elite Home Care Ltd,188.16, 13-Dec-2016
954,Revenue,CAHD,Home Care - Elderly - South,Other Small Contracts,Elite Home Care Ltd,7251.22, 13-Dec-2016
955,Revenue,CAHD,Home Care - Elderly - North,Other Small Contracts,Elite Home Care Ltd,107.52, 13-Dec-2016
956,Revenue,CAHD,Home Care - Elderly - South,Day Care / Social Activities,Elite Home Care Ltd,188.16, 20-Dec-2016
957,Revenue,CAHD,Home Care - Elderly - South,Other Small Contracts,Elite Home Care Ltd,7394.58, 20-Dec-2016
958,Revenue,CAHD,Home Care - Elderly - North,Other Small Contracts,Elite Home Care Ltd,103.04, 20-Dec-2016
959,Revenue,CAHD,Home Care - Elderly - South,Day Care / Social Activities,Elite Home Care Ltd,192.64, 29-Dec-2016
960,Revenue,CAHD,Home Care - Elderly - South,Other Small Contracts,Elite Home Care Ltd,7058.58, 29-Dec-2016
961,Revenue,CAHD,Home Care - Elderly - North,Other Small Contracts,Elite Home Care Ltd,129.92, 29-Dec-2016
962,Revenue,CAHD,CSC - Care Leavers Support Costs,Educational Supplies & Equipment,Individual,781.2, 16-Dec-2016
963,Revenue,CAHD,Bed Purchasing - North,Permanent Residential,Enable Care & Home Support Limited,31204.86, 19-Dec-2016
964,Revenue,CAHD,Bed Purchasing - North,Permanent Residential,Enable Care & Home Support Limited,5864, 19-Dec-2016
965,Revenue,CAHD,Bed Purchasing - North,Permanent Residential,Epworth House,2762.2, 20-Dec-2016
966,Revenue,CAHD,Home Care - Elderly - South,Other Small Contracts,Everycare (Bristol) Ltd,3306.48, 15-Dec-2016
967,Revenue,CAHD,Home Care - Elderly - North,Other Small Contracts,Everycare (Bristol) Ltd,1966.9, 15-Dec-2016
968,Revenue,CAHD,Home Care - Elderly - South,Other Small Contracts,Everycare (Bristol) Ltd,3098.42, 15-Dec-2016
969,Revenue,CAHD,Home Care - Elderly - North,Other Small Contracts,Everycare (Bristol) Ltd,2214.42, 15-Dec-2016
970,Revenue,CAHD,Home Care - Elderly - South,Other Small Contracts,Everycare (Bristol) Ltd,3098.42, 19-Dec-2016
971,Revenue,CAHD,Home Care - Elderly - North,Other Small Contracts,Everycare (Bristol) Ltd,2103.92, 19-Dec-2016
972,Revenue,CAHD,Schools Specific Grant Income,Other Private Contractors,Exeter Royal Academy For Deaf Education,935, 29-Dec-2016
973,Revenue,CAHD,Independent Special Placements - Pre 16,Other Private Contractors,Exeter Royal Academy For Deaf Education,15858, 29-Dec-2016
974,Revenue,CAHD,South Glos Users in South Glos Homes,Permanent Nursing,Fairview Court,625, 20-Dec-2016
975,Revenue,CAHD,South Glos Users in South Glos Homes,Permanent Nursing,Fairview Court,625, 20-Dec-2016
976,Revenue,CAHD,Bed Purchasing - South,Permanent Nursing,Fairview Court,2992.16, 20-Dec-2016
977,Revenue,CAHD,South Glos Users in South Glos Homes,Permanent Nursing,Fairview Court,625, 20-Dec-2016
978,Revenue,CAHD,Bed Purchasing - Southmead Hospital,Permanent Nursing,Fairview Court,2824.08, 20-Dec-2016
979,Revenue,CAHD,South Glos Users in South Glos Homes,Permanent Nursing,Fairview Court,625, 20-Dec-2016
980,Revenue,CAHD,Bed Purchasing - Southmead Hospital,Permanent Nursing,Fairview Court,6971.43, 20-Dec-2016
981,Revenue,CAHD,South Glos Users in South Glos Homes,Permanent Nursing,Fairview Court,3839.29, 20-Dec-2016
982,Revenue,CAHD,Bed Purchasing - Southmead Hospital,Permanent Nursing,Fairview Court,2628.57, 20-Dec-2016
983,Revenue,CAHD,South Glos Users in South Glos Homes,Permanent Nursing,Fairview Court,625, 20-Dec-2016
984,Revenue,CAHD,Bed Purchasing - Southmead Hospital,Permanent Nursing,Fairview Court,571.43, 20-Dec-2016
985,Revenue,CAHD,South Glos Users in South Glos Homes,Permanent Nursing,Fairview Court,625, 20-Dec-2016
986,Revenue,CAHD,South Glos Users in South Glos Homes,Permanent Nursing,Fairview Court,625, 20-Dec-2016
987,Revenue,CAHD,Bed Purchasing - Southmead Hospital,Permanent Nursing,Fairview Court,2992.16, 20-Dec-2016
988,Revenue,CAHD,South Glos Users in South Glos Homes,Permanent Nursing,Fairview Court,625, 20-Dec-2016
989,Revenue,CAHD,Bed Purchasing - South,Permanent Nursing,Fairview Court,2417.68, 20-Dec-2016
990,Revenue,CAHD,South Glos Users in South Glos Homes,Permanent Nursing,Fairview Court,625, 20-Dec-2016
991,Revenue,CAHD,Bed purchasing - Elderly S117 - South,Permanent Nursing,Fairview Court,2947.08, 20-Dec-2016
992,Revenue,CAHD,South Glos Users in South Glos Homes,Permanent Nursing,Fairview Court,625, 20-Dec-2016
993,Revenue,CAHD,Bed Purchasing - South,Permanent Nursing,Fairview Court,2331.33, 20-Dec-2016
994,Revenue,CAHD,South Glos Users in South Glos Homes,Permanent Nursing,Fairview Court,625, 20-Dec-2016
995,Revenue,CAHD,South Glos Users in South Glos Homes,Permanent Nursing,Fairview Court,2232.14, 20-Dec-2016
996,Revenue,CAHD,South Glos Users in South Glos Homes,Permanent Nursing,Fairview Court,625, 20-Dec-2016
997,Revenue,CAHD,South Glos Users in South Glos Homes,Permanent Nursing,Fairview Court,625, 20-Dec-2016
998,Revenue,CAHD,Bed Purchasing - South,Permanent Nursing,Fairview Court,3200, 20-Dec-2016
999,Revenue,CAHD,South Glos Users in South Glos Homes,Permanent Nursing,Fairview Court,625, 20-Dec-2016
1000,Revenue,CAHD,South Glos Users in South Glos Homes,Permanent Nursing,Fairview Court,625, 20-Dec-2016
1001,Revenue,CAHD,South Glos Users in South Glos Homes,Permanent Nursing,Fairview Court,625, 20-Dec-2016
1002,Revenue,CAHD,Bed Purchasing - South,Permanent Nursing,Fairview Court,2992.16, 20-Dec-2016
1003,Revenue,CAHD,South Glos Users in South Glos Homes,Permanent Nursing,Fairview Court,625, 20-Dec-2016
1004,Revenue,CAHD,Bed Purchasing - Southmead Hospital,Permanent Nursing,Fairview Court,3200, 20-Dec-2016
1005,Revenue,CAHD,South Glos Users in South Glos Homes,Permanent Nursing,Fairview Court,625, 20-Dec-2016
1006,Revenue,CAHD,South Glos Users in South Glos Homes,Permanent Nursing,Fairview Court,625, 20-Dec-2016
1007,Revenue,CAHD,South Glos Users in South Glos Homes,Permanent Nursing,Fairview Court,625, 20-Dec-2016
1008,Revenue,CAHD,Bed Purchasing - Southmead Hospital,Permanent Nursing,Fairview Court,3052, 20-Dec-2016
1009,Revenue,CAHD,South Glos Users in South Glos Homes,Permanent Nursing,Fairview Court,625, 20-Dec-2016
1010,Revenue,CAHD,South Glos Users in South Glos Homes,Permanent Nursing,Fairview Court,625, 20-Dec-2016
1011,Revenue,CAHD,Bed Purchasing - Southmead Hospital,Permanent Nursing,Fairview Court,2775, 20-Dec-2016
1012,Revenue,CAHD,Bed Purchasing - Southmead Hospital,Permanent Nursing,Fairview Court,1387.5, 20-Dec-2016
1013,Revenue,CAHD,South Glos Users in South Glos Homes,Permanent Nursing,Fairview Court,625, 20-Dec-2016
1014,Revenue,CAHD,South Glos Users in South Glos Homes,Permanent Nursing,Fairview Court,625, 20-Dec-2016
1015,Revenue,CAHD,Bed Purchasing - South,Permanent Nursing,Fairview Court,2417.68, 20-Dec-2016
1016,Revenue,CAHD,South Glos Users in South Glos Homes,Permanent Nursing,Fairview Court,625, 20-Dec-2016
1017,Revenue,CAHD,Bed Purchasing - Southmead Hospital,Permanent Nursing,Fairview Court,3052, 20-Dec-2016
1018,Revenue,CAHD,South Glos Users in South Glos Homes,Permanent Nursing,Fairview Court,625, 20-Dec-2016
1019,Revenue,CAHD,Bed Purchasing - North,Permanent Nursing,Fairview Court,2992.16, 20-Dec-2016
1020,Revenue,CAHD,South Glos Users in South Glos Homes,Permanent Nursing,Fairview Court,625, 20-Dec-2016
1021,Revenue,CAHD,Bed Purchasing - South,Permanent Nursing,Fairview Court,2574.32, 20-Dec-2016
1022,Revenue,CAHD,South Glos Users in South Glos Homes,Permanent Nursing,Fairview Court,625, 20-Dec-2016
1023,Revenue,CAHD,Bed Purchasing - South,Permanent Nursing,Fairview Court,2558.56, 20-Dec-2016
1024,Revenue,CAHD,South Glos Users in South Glos Homes,Permanent Nursing,Fairview Court,625, 20-Dec-2016
1025,Revenue,CAHD,Bed purchasing - Elderly S117 - South,Permanent Residential,Fairview House,1998.08, 20-Dec-2016
1026,Revenue,CAHD,Bed Purchasing - Southmead Hospital,Permanent Residential,Fairview House,1831.32, 20-Dec-2016
1027,Revenue,CAHD,Bed Purchasing - South,Permanent Residential,Fairview House,2067.76, 20-Dec-2016
1028,Revenue,CAHD,Bed Purchasing - South,Permanent Residential,Fairview House,1831.32, 20-Dec-2016
1029,Revenue,CAHD,Bed Purchasing - South,Permanent Residential,Fairview House,1831.32, 20-Dec-2016
1030,Revenue,CAHD,Bed Purchasing - South,Permanent Residential,Fairview House,1831.32, 20-Dec-2016
1031,Revenue,CAHD,Bed Purchasing - South,Permanent Residential,Fairview House,1831.32, 20-Dec-2016
1032,Revenue,CAHD,Bed Purchasing - South,Permanent Residential,Fairview House,1831.32, 20-Dec-2016
1033,Revenue,CAHD,Bed Purchasing - South,Permanent Residential,Fairview House,1959.36, 20-Dec-2016
1034,Revenue,CAHD,Bed Purchasing - South,Permanent Residential,Fairview House,1861.52, 20-Dec-2016
1035,Revenue,CAHD,Bed Purchasing - South,Permanent Residential,Fairview House,2090.08, 20-Dec-2016
1036,Revenue,CAHD,Bed Purchasing - Southmead Hospital,Permanent Residential,Faith House,1980.52, 20-Dec-2016
1037,Revenue,CAHD,Bed Purchasing - North,Permanent Residential,Faith House,2600, 20-Dec-2016
1038,Revenue,CAHD,Bed Purchasing - North,Permanent Residential,Faith House,1671.42, 20-Dec-2016
1039,Revenue,CAHD,Post 16 High Needs Placements,Other Private Contractors,Farleigh FEC-Frome Priory,21718.58, 28-Dec-2016
1040,Revenue,CAHD,Post 16 High Needs Placements,Other Private Contractors,Farleigh FEC-Frome Priory,21718.58, 28-Dec-2016
1041,Revenue,CAHD,Bed Purchasing - Southmead Hospital,Permanent Nursing,Field House Care Home,2995, 20-Dec-2016
1042,Revenue,CAHD,Bed Purchasing - Southmead Hospital,Permanent Nursing,Field House Care Home,748.75, 20-Dec-2016
1043,Revenue,CAHD,Bed Purchasing - Southmead Hospital,Fees & Charges Income - General,Field House Care Home,658.37, 20-Dec-2016
1044,Revenue,CAHD,Bed Purchasing - North,Permanent Nursing,Field House Care Home,3113.76, 20-Dec-2016
1045,Revenue,CAHD,Bed Purchasing - Southmead Hospital,Permanent Nursing,Field House Care Home,2876, 20-Dec-2016
1046,Revenue,CAHD,Bed Purchasing - Southmead Hospital,Permanent Nursing,Field House Care Home,3215.12, 20-Dec-2016
1047,Revenue,CAHD,Bed Purchasing - North,Respite Emergency - Residential,Fieldview,9350, 20-Dec-2016
1048,Revenue,CAHD,Bed Purchasing - North,Respite Emergency - Residential,Fieldview,3400, 20-Dec-2016
1049,Revenue,CAHD,Bed Purchasing - North,Permanent Nursing,Fieldview,4000, 20-Dec-2016
1050,Revenue,CAHD,Bed Purchasing - North,Respite Planned - Residential,Fig House,1500, 20-Dec-2016
1051,Revenue,CAHD,Statemented Support Payments to OLAs,Other L.A.'s - General,Filton Avenue Primary School,691.64, 09-Dec-2016
1052,Revenue,CAHD,Statemented Support Payments to OLAs,Other L.A.'s - General,Filton Avenue Primary School,691.64, 23-Dec-2016
1053,Revenue,CAHD,Home Care - Elderly - South,Other Small Contracts,Firstpoint Homecare Ltd,1117.85, 05-Dec-2016
1054,Revenue,CAHD,Home Care - Elderly - North,Day Care / Social Activities,Firstpoint Homecare Ltd,118.5, 05-Dec-2016
1055,Revenue,CAHD,Home Care - Elderly - North,Other Small Contracts,Firstpoint Homecare Ltd,316, 05-Dec-2016
1056,Revenue,CAHD,Home Care - Elderly - South,Other Small Contracts,Firstpoint Homecare Ltd,1323.7, 05-Dec-2016
1057,Revenue,CAHD,Home Care - Elderly - North,Day Care / Social Activities,Firstpoint Homecare Ltd,130.2, 05-Dec-2016
1058,Revenue,CAHD,Home Care - Elderly - North,Other Small Contracts,Firstpoint Homecare Ltd,381.92, 05-Dec-2016
1059,Revenue,CAHD,Home Care - Elderly - South,Other Small Contracts,Firstpoint Homecare Ltd,1206.52, 20-Dec-2016
1060,Revenue,CAHD,Home Care - Elderly - North,Day Care / Social Activities,Firstpoint Homecare Ltd,130.2, 20-Dec-2016
1061,Revenue,CAHD,Home Care - Elderly - North,Other Small Contracts,Firstpoint Homecare Ltd,377.58, 20-Dec-2016
1062,Revenue,CAHD,Home Care - Elderly - South,Other Small Contracts,Firstpoint Homecare Ltd,1254.26, 20-Dec-2016
1063,Revenue,CAHD,Home Care - Elderly - North,Day Care / Social Activities,Firstpoint Homecare Ltd,130.2, 20-Dec-2016
1064,Revenue,CAHD,Home Care - Elderly - North,Other Small Contracts,Firstpoint Homecare Ltd,377.58, 20-Dec-2016
1065,Revenue,CAHD,Home Care - Elderly - South,Other Small Contracts,Firstpoint Homecare Ltd,1163.12, 20-Dec-2016
1066,Revenue,CAHD,Home Care - Elderly - North,Day Care / Social Activities,Firstpoint Homecare Ltd,130.2, 20-Dec-2016
1067,Revenue,CAHD,Home Care - Elderly - North,Other Small Contracts,Firstpoint Homecare Ltd,355.88, 20-Dec-2016
1068,Revenue,CAHD,CSC - Agency Fostering,Foster Parent Allowances,Five Rivers Child Care Limited,3336.6, 01-Dec-2016
1069,Revenue,CAHD,CSC - Agency Fostering,Foster Parent Allowances,Five Rivers Child Care Limited,3336.6, 01-Dec-2016
1070,Revenue,CAHD,CSC - Agency Fostering,Foster Parent Allowances,Five Rivers Child Care Limited,3447.82, 29-Dec-2016
1071,Revenue,CAHD,CSC - Agency Fostering,Foster Parent Allowances,Five Rivers Child Care Limited,3447.82, 29-Dec-2016
1072,Revenue,CAHD,CSC - Vinney Green Secure Unit,External Lecturers Fees,Footballing Chance Ltd,1560, 09-Dec-2016
1073,Revenue,CAHD,CSC - Agency Fostering,Foster Parent Allowances,Foster Care Associates Limited,2257.5, 21-Dec-2016
1074,Revenue,CAHD,CSC - Agency Fostering,Foster Parent Allowances,Foster Care Associates Limited,3998.4, 21-Dec-2016
1075,Revenue,CAHD,Training Budget - Children`s Social Serv,Training Expenses,Fostering Network,1750, 06-Dec-2016
1076,Revenue,CAHD,Home Care - Elderly - South,Day Care / Social Activities,Fourways Care Limited,356.68, 05-Dec-2016
1077,Revenue,CAHD,Home Care - Elderly - South,Other Small Contracts,Fourways Care Limited,7346.36, 05-Dec-2016
1078,Revenue,CAHD,Home Care - Elderly - North,Other Small Contracts,Fourways Care Limited,7343.34, 05-Dec-2016
1079,Revenue,CAHD,Younger MH non-res purchasing,Other Small Contracts,Fourways Care Limited,86.76, 05-Dec-2016
1080,Revenue,CAHD,Home Care - Elderly - South,Day Care / Social Activities,Fourways Care Limited,154.24, 08-Dec-2016
1081,Revenue,CAHD,Home Care - Elderly - South,Other Small Contracts,Fourways Care Limited,7370.3, 08-Dec-2016
1082,Revenue,CAHD,Home Care - Elderly - North,Other Small Contracts,Fourways Care Limited,7005.94, 08-Dec-2016
1083,Revenue,CAHD,Younger MH non-res purchasing,Other Small Contracts,Fourways Care Limited,86.76, 08-Dec-2016
1084,Revenue,CAHD,Home Care - Elderly - South,Day Care / Social Activities,Fourways Care Limited,149.42, 15-Dec-2016
1085,Revenue,CAHD,Home Care - Elderly - South,Other Small Contracts,Fourways Care Limited,7377.78, 15-Dec-2016
1086,Revenue,CAHD,Home Care - Elderly - North,Other Small Contracts,Fourways Care Limited,7377.08, 15-Dec-2016
1087,Revenue,CAHD,Younger MH non-res purchasing,Other Small Contracts,Fourways Care Limited,86.76, 15-Dec-2016
1088,Revenue,CAHD,Home Care - Elderly - South,Day Care / Social Activities,Fourways Care Limited,207.26, 21-Dec-2016
1089,Revenue,CAHD,Home Care - Elderly - South,Other Small Contracts,Fourways Care Limited,6825.5, 21-Dec-2016
1090,Revenue,CAHD,Home Care - Elderly - North,Other Small Contracts,Fourways Care Limited,7449.38, 21-Dec-2016
1091,Revenue,CAHD,Younger MH non-res purchasing,Other Small Contracts,Fourways Care Limited,81.94, 21-Dec-2016
1092,Revenue,CAHD,Health Inequalities,Other Small Contracts,Frampton Cotterell Carers Group,500, 29-Dec-2016
1093,Revenue,CAHD,Supporting People Programme,Grants to Voluntary Bodies,Freeways Trust Limited,7530.7, 01-Dec-2016
1094,Revenue,CAHD,Supporting People Programme,Grants to Voluntary Bodies,Freeways Trust Limited,7530.7, 29-Dec-2016
1095,Revenue,CAHD,Freeways,Permanent Residential,Freeways Trust Limited,3705.32, 05-Dec-2016
1096,Revenue,CAHD,Freeways,Permanent Residential,Freeways Trust Limited,2331.13, 05-Dec-2016
1097,Revenue,CAHD,Freeways,Permanent Residential,Freeways Trust Limited,2409.93, 05-Dec-2016
1098,Revenue,CAHD,Freeways,Permanent Residential,Freeways Trust Limited,3393.81, 05-Dec-2016
1099,Revenue,CAHD,Freeways,Permanent Residential,Freeways Trust Limited,2331.13, 05-Dec-2016
1100,Revenue,CAHD,Freeways,Permanent Residential,Freeways Trust Limited,3454.92, 05-Dec-2016
1101,Revenue,CAHD,Freeways,Permanent Residential,Freeways Trust Limited,2997.8, 05-Dec-2016
1102,Revenue,CAHD,Freeways,Permanent Residential,Freeways Trust Limited,3614.51, 05-Dec-2016
1103,Revenue,CAHD,Freeways,Permanent Residential,Freeways Trust Limited,2208.93, 05-Dec-2016
1104,Revenue,CAHD,Freeways,Permanent Residential,Freeways Trust Limited,2749.17, 05-Dec-2016
1105,Revenue,CAHD,Freeways,Permanent Residential,Freeways Trust Limited,3508.85, 05-Dec-2016
1106,Revenue,CAHD,Freeways,Permanent Residential,Freeways Trust Limited,1353.57, 05-Dec-2016
1107,Revenue,CAHD,Freeways,Permanent Residential,Freeways Trust Limited,1759.73, 05-Dec-2016
1108,Revenue,CAHD,Freeways,Permanent Residential,Freeways Trust Limited,2731.73, 05-Dec-2016
1109,Revenue,CAHD,Freeways,Permanent Residential,Freeways Trust Limited,7455.24, 05-Dec-2016
1110,Revenue,CAHD,Home Care - Elderly - South,Day Care / Social Activities,Freeways Trust Limited,972.73, 28-Dec-2016
1111,Revenue,CAHD,Home Care - Elderly - South,Day Care / Social Activities,Freeways Trust Limited,875.05, 28-Dec-2016
1112,Revenue,CAHD,Home Care - Elderly - South,Day Care / Social Activities,Freeways Trust Limited,1139.6, 28-Dec-2016
1113,Revenue,CAHD,Home Care - Elderly - South,Day Care / Social Activities,Freeways Trust Limited,1009.36, 28-Dec-2016
1114,Revenue,CAHD,Home Care - Elderly - South,Day Care / Social Activities,Freeways Trust Limited,1153.6, 28-Dec-2016
1115,Revenue,CAHD,Home Care - Elderly - South,Day Care / Social Activities,Freeways Trust Limited,764.46, 28-Dec-2016
1116,Revenue,CAHD,Home Care - Elderly - South,Day Care / Social Activities,Freeways Trust Ltd,506.8, 20-Dec-2016
1117,Revenue,CAHD,Home Care - Elderly - North,Supported Living,Freeways Trust Ltd,1664.29, 20-Dec-2016
1118,Revenue,CAHD,Home Care - Elderly - North,Supported Living,Freeways Trust Ltd,800, 20-Dec-2016
1119,Revenue,CAHD,Bed purchasing - S28A Under 65 - South,Permanent Residential,Freeways Trust Ltd,3546.28, 20-Dec-2016
1120,Revenue,CAHD,Bed Purchasing - North,Permanent Residential,Freeways Trust Ltd,3560.4, 20-Dec-2016
1121,Revenue,CAHD,Bed Purchasing - North,Permanent Residential,Freeways Trust Ltd,1004.67, 20-Dec-2016
1122,Revenue,CAHD,Bed Purchasing - South,Permanent Residential,Freeways Trust Ltd,3776.08, 20-Dec-2016
1123,Revenue,CAHD,Bed Purchasing - North,Permanent Residential,Freeways Trust Ltd,2851.24, 20-Dec-2016
1124,Revenue,CAHD,Bed Purchasing - South,Permanent Residential,Freeways Trust Ltd,3004.6, 20-Dec-2016
1125,Revenue,CAHD,Bed Purchasing - North,Permanent Residential,Freeways Trust Ltd,3149.08, 20-Dec-2016
1126,Revenue,CAHD,Bed Purchasing - North,Permanent Residential,Freeways Trust Ltd,3769.2, 20-Dec-2016
1127,Revenue,CAHD,18-25 Year Olds,Permanent Residential,Freeways Trust Ltd,3481.92, 20-Dec-2016
1128,Revenue,CAHD,Bed Purchasing - North,Permanent Residential,Freeways Trust Ltd,4357.16, 20-Dec-2016
1129,Revenue,CAHD,Pathway 3 - (Complex Beds),Permanent Nursing,Frenchay House,3162, 02-Dec-2016
1130,Revenue,CAHD,Bed Purchasing - South,Permanent Nursing,Fshc  1St Floor,2587.52, 20-Dec-2016
1131,Revenue,CAHD,South Glos Users in South Glos Homes,Permanent Nursing,Fshc  1St Floor,625, 20-Dec-2016
1132,Revenue,CAHD,Bed Purchasing - South,Permanent Nursing,Fshc  1St Floor,2038.72, 20-Dec-2016
1133,Revenue,CAHD,Bed Purchasing - Southmead Hospital,Permanent Nursing,Fshc  1St Floor,2252, 20-Dec-2016
1134,Revenue,CAHD,Bed Purchasing - South,Permanent Nursing,Fshc  1St Floor,2038.72, 20-Dec-2016
1135,Revenue,CAHD,South Glos Users in South Glos Homes,Permanent Nursing,Fshc  1St Floor,625, 20-Dec-2016
1136,Revenue,CAHD,Bed Purchasing - Southmead Hospital,Permanent Nursing,Fshc  1St Floor,2552, 20-Dec-2016
1137,Revenue,CAHD,South Glos Users in South Glos Homes,Permanent Nursing,Fshc  1St Floor,625, 20-Dec-2016
1138,Revenue,CAHD,Bed Purchasing - Southmead Hospital,Permanent Nursing,Fshc  1St Floor,2038.72, 20-Dec-2016
1139,Revenue,CAHD,South Glos Users in South Glos Homes,Permanent Nursing,Fshc  1St Floor,625, 20-Dec-2016
1140,Revenue,CAHD,South Glos Users in South Glos Homes,Permanent Nursing,Fshc  1St Floor,625, 20-Dec-2016
1141,Revenue,CAHD,Bed Purchasing - Southmead Hospital,Permanent Nursing,Fshc  1St Floor,2252, 20-Dec-2016
1142,Revenue,CAHD,Bed Purchasing - Southmead Hospital,Permanent Nursing,Fshc  1St Floor,804.29, 20-Dec-2016
1143,Revenue,CAHD,Bed Purchasing - Southmead Hospital,Permanent Nursing,Fshc  1St Floor,2548, 20-Dec-2016
1144,Revenue,CAHD,Bed Purchasing - Southmead Hospital,Permanent Nursing,Fshc  1St Floor,1911, 20-Dec-2016
1145,Revenue,CAHD,South Glos Users in South Glos Homes,Permanent Nursing,Fshc  1St Floor,625, 20-Dec-2016
1146,Revenue,CAHD,South Glos Users in South Glos Homes,Permanent Nursing,Fshc  1St Floor,625, 20-Dec-2016
1147,Revenue,CAHD,Bed Purchasing - Southmead Hospital,Permanent Nursing,Fshc  1St Floor,2038.72, 20-Dec-2016
1148,Revenue,CAHD,South Glos Users in South Glos Homes,Permanent Nursing,Fshc  1St Floor,625, 20-Dec-2016
1149,Revenue,CAHD,Bed Purchasing - Southmead Hospital,Permanent Nursing,Fshc  1St Floor,2038.72, 20-Dec-2016
1150,Revenue,CAHD,Bed Purchasing - South,Fees & Charges Income - General,Fshc  1St Floor,6743.95, 20-Dec-2016
1151,Revenue,CAHD,Bed Purchasing - South,Fees & Charges Income - General,Fshc  1St Floor,1753.07, 20-Dec-2016
1152,Revenue,CAHD,Bed Purchasing - South,Permanent Nursing,Fshc  1St Floor,15243.17, 20-Dec-2016
1153,Revenue,CAHD,Bed Purchasing - South,Permanent Nursing,Fshc  1St Floor,3190, 20-Dec-2016
1154,Revenue,CAHD,Bed Purchasing - South,Respite Planned - Nursing,Fshc  1St Floor,723.86, 20-Dec-2016
1155,Revenue,CAHD,South Glos Users in South Glos Homes,Permanent Nursing,Fshc  1St Floor,625, 20-Dec-2016
1156,Revenue,CAHD,South Glos Users in South Glos Homes,Permanent Nursing,Fshc  1St Floor,625, 20-Dec-2016
1157,Revenue,CAHD,Bed Purchasing - South,Permanent Nursing,Fshc  1St Floor,2282.64, 20-Dec-2016
1158,Revenue,CAHD,Bed Purchasing - Southmead Hospital,Permanent Nursing,Fshc  1St Floor,2282.64, 20-Dec-2016
1159,Revenue,CAHD,Bed Purchasing - South,Permanent Nursing,Fshc  1St Floor,2252, 20-Dec-2016
1160,Revenue,CAHD,South Glos Users in South Glos Homes,Permanent Nursing,Fshc  1St Floor,625, 20-Dec-2016
1161,Revenue,CAHD,South Glos Users in South Glos Homes,Permanent Nursing,Fshc  1St Floor,625, 20-Dec-2016
1162,Revenue,CAHD,Bed Purchasing - South,Permanent Nursing,Fshc  1St Floor,2252, 20-Dec-2016
1163,Revenue,CAHD,Bed Purchasing - Southmead Hospital,Permanent Nursing,Fshc  1St Floor,2038.72, 20-Dec-2016
1164,Revenue,CAHD,South Glos Users in South Glos Homes,Permanent Nursing,Fshc  1St Floor,625, 20-Dec-2016
1165,Revenue,CAHD,Bed Purchasing - Southmead Hospital,Permanent Nursing,Fshc  1St Floor,2700, 20-Dec-2016
1166,Revenue,CAHD,South Glos Users in South Glos Homes,Permanent Nursing,Fshc  1St Floor,625, 20-Dec-2016
1167,Revenue,CAHD,Bed Purchasing - South,Permanent Nursing,Fshc  1St Floor,2038.72, 20-Dec-2016
1168,Revenue,CAHD,South Glos Users in South Glos Homes,Permanent Nursing,Fshc  1St Floor,625, 20-Dec-2016
1169,Revenue,CAHD,Bed Purchasing - Southmead Hospital,Permanent Nursing,Fshc  1St Floor,2038.72, 20-Dec-2016
1170,Revenue,CAHD,South Glos Users in South Glos Homes,Permanent Nursing,Fshc  1St Floor,625, 20-Dec-2016
1171,Revenue,CAHD,Bed Purchasing - Southmead Hospital,Permanent Residential,Fshc  1St Floor,1901.52, 20-Dec-2016
1172,Revenue,CAHD,Bed Purchasing - North,Permanent Nursing,Fshc  1St Floor,2252, 20-Dec-2016
1173,Revenue,CAHD,Bed Purchasing - South,Permanent Nursing,Fshc  1St Floor,2038.72, 20-Dec-2016
1174,Revenue,CAHD,Bed Purchasing - North,Permanent Nursing,Fshc  1St Floor,2038.72, 20-Dec-2016
1175,Revenue,CAHD,South Glos Users in South Glos Homes,Permanent Nursing,Fshc  1St Floor,625, 20-Dec-2016
1176,Revenue,CAHD,Bed Purchasing - South,Permanent Nursing,Fshc  1St Floor,2252, 20-Dec-2016
1177,Revenue,CAHD,South Glos Users in South Glos Homes,Permanent Nursing,Fshc  1St Floor,625, 20-Dec-2016
1178,Revenue,CAHD,Bed Purchasing - Southmead Hospital,Permanent Nursing,Fshc  1St Floor,2038.72, 20-Dec-2016
1179,Revenue,CAHD,South Glos Users in South Glos Homes,Permanent Nursing,Fshc  1St Floor,625, 20-Dec-2016
1180,Revenue,CAHD,Bed Purchasing - South,Permanent Nursing,Fshc  1St Floor,2038.72, 20-Dec-2016
1181,Revenue,CAHD,South Glos Users in South Glos Homes,Permanent Nursing,Fshc  1St Floor,625, 20-Dec-2016
1182,Revenue,CAHD,South Glos Users in South Glos Homes,Permanent Nursing,Fshc  1St Floor,625, 20-Dec-2016
1183,Revenue,CAHD,Bed Purchasing - South,Permanent Nursing,Fshc  1St Floor,2038.72, 20-Dec-2016
1184,Revenue,CAHD,Bed Purchasing - North,Permanent Nursing,Fshc  1St Floor,2282.64, 20-Dec-2016
1185,Revenue,CAHD,South Glos Users in South Glos Homes,Permanent Nursing,Fshc  1St Floor,625, 20-Dec-2016
1186,Revenue,CAHD,Bed Purchasing - Southmead Hospital,Permanent Nursing,Fshc  1St Floor,2038.72, 20-Dec-2016
1187,Revenue,CAHD,South Glos Users in South Glos Homes,Permanent Nursing,Fshc  1St Floor,625, 20-Dec-2016
1188,Revenue,CAHD,South Glos Users in South Glos Homes,Permanent Nursing,Fshc  1St Floor,625, 20-Dec-2016
1189,Revenue,CAHD,Bed Purchasing - Southmead Hospital,Permanent Nursing,Fshc  1St Floor,2252, 20-Dec-2016
1190,Revenue,CAHD,South Glos Users in South Glos Homes,Permanent Nursing,Fshc  1St Floor,625, 20-Dec-2016
1191,Revenue,CAHD,Bed Purchasing - North,Permanent Nursing,Fshc  1St Floor,2038.72, 20-Dec-2016
1192,Revenue,CAHD,South Glos Users in South Glos Homes,Permanent Nursing,Fshc  1St Floor,625, 20-Dec-2016
1193,Revenue,CAHD,Bed Purchasing - South,Permanent Nursing,Fshc  1St Floor,2038.72, 20-Dec-2016
1194,Revenue,CAHD,South Glos Users in South Glos Homes,Permanent Nursing,Fshc  1St Floor,625, 20-Dec-2016
1195,Revenue,CAHD,Bed Purchasing - Southmead Hospital,Permanent Nursing,Fshc  1St Floor,2038.72, 20-Dec-2016
1196,Revenue,CAHD,South Glos Users in South Glos Homes,Permanent Nursing,Fshc  1St Floor,625, 20-Dec-2016
1197,Revenue,CAHD,South Glos Users in South Glos Homes,Permanent Nursing,Fshc  1St Floor,625, 20-Dec-2016
1198,Revenue,CAHD,Bed Purchasing - Southmead Hospital,Permanent Nursing,Fshc  1St Floor,2227.2, 20-Dec-2016
1199,Revenue,CAHD,South Glos Users in South Glos Homes,Permanent Nursing,Fshc  1St Floor,625, 20-Dec-2016
1200,Revenue,CAHD,Bed Purchasing - North,Permanent Nursing,Fshc  1St Floor,2188, 20-Dec-2016
1201,Revenue,CAHD,South Glos Users in South Glos Homes,Permanent Nursing,Fshc  1St Floor,625, 20-Dec-2016
1202,Revenue,CAHD,South Glos Users in South Glos Homes,Permanent Nursing,Fshc  1St Floor,625, 20-Dec-2016
1203,Revenue,CAHD,Bed Purchasing - Southmead Hospital,Permanent Nursing,Fshc  1St Floor,2038.72, 20-Dec-2016
1204,Revenue,CAHD,South Glos Users in South Glos Homes,Permanent Nursing,Fshc  1St Floor,625, 20-Dec-2016
1205,Revenue,CAHD,Bed Purchasing - Southmead Hospital,Permanent Residential,Fshc  1St Floor,1901.52, 20-Dec-2016
1206,Revenue,CAHD,Bed Purchasing - Southmead Hospital,Respite Emergency - Residential,Fshc  1St Floor,2164, 20-Dec-2016
1207,Revenue,CAHD,Bed Purchasing - Southmead Hospital,Respite Emergency - Residential,Fshc  1St Floor,1623, 20-Dec-2016
1208,Revenue,CAHD,South Glos Users in South Glos Homes,Permanent Nursing,Fshc  1St Floor,625, 20-Dec-2016
1209,Revenue,CAHD,Bed Purchasing - Southmead Hospital,Permanent Nursing,Fshc  1St Floor,2038.72, 20-Dec-2016
1210,Revenue,CAHD,South Glos Users in South Glos Homes,Permanent Nursing,Fshc  1St Floor,625, 20-Dec-2016
1211,Revenue,CAHD,Bed Purchasing - Southmead Hospital,Permanent Nursing,Fshc  1St Floor,2038.72, 20-Dec-2016
1212,Revenue,CAHD,South Glos Users in South Glos Homes,Permanent Nursing,Fshc  1St Floor,625, 20-Dec-2016
1213,Revenue,CAHD,South Glos Users in South Glos Homes,Permanent Nursing,Fshc  1St Floor,625, 20-Dec-2016
1214,Revenue,CAHD,South Glos Users in South Glos Homes,Permanent Nursing,Fshc  1St Floor,625, 20-Dec-2016
1215,Revenue,CAHD,Bed Purchasing - North,Permanent Nursing,Fshc  1St Floor,2193.44, 20-Dec-2016
1216,Revenue,CAHD,Bed Purchasing - Southmead Hospital,Permanent Nursing,Fshc  1St Floor,2038.72, 20-Dec-2016
1217,Revenue,CAHD,South Glos Users in South Glos Homes,Permanent Nursing,Fshc  1St Floor,625, 20-Dec-2016
1218,Revenue,CAHD,Bed Purchasing - North,Permanent Nursing,Fshc  1St Floor,2038.72, 20-Dec-2016
1219,Revenue,CAHD,South Glos Users in South Glos Homes,Permanent Nursing,Fshc  1St Floor,625, 20-Dec-2016
1220,Revenue,CAHD,South Glos Users in South Glos Homes,Permanent Nursing,Fshc  1St Floor,625, 20-Dec-2016
1221,Revenue,CAHD,Bed Purchasing - North,Permanent Nursing,Fshc  1St Floor,2228, 20-Dec-2016
1222,Revenue,CAHD,South Glos Users in South Glos Homes,Permanent Nursing,Fshc  1St Floor,625, 20-Dec-2016
1223,Revenue,CAHD,Bed Purchasing - Southmead Hospital,Respite Emergency - Nursing,Fshc  1St Floor,1700.29, 20-Dec-2016
1224,Revenue,CAHD,South Glos Users in South Glos Homes,Permanent Nursing,Fshc  1St Floor,625, 20-Dec-2016
1225,Revenue,CAHD,South Glos Users in South Glos Homes,Permanent Nursing,Fshc  1St Floor,625, 20-Dec-2016
1226,Revenue,CAHD,Bed Purchasing - Southmead Hospital,Permanent Nursing,Fshc  1St Floor,3800, 20-Dec-2016
1227,Revenue,CAHD,Bed Purchasing - Southmead Hospital,Permanent Nursing,Fshc  1St Floor,2578.57, 20-Dec-2016
1228,Revenue,CAHD,South Glos Users in South Glos Homes,Permanent Nursing,Fshc  1St Floor,625, 20-Dec-2016
1229,Revenue,CAHD,Bed Purchasing - Southmead Hospital,Permanent Nursing,Fshc  1St Floor,2227.2, 20-Dec-2016
1230,Revenue,CAHD,South Glos Users in South Glos Homes,Permanent Nursing,Fshc  1St Floor,625, 20-Dec-2016
1231,Revenue,CAHD,Bed Purchasing - North,Permanent Nursing,Fshc  1St Floor,2038.72, 20-Dec-2016
1232,Revenue,CAHD,South Glos Users in South Glos Homes,Permanent Nursing,Fshc  1St Floor,625, 20-Dec-2016
1233,Revenue,CAHD,Bed Purchasing - Southmead Hospital,Permanent Residential,Fshc  1St Floor,1901.52, 20-Dec-2016
1234,Revenue,CAHD,Bed Purchasing - North,Permanent Nursing,Fshc  1St Floor,2038.72, 20-Dec-2016
1235,Revenue,CAHD,South Glos Users in South Glos Homes,Permanent Nursing,Fshc  1St Floor,625, 20-Dec-2016
1236,Revenue,CAHD,Bed Purchasing - North,Permanent Nursing,Fshc  1St Floor,2038.72, 20-Dec-2016
1237,Revenue,CAHD,South Glos Users in South Glos Homes,Permanent Nursing,Fshc  1St Floor,625, 20-Dec-2016
1238,Revenue,CAHD,Bed Purchasing - North,Permanent Nursing,Fshc  1St Floor,2038.72, 20-Dec-2016
1239,Revenue,CAHD,South Glos Users in South Glos Homes,Permanent Nursing,Fshc  1St Floor,625, 20-Dec-2016
1240,Revenue,CAHD,Bed Purchasing - North,Permanent Nursing,Fshc  1St Floor,2038.72, 20-Dec-2016
1241,Revenue,CAHD,South Glos Users in South Glos Homes,Permanent Nursing,Fshc  1St Floor,625, 20-Dec-2016
1242,Revenue,CAHD,Bed Purchasing - North,Permanent Residential,Fshc  1St Floor,2228, 20-Dec-2016
1243,Revenue,CAHD,Bed Purchasing - North,Permanent Residential,Fshc  1St Floor,6524.86, 20-Dec-2016
1244,Revenue,CAHD,South Glos Users in South Glos Homes,Permanent Nursing,Fshc  1St Floor,625, 20-Dec-2016
1245,Revenue,CAHD,Bed Purchasing - North,Permanent Nursing,Fshc  1St Floor,2038.72, 20-Dec-2016
1246,Revenue,CAHD,South Glos Users in South Glos Homes,Permanent Nursing,Fshc  1St Floor,625, 20-Dec-2016
1247,Revenue,CAHD,Bed Purchasing - North,Permanent Nursing,Fshc  1St Floor,2038.72, 20-Dec-2016
1248,Revenue,CAHD,South Glos Users in South Glos Homes,Permanent Nursing,Fshc  1St Floor,625, 20-Dec-2016
1249,Revenue,CAHD,Bed Purchasing - North,Permanent Residential,Fshc  1St Floor,5490.43, 20-Dec-2016
1250,Revenue,CAHD,South Glos Users in South Glos Homes,Permanent Nursing,Fshc  1St Floor,625, 20-Dec-2016
1251,Revenue,CAHD,Bed Purchasing - North,Fees & Charges Income - General,Fshc  1St Floor,1742.06, 20-Dec-2016
1252,Revenue,CAHD,Bed Purchasing - North,Fees & Charges Income - General,Fshc  1St Floor,2100.72, 20-Dec-2016
1253,Revenue,CAHD,South Glos Users in South Glos Homes,Permanent Nursing,Fshc  1St Floor,625, 20-Dec-2016
1254,Revenue,CAHD,Bed Purchasing - North,Permanent Nursing,Fshc  1St Floor,2038.72, 20-Dec-2016
1255,Revenue,CAHD,South Glos Users in South Glos Homes,Permanent Nursing,Fshc  1St Floor,625, 20-Dec-2016
1256,Revenue,CAHD,Bed Purchasing - North,Fees & Charges Income - General,Fshc  1St Floor,3915.38, 20-Dec-2016
1257,Revenue,CAHD,Bed Purchasing - North,Permanent Nursing,Fshc  1St Floor,2108.28, 20-Dec-2016
1258,Revenue,CAHD,Bed Purchasing - North,Fees & Charges Income - General,Fshc  1St Floor,936.31, 20-Dec-2016
1259,Revenue,CAHD,Bed Purchasing - North,Permanent Nursing,Fshc  1St Floor,17920.38, 20-Dec-2016
1260,Revenue,CAHD,Bed Purchasing - North,Fees & Charges Income - General,Fshc  1St Floor,4727.13, 20-Dec-2016
1261,Revenue,CAHD,Bed Purchasing - Southmead Hospital,Permanent Nursing,Fshc  1St Floor,2352, 20-Dec-2016
1262,Revenue,CAHD,South Glos Users in South Glos Homes,Permanent Nursing,Fshc  1St Floor,625, 20-Dec-2016
1263,Revenue,CAHD,South Glos Users in South Glos Homes,Permanent Nursing,Fshc  1St Floor,3638.39, 20-Dec-2016
1264,Revenue,CAHD,Bed Purchasing - North,Permanent Nursing,Fshc  1St Floor,2038.72, 20-Dec-2016
1265,Revenue,CAHD,South Glos Users in South Glos Homes,Permanent Nursing,Fshc  1St Floor,625, 20-Dec-2016
1266,Revenue,CAHD,Bed Purchasing - Southmead Hospital,Permanent Nursing,Fshc  1St Floor,2156.92, 20-Dec-2016
1267,Revenue,CAHD,Bed Purchasing - South,Permanent Nursing,Fshc  1St Floor,2038.72, 20-Dec-2016
1268,Revenue,CAHD,South Glos Users in South Glos Homes,Permanent Nursing,Fshc  1St Floor,625, 20-Dec-2016
1269,Revenue,CAHD,South Glos Users in South Glos Homes,Permanent Nursing,Fshc  1St Floor,625, 20-Dec-2016
1270,Revenue,CAHD,Bed Purchasing - Southmead Hospital,Permanent Nursing,Fshc  1St Floor,2038.72, 20-Dec-2016
1271,Revenue,CAHD,South Glos Users in South Glos Homes,Permanent Nursing,Fshc  1St Floor,625, 20-Dec-2016
1272,Revenue,CAHD,South Glos Users in South Glos Homes,Permanent Nursing,Fshc  1St Floor,625, 20-Dec-2016
1273,Revenue,CAHD,South Glos Users in South Glos Homes,Permanent Nursing,Fshc  1St Floor,625, 20-Dec-2016
1274,Revenue,CAHD,Bed Purchasing - North,Permanent Nursing,Fshc  1St Floor,4156.25, 20-Dec-2016
1275,Revenue,CAHD,Bed Purchasing - North,Permanent Nursing,Fshc  1St Floor,2375, 20-Dec-2016
1276,Revenue,CAHD,Bed Purchasing - North,Fees & Charges Income - General,Fshc  1St Floor,1078.65, 20-Dec-2016
1277,Revenue,CAHD,Bed Purchasing - North,Fees & Charges Income - General,Fshc  1St Floor,1048.65, 20-Dec-2016
1278,Revenue,CAHD,Bed Purchasing - North,Fees & Charges Income - General,Fshc  1St Floor,648.09, 20-Dec-2016
1279,Revenue,CAHD,Bed Purchasing - North,Fees & Charges Income - General,Fshc  1St Floor,896.23, 20-Dec-2016
1280,Revenue,CAHD,South Glos Users in South Glos Homes,Permanent Nursing,Fshc  1St Floor,625, 20-Dec-2016
1281,Revenue,CAHD,South Glos Users in South Glos Homes,Permanent Nursing,Fshc  1St Floor,625, 20-Dec-2016
1282,Revenue,CAHD,Bed Purchasing - North,Permanent Nursing,Fshc  1St Floor,2038.72, 20-Dec-2016
1283,Revenue,CAHD,South Glos Users in South Glos Homes,Permanent Nursing,Fshc  1St Floor,625, 20-Dec-2016
1284,Revenue,CAHD,Bed Purchasing - Southmead Hospital,Respite Planned - Nursing,Fshc  1St Floor,7435.71, 20-Dec-2016
1285,Revenue,CAHD,Bed Purchasing - Southmead Hospital,Respite Planned - Nursing,Fshc  1St Floor,892.29, 20-Dec-2016
1286,Revenue,CAHD,South Glos Users in South Glos Homes,Permanent Nursing,Fshc  1St Floor,625, 20-Dec-2016
1287,Revenue,CAHD,Bed Purchasing - Southmead Hospital,Permanent Residential,Fshc  1St Floor,1901.52, 20-Dec-2016
1288,Revenue,CAHD,South Glos Users in South Glos Homes,Permanent Nursing,Fshc  1St Floor,625, 20-Dec-2016
1289,Revenue,CAHD,South Glos Users in South Glos Homes,Permanent Nursing,Fshc  1St Floor,625, 20-Dec-2016
1290,Revenue,CAHD,Bed Purchasing - North,Permanent Nursing,Fshc  1St Floor,2552, 20-Dec-2016
1291,Revenue,CAHD,South Glos Users in South Glos Homes,Permanent Nursing,Fshc  1St Floor,625, 20-Dec-2016
1292,Revenue,CAHD,South Glos Users in South Glos Homes,Permanent Nursing,Fshc  1St Floor,625, 20-Dec-2016
1293,Revenue,CAHD,Bed Purchasing - Southmead Hospital,Permanent Nursing,Fshc  1St Floor,2375, 20-Dec-2016
1294,Revenue,CAHD,Bed Purchasing - Southmead Hospital,Fees & Charges Income - General,Fshc  1St Floor,1661.76, 20-Dec-2016
1295,Revenue,CAHD,Bed Purchasing - Southmead Hospital,Permanent Nursing,Fshc  1St Floor,2038.72, 20-Dec-2016
1296,Revenue,CAHD,South Glos Users in South Glos Homes,Permanent Nursing,Fshc  1St Floor,625, 20-Dec-2016
1297,Revenue,CAHD,Bed Purchasing - North,Permanent Nursing,Fshc  1St Floor,2038.72, 20-Dec-2016
1298,Revenue,CAHD,South Glos Users in South Glos Homes,Permanent Nursing,Fshc  1St Floor,625, 20-Dec-2016
1299,Revenue,CAHD,Bed Purchasing - North,Permanent Nursing,Fshc  1St Floor,2038.72, 20-Dec-2016
1300,Revenue,CAHD,South Glos Users in South Glos Homes,Permanent Nursing,Fshc  1St Floor,625, 20-Dec-2016
1301,Revenue,CAHD,Bed Purchasing - Southmead Hospital,Permanent Nursing,Fshc  1St Floor,2038.72, 20-Dec-2016
1302,Revenue,CAHD,South Glos Users in South Glos Homes,Permanent Nursing,Fshc  1St Floor,625, 20-Dec-2016
1303,Revenue,CAHD,South Glos Users in South Glos Homes,Permanent Nursing,Fshc  1St Floor,625, 20-Dec-2016
1304,Revenue,CAHD,Bed Purchasing - Southmead Hospital,Permanent Nursing,Fshc  1St Floor,2038.72, 20-Dec-2016
1305,Revenue,CAHD,South Glos Users in South Glos Homes,Permanent Nursing,Fshc  1St Floor,625, 20-Dec-2016
1306,Revenue,CAHD,Bed Purchasing - North,Permanent Nursing,Fshc  1St Floor,2038.72, 20-Dec-2016
1307,Revenue,CAHD,South Glos Users in South Glos Homes,Permanent Nursing,Fshc  1St Floor,625, 20-Dec-2016
1308,Revenue,CAHD,Bed Purchasing - South,Respite Planned - Nursing,Fshc  1St Floor,2214.29, 20-Dec-2016
1309,Revenue,CAHD,Bed Purchasing - South,Respite Planned - Nursing,Fshc  1St Floor,885.71, 20-Dec-2016
1310,Revenue,CAHD,Bed Purchasing - Southmead Hospital,Permanent Nursing,Fshc  1St Floor,2038.72, 20-Dec-2016
1311,Revenue,CAHD,South Glos Users in South Glos Homes,Permanent Nursing,Fshc  1St Floor,625, 20-Dec-2016
1312,Revenue,CAHD,South Glos Users in South Glos Homes,Permanent Nursing,Fshc  1St Floor,625, 20-Dec-2016
1313,Revenue,CAHD,Bed Purchasing - South,Permanent Residential,Fshc  1St Floor,2200, 20-Dec-2016
1314,Revenue,CAHD,Bed Purchasing - South,Permanent Nursing,Fshc  1St Floor,2400, 20-Dec-2016
1315,Revenue,CAHD,Bed Purchasing - South,Permanent Nursing,Fshc  1St Floor,1457.14, 20-Dec-2016
1316,Revenue,CAHD,South Glos Users in South Glos Homes,Permanent Nursing,Fshc  1St Floor,625, 20-Dec-2016
1317,Revenue,CAHD,Bed Purchasing - South,Permanent Nursing,Fshc  1St Floor,2038.72, 20-Dec-2016
1318,Revenue,CAHD,South Glos Users in South Glos Homes,Permanent Nursing,Fshc  1St Floor,625, 20-Dec-2016
1319,Revenue,CAHD,Bed Purchasing - South,Permanent Nursing,Fshc  1St Floor,2081.56, 20-Dec-2016
1320,Revenue,CAHD,South Glos Users in South Glos Homes,Permanent Nursing,Fshc  1St Floor,625, 20-Dec-2016
1321,Revenue,CAHD,Bed Purchasing - Southmead Hospital,Permanent Nursing,Fshc  1St Floor,2038.72, 20-Dec-2016
1322,Revenue,CAHD,South Glos Users in South Glos Homes,Permanent Nursing,Fshc  1St Floor,625, 20-Dec-2016
1323,Revenue,CAHD,Bed Purchasing - North,Permanent Nursing,Fshc  1St Floor,2038.72, 20-Dec-2016
1324,Revenue,CAHD,South Glos Users in South Glos Homes,Permanent Nursing,Fshc  1St Floor,625, 20-Dec-2016
1325,Revenue,CAHD,Bed Purchasing - Southmead Hospital,Permanent Residential,Fshc  1St Floor,2111.52, 20-Dec-2016
1326,Revenue,CAHD,Bed Purchasing - North,Permanent Residential,Fshc  1St Floor,2008, 20-Dec-2016
1327,Revenue,CAHD,South Glos Users in South Glos Homes,Permanent Nursing,Fshc  1St Floor,625, 20-Dec-2016
1328,Revenue,CAHD,South Glos Users in South Glos Homes,Permanent Nursing,Fshc  1St Floor,625, 20-Dec-2016
1329,Revenue,CAHD,Bed Purchasing - South,Permanent Residential,Fshc  1St Floor,2154.36, 20-Dec-2016
1330,Revenue,CAHD,Bed Purchasing - North,Permanent Nursing,Fshc  1St Floor,2038.72, 20-Dec-2016
1331,Revenue,CAHD,South Glos Users in South Glos Homes,Permanent Nursing,Fshc  1St Floor,625, 20-Dec-2016
1332,Revenue,CAHD,Bed Purchasing - Southmead Hospital,Permanent Nursing,Fshc  1St Floor,2038.72, 20-Dec-2016
1333,Revenue,CAHD,South Glos Users in South Glos Homes,Permanent Nursing,Fshc  1St Floor,625, 20-Dec-2016
1334,Revenue,CAHD,Bed Purchasing - South,Permanent Nursing,Fshc  1St Floor,2145.8, 20-Dec-2016
1335,Revenue,CAHD,South Glos Users in South Glos Homes,Permanent Nursing,Fshc  1St Floor,625, 20-Dec-2016
1336,Revenue,CAHD,South Glos Users in South Glos Homes,Permanent Nursing,Fshc  1St Floor,625, 20-Dec-2016
1337,Revenue,CAHD,Bed Purchasing - South,Permanent Residential,Fshc  1St Floor,2200, 20-Dec-2016
1338,Revenue,CAHD,Bed Purchasing - Southmead Hospital,Permanent Nursing,Fshc  1St Floor,2038.72, 20-Dec-2016
1339,Revenue,CAHD,South Glos Users in South Glos Homes,Permanent Nursing,Fshc  1St Floor,625, 20-Dec-2016
1340,Revenue,CAHD,Bed Purchasing - Southmead Hospital,Permanent Nursing,Fshc  1St Floor,2229.92, 20-Dec-2016
1341,Revenue,CAHD,South Glos Users in South Glos Homes,Permanent Nursing,Fshc  1St Floor,625, 20-Dec-2016
1342,Revenue,CAHD,Bed Purchasing - South,Permanent Nursing,Fshc  1St Floor,2038.72, 20-Dec-2016
1343,Revenue,CAHD,South Glos Users in South Glos Homes,Permanent Nursing,Fshc  1St Floor,625, 20-Dec-2016
1344,Revenue,CAHD,South Glos Users in South Glos Homes,Permanent Nursing,Fshc  1St Floor,625, 20-Dec-2016
1345,Revenue,CAHD,South Glos Users in South Glos Homes,Permanent Nursing,Fshc  1St Floor,625, 20-Dec-2016
1346,Revenue,CAHD,South Glos Users in South Glos Homes,Permanent Nursing,Fshc  1St Floor,625, 20-Dec-2016
1347,Revenue,CAHD,Bed Purchasing - South,Permanent Residential,Fshc  1St Floor,1901.52, 20-Dec-2016
1348,Revenue,CAHD,Bed Purchasing - Southmead Hospital,Permanent Nursing,Fshc  1St Floor,2038.72, 20-Dec-2016
1349,Revenue,CAHD,South Glos Users in South Glos Homes,Permanent Nursing,Fshc  1St Floor,625, 20-Dec-2016
1350,Revenue,CAHD,Bed Purchasing - South,Permanent Nursing,Fshc  1St Floor,2800, 20-Dec-2016
1351,Revenue,CAHD,Bed Purchasing - South,Permanent Nursing,Fshc  1St Floor,8700, 20-Dec-2016
1352,Revenue,CAHD,Bed Purchasing - Southmead Hospital,Permanent Nursing,Fshc  1St Floor,2038.72, 20-Dec-2016
1353,Revenue,CAHD,South Glos Users in South Glos Homes,Permanent Nursing,Fshc  1St Floor,625, 20-Dec-2016
1354,Revenue,CAHD,Bed Purchasing - Southmead Hospital,Permanent Nursing,Fshc  1St Floor,2038.72, 20-Dec-2016
1355,Revenue,CAHD,South Glos Users in South Glos Homes,Permanent Nursing,Fshc  1St Floor,625, 20-Dec-2016
1356,Revenue,CAHD,Bed Purchasing - Southmead Hospital,Permanent Residential,Fshc  1St Floor,2008, 20-Dec-2016
1357,Revenue,CAHD,South Glos Users in South Glos Homes,Permanent Nursing,Fshc  1St Floor,625, 20-Dec-2016
1358,Revenue,CAHD,Bed Purchasing - South,Permanent Nursing,Fshc  1St Floor,1952, 20-Dec-2016
1359,Revenue,CAHD,Bed Purchasing - South,Permanent Nursing,Fshc  1St Floor,2038.72, 20-Dec-2016
1360,Revenue,CAHD,South Glos Users in South Glos Homes,Permanent Nursing,Fshc  1St Floor,625, 20-Dec-2016
1361,Revenue,CAHD,Bed Purchasing - South,Permanent Nursing,Fshc  1St Floor,2324.08, 20-Dec-2016
1362,Revenue,CAHD,South Glos Users in South Glos Homes,Permanent Nursing,Fshc  1St Floor,625, 20-Dec-2016
1363,Revenue,CAHD,Bed Purchasing - South,Permanent Nursing,Fshc  1St Floor,2111.52, 20-Dec-2016
1364,Revenue,CAHD,South Glos Users in South Glos Homes,Permanent Nursing,Fshc  1St Floor,625, 20-Dec-2016
1365,Revenue,CAHD,Bed Purchasing - South,Permanent Residential,Fshc  1St Floor,2154.36, 20-Dec-2016
1366,Revenue,CAHD,Bed Purchasing - South,Permanent Nursing,Fshc  1St Floor,1929.88, 20-Dec-2016
1367,Revenue,CAHD,Bed Purchasing - Southmead Hospital,Permanent Nursing,Fshc  1St Floor,2838.08, 20-Dec-2016
1368,Revenue,CAHD,Bed Purchasing - South,Fees & Charges Income - General,Fshc  1St Floor,583.16, 20-Dec-2016
1369,Revenue,CAHD,Bed purchasing - Elderly S117 - South,Permanent Nursing,Fshc  1St Floor,1929.88, 20-Dec-2016
1370,Revenue,CAHD,Bed Purchasing - South,Permanent Nursing,Fshc  1St Floor,3278.57, 20-Dec-2016
1371,Revenue,CAHD,Bed Purchasing - South,Permanent Nursing,Fshc  1St Floor,1929.88, 20-Dec-2016
1372,Revenue,CAHD,Bed Purchasing - North,Respite Emergency - Residential,Fshc  1St Floor,1457.14, 20-Dec-2016
1373,Revenue,CAHD,Bed Purchasing - North,Respite Emergency - Nursing,Fshc  1St Floor,1457.14, 20-Dec-2016
1374,Revenue,CAHD,Bed Purchasing - Southmead Hospital,Permanent Nursing,Fshc  1St Floor,1929.88, 20-Dec-2016
1375,Revenue,CAHD,Bed Purchasing - Southmead Hospital,Permanent Nursing,Fshc  1St Floor,1929.88, 20-Dec-2016
1376,Revenue,CAHD,Bed Purchasing - Southmead Hospital,Permanent Nursing,Fshc  1St Floor,1929.88, 20-Dec-2016
1377,Revenue,CAHD,Bed Purchasing - South,Permanent Nursing,Fshc  1St Floor,1929.88, 20-Dec-2016
1378,Revenue,CAHD,Bed Purchasing - South,Permanent Residential,Fshc  1St Floor,3542.08, 20-Dec-2016
1379,Revenue,CAHD,Bed Purchasing - Southmead Hospital,Permanent Residential,Fshc  1St Floor,1946.08, 20-Dec-2016
1380,Revenue,CAHD,Bed Purchasing - North,Permanent Nursing,Fshc  1St Floor,2189.4, 20-Dec-2016
1381,Revenue,CAHD,Bed Purchasing - Southmead Hospital,Respite Planned - Nursing,Fshc  1St Floor,2189.4, 20-Dec-2016
1382,Revenue,CAHD,Bed Purchasing - Southmead Hospital,Respite Planned - Nursing,Fshc  1St Floor,1094.7, 20-Dec-2016
1383,Revenue,CAHD,Bed Purchasing - North,Permanent Nursing,Fshc  1St Floor,1988.44, 20-Dec-2016
1384,Revenue,CAHD,South Glos Users in South Glos Homes,Permanent Nursing,Fshc  1St Floor,625, 20-Dec-2016
1385,Revenue,CAHD,Bed Purchasing - North,Permanent Nursing,Fshc  1St Floor,2189.4, 20-Dec-2016
1386,Revenue,CAHD,Bed Purchasing - North,Permanent Nursing,Fshc  1St Floor,2189.4, 20-Dec-2016
1387,Revenue,CAHD,South Glos Users in South Glos Homes,Permanent Nursing,Fshc  1St Floor,625, 20-Dec-2016
1388,Revenue,CAHD,Bed Purchasing - North,Permanent Nursing,Fshc  1St Floor,1888.64, 20-Dec-2016
1389,Revenue,CAHD,Bed Purchasing - Southmead Hospital,Permanent Nursing,Fshc  1St Floor,2189.4, 20-Dec-2016
1390,Revenue,CAHD,Bed Purchasing - North,Permanent Nursing,Fshc  1St Floor,1929.88, 20-Dec-2016
1391,Revenue,CAHD,Bed Purchasing - South,Permanent Residential,Fshc  1St Floor,2200, 20-Dec-2016
1392,Revenue,CAHD,Bed Purchasing - North,Permanent Residential,Fshc  1St Floor,1831.32, 20-Dec-2016
1393,Revenue,CAHD,Bed Purchasing - Southmead Hospital,Permanent Residential,Fshc  1St Floor,1669.68, 20-Dec-2016
1394,Revenue,CAHD,Bed Purchasing - South,Permanent Residential,Fshc  1St Floor,1948.28, 20-Dec-2016
1395,Revenue,CAHD,Alexandra Way,Premises Maintenance by Contractor,Geoff Lewis Flooring Limited,940, 23-Dec-2016
1396,Revenue,CAHD,CSC - Vinney Green Secure Unit,External Lecturers Fees,Georgia G Dance Class,570, 15-Dec-2016
1397,Revenue,CAHD,Training - Adult Services,Training Expenses,Gizware Systems Limited,500, 14-Dec-2016
1398,Revenue,CAHD,Bed Purchasing - South,Permanent Residential,Gladstone House,5676.16, 20-Dec-2016
1399,Revenue,CAHD,Bed Purchasing - South,Permanent Residential,Glasallt Fawr,5056.12, 20-Dec-2016
1400,Revenue,CAHD,South Glos Users in South Glos Homes,Permanent Nursing,Glebe House Nursing Home,625, 20-Dec-2016
1401,Revenue,CAHD,South Glos Users in South Glos Homes,Permanent Nursing,Glebe House Nursing Home,625, 20-Dec-2016
1402,Revenue,CAHD,South Glos Users in South Glos Homes,Permanent Nursing,Glebe House Nursing Home,625, 20-Dec-2016
1403,Revenue,CAHD,South Glos Users in South Glos Homes,Permanent Nursing,Glebe House Nursing Home,625, 20-Dec-2016
1404,Revenue,CAHD,Bed Purchasing - North,Permanent Nursing,Glebe House Nursing Home,3113.76, 20-Dec-2016
1405,Revenue,CAHD,South Glos Users in South Glos Homes,Permanent Nursing,Glebe House Nursing Home,625, 20-Dec-2016
1406,Revenue,CAHD,South Glos Users in South Glos Homes,Permanent Nursing,Glebe House Nursing Home,625, 20-Dec-2016
1407,Revenue,CAHD,South Glos Users in South Glos Homes,Permanent Nursing,Glebe House Nursing Home,625, 20-Dec-2016
1408,Revenue,CAHD,Bed Purchasing - North,Permanent Residential,Glebe House Nursing Home,3030.88, 20-Dec-2016
1409,Revenue,CAHD,South Glos Users in South Glos Homes,Permanent Nursing,Glebe House Nursing Home,625, 20-Dec-2016
1410,Revenue,CAHD,South Glos Users in South Glos Homes,Permanent Nursing,Glebe House Nursing Home,625, 20-Dec-2016
1411,Revenue,CAHD,Bed Purchasing - North,Permanent Nursing,Glebe House Nursing Home,3004.32, 20-Dec-2016
1412,Revenue,CAHD,South Glos Users in South Glos Homes,Permanent Nursing,Glebe House Nursing Home,625, 20-Dec-2016
1413,Revenue,CAHD,South Glos Users in South Glos Homes,Permanent Nursing,Glebe House Nursing Home,625, 20-Dec-2016
1414,Revenue,CAHD,South Glos Users in South Glos Homes,Permanent Nursing,Glebe House Nursing Home,625, 20-Dec-2016
1415,Revenue,CAHD,South Glos Users in South Glos Homes,Permanent Nursing,Glebe House Nursing Home,625, 20-Dec-2016
1416,Revenue,CAHD,South Glos Users in South Glos Homes,Permanent Nursing,Glebe House Nursing Home,625, 20-Dec-2016
1417,Revenue,CAHD,South Glos Users in South Glos Homes,Permanent Nursing,Glebe House Nursing Home,625, 20-Dec-2016
1418,Revenue,CAHD,South Glos Users in South Glos Homes,Permanent Nursing,Glebe House Nursing Home,625, 20-Dec-2016
1419,Revenue,CAHD,Bed Purchasing - South,Permanent Residential,Glebe House Nursing Home,3300, 20-Dec-2016
1420,Revenue,CAHD,South Glos Users in South Glos Homes,Permanent Nursing,Glebe House Nursing Home,625, 20-Dec-2016
1421,Revenue,CAHD,Bed Purchasing - North,Permanent Nursing,Glebe House Nursing Home,2702.48, 20-Dec-2016
1422,Revenue,CAHD,South Glos Users in South Glos Homes,Permanent Nursing,Glebe House Nursing Home,625, 20-Dec-2016
1423,Revenue,CAHD,South Glos Users in South Glos Homes,Permanent Nursing,Glebe House Nursing Home,625, 20-Dec-2016
1424,Revenue,CAHD,Bed Purchasing - North,Permanent Nursing,Glebe House Nursing Home,3515.18, 20-Dec-2016
1425,Revenue,CAHD,Bed Purchasing - North,Permanent Nursing,Glebe House Nursing Home,3175, 20-Dec-2016
1426,Revenue,CAHD,South Glos Users in South Glos Homes,Permanent Nursing,Glebe House Nursing Home,625, 20-Dec-2016
1427,Revenue,CAHD,South Glos Users in South Glos Homes,Permanent Nursing,Glebe House Nursing Home,625, 20-Dec-2016
1428,Revenue,CAHD,South Glos Users in South Glos Homes,Permanent Nursing,Glebe House Nursing Home,625, 20-Dec-2016
1429,Revenue,CAHD,Bed Purchasing - South,Permanent Residential,Goldcare House,2941.04, 20-Dec-2016
1430,Revenue,CAHD,Bed Purchasing - South,Permanent Residential,Gordena Care Home,2511.44, 20-Dec-2016
1431,Revenue,CAHD,Bed Purchasing - South,Permanent Residential,Gordena Care Home,3575.56, 20-Dec-2016
1432,Revenue,CAHD,Bed Purchasing - South,Permanent Residential,Gordena Care Home,2507.36, 20-Dec-2016
1433,Revenue,CAHD,Bed Purchasing - South,Permanent Residential,Gordena Care Home,4168.8, 20-Dec-2016
1434,Revenue,CAHD,Bed Purchasing - South,Permanent Residential,Gordena Care Home,3586.44, 20-Dec-2016
1435,Revenue,CAHD,Bed Purchasing - South,Permanent Residential,Gordena Care Limited,4686.28, 20-Dec-2016
1436,Revenue,CAHD,Bed Purchasing - South,Permanent Residential,Gordena Care Limited,4647.04, 20-Dec-2016
1437,Revenue,CAHD,Bed purchasing - S28A Under 65 - South,Permanent Residential,Gordena Care Limited,4557.68, 20-Dec-2016
1438,Revenue,CAHD,Bed Purchasing - North,Permanent Residential,Gordena Care Limited,4750.12, 20-Dec-2016
1439,Revenue,CAHD,Bed Purchasing - South,Permanent Nursing,Gracefields Nursing Home,2454.6, 20-Dec-2016
1440,Revenue,CAHD,South Glos Users in South Glos Homes,Permanent Nursing,Gracefields Nursing Home,625, 20-Dec-2016
1441,Revenue,CAHD,South Glos Users in South Glos Homes,Permanent Nursing,Gracefields Nursing Home,625, 20-Dec-2016
1442,Revenue,CAHD,Bed Purchasing - Southmead Hospital,Permanent Nursing,Gracefields Nursing Home,2414.28, 20-Dec-2016
1443,Revenue,CAHD,South Glos Users in South Glos Homes,Permanent Nursing,Gracefields Nursing Home,625, 20-Dec-2016
1444,Revenue,CAHD,South Glos Users in South Glos Homes,Permanent Nursing,Gracefields Nursing Home,625, 20-Dec-2016
1445,Revenue,CAHD,Bed purchasing - Elderly S117 - South,Permanent Nursing,Gracefields Nursing Home,2414.28, 20-Dec-2016
1446,Revenue,CAHD,South Glos Users in South Glos Homes,Permanent Nursing,Gracefields Nursing Home,625, 20-Dec-2016
1447,Revenue,CAHD,South Glos Users in South Glos Homes,Permanent Nursing,Gracefields Nursing Home,625, 20-Dec-2016
1448,Revenue,CAHD,Bed Purchasing - South,Permanent Nursing,Gracefields Nursing Home,8728.57, 20-Dec-2016
1449,Revenue,CAHD,Bed Purchasing - South,Permanent Nursing,Gracefields Nursing Home,3055, 20-Dec-2016
1450,Revenue,CAHD,South Glos Users in South Glos Homes,Permanent Nursing,Gracefields Nursing Home,625, 20-Dec-2016
1451,Revenue,CAHD,Bed Purchasing - South,Fees & Charges Income - General,Gracefields Nursing Home,1612, 20-Dec-2016
1452,Revenue,CAHD,Bed Purchasing - South,Fees & Charges Income - General,Gracefields Nursing Home,1475.04, 20-Dec-2016
1453,Revenue,CAHD,South Glos Users in South Glos Homes,Permanent Nursing,Gracefields Nursing Home,625, 20-Dec-2016
1454,Revenue,CAHD,South Glos Users in South Glos Homes,Permanent Nursing,Gracefields Nursing Home,625, 20-Dec-2016
1455,Revenue,CAHD,Bed Purchasing - Southmead Hospital,Permanent Nursing,Gracefields Nursing Home,545.54, 20-Dec-2016
1456,Revenue,CAHD,South Glos Users in South Glos Homes,Permanent Nursing,Gracefields Nursing Home,625, 20-Dec-2016
1457,Revenue,CAHD,South Glos Users in South Glos Homes,Permanent Nursing,Gracefields Nursing Home,625, 20-Dec-2016
1458,Revenue,CAHD,South Glos Users in South Glos Homes,Permanent Nursing,Gracefields Nursing Home,625, 20-Dec-2016
1459,Revenue,CAHD,South Glos Users in South Glos Homes,Permanent Nursing,Gracefields Nursing Home,625, 20-Dec-2016
1460,Revenue,CAHD,South Glos Users in South Glos Homes,Permanent Nursing,Gracefields Nursing Home,625, 20-Dec-2016
1461,Revenue,CAHD,South Glos Users in South Glos Homes,Permanent Nursing,Gracefields Nursing Home,625, 20-Dec-2016
1462,Revenue,CAHD,South Glos Users in South Glos Homes,Permanent Nursing,Gracefields Nursing Home,625, 20-Dec-2016
1463,Revenue,CAHD,South Glos Users in South Glos Homes,Permanent Nursing,Gracefields Nursing Home,625, 20-Dec-2016
1464,Revenue,CAHD,Bed Purchasing - Southmead Hospital,Respite Planned - Nursing,Gracefields Nursing Home,2656.61, 20-Dec-2016
1465,Revenue,CAHD,Bed Purchasing - Southmead Hospital,Respite Planned - Nursing,Gracefields Nursing Home,1771.07, 20-Dec-2016
1466,Revenue,CAHD,Bed Purchasing - Southmead Hospital,Respite Planned - Nursing,Gracefields Nursing Home,1180.71, 20-Dec-2016
1467,Revenue,CAHD,Bed Purchasing - Southmead Hospital,Permanent Nursing,Gracefields Nursing Home,983.93, 20-Dec-2016
1468,Revenue,CAHD,Bed Purchasing - Southmead Hospital,Permanent Nursing,Gracefields Nursing Home,3055, 20-Dec-2016
1469,Revenue,CAHD,South Glos Users in South Glos Homes,Permanent Nursing,Gracefields Nursing Home,625, 20-Dec-2016
1470,Revenue,CAHD,South Glos Users in South Glos Homes,Permanent Nursing,Gracefields Nursing Home,625, 20-Dec-2016
1471,Revenue,CAHD,Bed Purchasing - Southmead Hospital,Permanent Nursing,Gracefields Nursing Home,512.73, 20-Dec-2016
1472,Revenue,CAHD,Bed Purchasing - South,Fees & Charges Income - General,Gracefields Nursing Home,9843.14, 20-Dec-2016
1473,Revenue,CAHD,Bed Purchasing - South,Permanent Nursing,Gracefields Nursing Home,2932, 20-Dec-2016
1474,Revenue,CAHD,Bed Purchasing - South,Permanent Nursing,Gracefields Nursing Home,12879.86, 20-Dec-2016
1475,Revenue,CAHD,South Glos Users in South Glos Homes,Permanent Nursing,Gracefields Nursing Home,625, 20-Dec-2016
1476,Revenue,CAHD,South Glos Users in South Glos Homes,Permanent Nursing,Gracefields Nursing Home,625, 20-Dec-2016
1477,Revenue,CAHD,South Glos Users in South Glos Homes,Permanent Nursing,Gracefields Nursing Home,625, 20-Dec-2016
1478,Revenue,CAHD,South Glos Users in South Glos Homes,Permanent Nursing,Gracefields Nursing Home,625, 20-Dec-2016
1479,Revenue,CAHD,Bed Purchasing - South,Permanent Nursing,Gracefields Nursing Home,2414.28, 20-Dec-2016
1480,Revenue,CAHD,South Glos Users in South Glos Homes,Permanent Nursing,Gracefields Nursing Home,625, 20-Dec-2016
1481,Revenue,CAHD,South Glos Users in South Glos Homes,Permanent Nursing,Gracefields Nursing Home,625, 20-Dec-2016
1482,Revenue,CAHD,South Glos Users in South Glos Homes,Permanent Nursing,Gracefields Nursing Home,625, 20-Dec-2016
1483,Revenue,CAHD,Bed Purchasing - Southmead Hospital,Permanent Nursing,Gracefields Nursing Home,3055, 20-Dec-2016
1484,Revenue,CAHD,South Glos Users in South Glos Homes,Permanent Nursing,Gracefields Nursing Home,625, 20-Dec-2016
1485,Revenue,CAHD,Bed Purchasing - Southmead Hospital,Permanent Nursing,Gracefields Nursing Home,13181.25, 20-Dec-2016
1486,Revenue,CAHD,Bed Purchasing - Southmead Hospital,Permanent Nursing,Gracefields Nursing Home,2775, 20-Dec-2016
1487,Revenue,CAHD,Bed Purchasing - Southmead Hospital,Fees & Charges Income - General,Gracefields Nursing Home,2464.63, 20-Dec-2016
1488,Revenue,CAHD,Bed Purchasing - Southmead Hospital,Permanent Nursing,Gracefields Nursing Home,2414.28, 20-Dec-2016
1489,Revenue,CAHD,South Glos Users in South Glos Homes,Permanent Nursing,Gracefields Nursing Home,625, 20-Dec-2016
1490,Revenue,CAHD,Bed Purchasing - Southmead Hospital,Permanent Residential,Granada House Residential Home,1831.32, 20-Dec-2016
1491,Revenue,CAHD,Bed Purchasing - North,Permanent Residential,Greensleeves,2010.6, 20-Dec-2016
1492,Revenue,CAHD,Bed Purchasing - South,Permanent Residential,Grove Care,2663.84, 20-Dec-2016
1493,Revenue,CAHD,Tenancy Start Up Scheme,Other Supplies & Services,Grove Property Services,800, 23-Dec-2016
1494,Revenue,CAHD,Bed Purchasing - South,Permanent Residential,Gwendoline House,2209.64, 20-Dec-2016
1495,Revenue,CAHD,Bed Purchasing - Southmead Hospital,Permanent Residential,Gwendoline House,2205.6, 20-Dec-2016
1496,Revenue,CAHD,Bed Purchasing - South,Permanent Residential,Gwendoline House,2209.64, 20-Dec-2016
1497,Revenue,CAHD,Bed Purchasing - South,Permanent Residential,Gwendoline House,1959.68, 20-Dec-2016
1498,Revenue,CAHD,Bed Purchasing - Southmead Hospital,Permanent Residential,Gwendoline House,2008, 20-Dec-2016
1499,Revenue,CAHD,Supporting People Programme,Grants to Voluntary Bodies,Habinteg Housing Association,666, 01-Dec-2016
1500,Revenue,CAHD,Supporting People Programme,Grants to Voluntary Bodies,Habinteg Housing Association,666, 29-Dec-2016
1501,Revenue,CAHD,Social Lettings Agency,Fees - General,Individual,16.46, 23-Dec-2016
1502,Revenue,CAHD,Social Lettings Agency,Other Supplies & Services,Individual,559.6, 23-Dec-2016
1503,Revenue,CAHD,CSC - Through & Leaving Care Team,Agency Staff (Admin/Support Staff) Pay,Hampton`s Resourcing,1620, 06-Dec-2016
1504,Revenue,CAHD,CSC - Through & Leaving Care Team,Agency Staff (Admin/Support Staff) Pay,Hampton`s Resourcing,1782, 13-Dec-2016
1505,Revenue,CAHD,CSC - Through & Leaving Care Team,Agency Staff (Admin/Support Staff) Pay,Hampton`s Resourcing,1620, 20-Dec-2016
1506,Revenue,CAHD,CSC - Through & Leaving Care Team,Agency Staff (Admin/Support Staff) Pay,Hampton`s Resourcing,2160, 23-Dec-2016
1507,Revenue,CAHD,Supporting People Programme,Grants to Voluntary Bodies,Hanover Housing Association,996.16, 01-Dec-2016
1508,Revenue,CAHD,Supporting People Programme,Grants to Voluntary Bodies,Hanover Housing Association,996.16, 29-Dec-2016
1509,Revenue,CAHD,Bed Purchasing - South,Permanent Residential,Harefield Hall,2663.84, 20-Dec-2016
1510,Revenue,CAHD,Bed Purchasing - South,Permanent Residential,Harefield Hall,2351.36, 20-Dec-2016
1511,Revenue,CAHD,Bed Purchasing - South,Permanent Residential,Harefield Hall,2635.36, 20-Dec-2016
1512,Revenue,CAHD,Bed Purchasing - South,Permanent Residential,Harefield Hall,2224.04, 20-Dec-2016
1513,Revenue,CAHD,Bed Purchasing - South,Permanent Residential,Harefield Hall,2412.12, 20-Dec-2016
1514,Revenue,CAHD,Bed Purchasing - South,Permanent Residential,Harefield Hall,2561.36, 20-Dec-2016
1515,Revenue,CAHD,Bed Purchasing - Southmead Hospital,Permanent Nursing,Hazelwood Gardens Nursing Home,2217.04, 20-Dec-2016
1516,Revenue,CAHD,Bed Purchasing - Southmead Hospital,Permanent Nursing,Hc-One Ltd,2182.88, 20-Dec-2016
1517,Revenue,CAHD,Bed Purchasing - Southmead Hospital,Permanent Nursing,Hc-One Ltd,2107.84, 20-Dec-2016
1518,Revenue,CAHD,Bed Purchasing - North,Respite Emergency - Residential,Hc-One Ltd,1624.97, 20-Dec-2016
1519,Revenue,CAHD,Bed Purchasing - North,Permanent Nursing,Hc-One Ltd,1953.05, 20-Dec-2016
1520,Revenue,CAHD,Bed Purchasing - North,Respite Emergency - Nursing,Hc-One Ltd,1624.97, 20-Dec-2016
1521,Revenue,CAHD,Bed Purchasing - North,Permanent Nursing,Hc-One Ltd,2089.2, 20-Dec-2016
1522,Revenue,CAHD,Bed Purchasing - Southmead Hospital,Respite Planned - Nursing,Hc-One Ltd,1051.64, 20-Dec-2016
1523,Revenue,CAHD,Bed Purchasing - South,Permanent Residential,Hc-One Ltd,2112, 20-Dec-2016
1524,Revenue,CAHD,Bed Purchasing - Southmead Hospital,Permanent Nursing,Hc-One Ltd,2728.28, 20-Dec-2016
1525,Revenue,CAHD,Bed Purchasing - Southmead Hospital,Permanent Nursing,Hc-One Ltd,2105.76, 20-Dec-2016
1526,Revenue,CAHD,Bed Purchasing - Southmead Hospital,Permanent Nursing,Hc-One Ltd,2533.4, 20-Dec-2016
1527,Revenue,CAHD,Bed Purchasing - Southmead Hospital,Permanent Nursing,Hc-One Ltd,2527.92, 20-Dec-2016
1528,Revenue,CAHD,Bed Purchasing - Southmead Hospital,Permanent Residential,Head Office,2229.92, 20-Dec-2016
1529,Revenue,CAHD,Home Care - Elderly - South,Day Care / Social Activities,Headway Bristol,970.06, 01-Dec-2016
1530,Revenue,CAHD,Home Care - Elderly - South,Other Small Contracts,Headway Bristol,426.4, 01-Dec-2016
1531,Revenue,CAHD,Home Care - Elderly - North,Day Care / Social Activities,Headway Bristol,788.84, 01-Dec-2016
1532,Revenue,CAHD,Home Care - Elderly - North,Other Small Contracts,Headway Bristol,191.88, 01-Dec-2016
1533,Revenue,CAHD,Home Care - Elderly - South,Day Care / Social Activities,Headway Bristol,927.42, 09-Dec-2016
1534,Revenue,CAHD,Home Care - Elderly - South,Other Small Contracts,Headway Bristol,341.12, 09-Dec-2016
1535,Revenue,CAHD,Home Care - Elderly - North,Day Care / Social Activities,Headway Bristol,634.27, 09-Dec-2016
1536,Revenue,CAHD,Home Care - Elderly - North,Other Small Contracts,Headway Bristol,191.88, 09-Dec-2016
1537,Revenue,CAHD,Home Care - Elderly - South,Day Care / Social Activities,Headway Bristol,1002.04, 14-Dec-2016
1538,Revenue,CAHD,Home Care - Elderly - South,Other Small Contracts,Headway Bristol,426.4, 14-Dec-2016
1539,Revenue,CAHD,Home Care - Elderly - North,Day Care / Social Activities,Headway Bristol,788.84, 14-Dec-2016
1540,Revenue,CAHD,Home Care - Elderly - North,Other Small Contracts,Headway Bristol,186.55, 14-Dec-2016
1541,Revenue,CAHD,Home Care - Elderly - South,Day Care / Social Activities,Headway Bristol,767.52, 19-Dec-2016
1542,Revenue,CAHD,Home Care - Elderly - South,Other Small Contracts,Headway Bristol,421.07, 19-Dec-2016
1543,Revenue,CAHD,Home Care - Elderly - North,Day Care / Social Activities,Headway Bristol,703.56, 19-Dec-2016
1544,Revenue,CAHD,Home Care - Elderly - North,Other Small Contracts,Headway Bristol,191.88, 19-Dec-2016
1545,Revenue,CAHD,Home Care - Elderly - South,Day Care / Social Activities,Headway Bristol,1066, 23-Dec-2016
1546,Revenue,CAHD,Home Care - Elderly - South,Other Small Contracts,Headway Bristol,341.12, 23-Dec-2016
1547,Revenue,CAHD,Home Care - Elderly - North,Day Care / Social Activities,Headway Bristol,762.19, 23-Dec-2016
1548,Revenue,CAHD,Home Care - Elderly - North,Other Small Contracts,Headway Bristol,191.88, 23-Dec-2016
1549,Revenue,CAHD,Home Care - Elderly - South,Day Care / Social Activities,Headway Bristol,970.06, 29-Dec-2016
1550,Revenue,CAHD,Home Care - Elderly - South,Other Small Contracts,Headway Bristol,426.4, 29-Dec-2016
1551,Revenue,CAHD,Home Care - Elderly - North,Day Care / Social Activities,Headway Bristol,703.56, 29-Dec-2016
1552,Revenue,CAHD,Home Care - Elderly - North,Other Small Contracts,Headway Bristol,191.88, 29-Dec-2016
1553,Revenue,CAHD,Home Care - Elderly - South,Other Small Contracts,Helping Hands Homecare,1105.5, 02-Dec-2016
1554,Revenue,CAHD,Home Care - Elderly - North,Day Care / Social Activities,Helping Hands Homecare,192.96, 02-Dec-2016
1555,Revenue,CAHD,Home Care - Elderly - North,Other Small Contracts,Helping Hands Homecare,2553.48, 02-Dec-2016
1556,Revenue,CAHD,Home Care - Elderly - South,Day Care / Social Activities,Helping Hands Homecare,36.18, 09-Dec-2016
1557,Revenue,CAHD,Home Care - Elderly - South,Other Small Contracts,Helping Hands Homecare,1117.56, 09-Dec-2016
1558,Revenue,CAHD,Home Care - Elderly - North,Day Care / Social Activities,Helping Hands Homecare,188.94, 09-Dec-2016
1559,Revenue,CAHD,Home Care - Elderly - North,Other Small Contracts,Helping Hands Homecare,2782.34, 09-Dec-2016
1560,Revenue,CAHD,Home Care - Elderly - South,Other Small Contracts,Helping Hands Homecare,1162.46, 16-Dec-2016
1561,Revenue,CAHD,Home Care - Elderly - North,Day Care / Social Activities,Helping Hands Homecare,212.16, 16-Dec-2016
1562,Revenue,CAHD,Home Care - Elderly - North,Other Small Contracts,Helping Hands Homecare,2830.16, 16-Dec-2016
1563,Revenue,CAHD,Home Care - Elderly - South,Other Small Contracts,Helping Hands Homecare,1277.38, 29-Dec-2016
1564,Revenue,CAHD,Home Care - Elderly - North,Day Care / Social Activities,Helping Hands Homecare,229.84, 29-Dec-2016
1565,Revenue,CAHD,Home Care - Elderly - North,Other Small Contracts,Helping Hands Homecare,2907.54, 29-Dec-2016
1566,Revenue,CAHD,Home Care - Elderly - South,Other Small Contracts,Helping Hands Homecare,1166.88, 29-Dec-2016
1567,Revenue,CAHD,Home Care - Elderly - North,Day Care / Social Activities,Helping Hands Homecare,229.84, 29-Dec-2016
1568,Revenue,CAHD,Home Care - Elderly - North,Other Small Contracts,Helping Hands Homecare,2744.7, 29-Dec-2016
1569,Revenue,CAHD,Home Care - Elderly - North,Other Small Contracts,Helping Hands Homecare,840, 29-Dec-2016
1570,Revenue,CAHD,Placements OLA Special Schools and RB,Other L.A.'s - General,Henbury Court Primary Academy,833.33, 23-Dec-2016
1571,Revenue,CAHD,Placements OLA Special Schools and RB,Other L.A.'s - General,Henbury Court Primary Academy,833.33, 19-Dec-2016
1572,Revenue,CAHD,S117 Placements PCT,Permanent Residential,Hesley Hall,18656.52, 20-Dec-2016
1573,Revenue,CAHD,Bed Purchasing - North,Permanent Residential,High Border Lodge,1608.9, 20-Dec-2016
1574,Revenue,CAHD,Bed Purchasing - North,Fees & Charges Income - General,High Border Lodge,560.14, 20-Dec-2016
1575,Revenue,CAHD,CSC - Care Leavers Support Costs,"Provisions (Food, etc)",High Street Vouchers Ltd T/A Park Retail Ltd,2156, 14-Dec-2016
1576,Revenue,CAHD,Bed Purchasing - Southmead Hospital,Permanent Residential,Highfield House,2121, 20-Dec-2016
1577,Revenue,CAHD,Bed Purchasing - Southmead Hospital,Permanent Residential,Highgate Studios,2348.16, 20-Dec-2016
1578,Revenue,CAHD,Bed Purchasing - North,Permanent Residential,Holmleigh Care Homes Ltd,4520.36, 20-Dec-2016
1579,Revenue,CAHD,Bed Purchasing - South,Permanent Residential,Holmleigh Care Homes Ltd,4318, 20-Dec-2016
1580,Revenue,CAHD,Jointly Funded H&SC Packages,Permanent Residential,Holmleigh Care Homes Ltd,1237.08, 20-Dec-2016
1581,Revenue,CAHD,Bed Purchasing - North,Permanent Residential,Home Farm Trust Ltd  5-6 Brook Office Pa,3273.68, 20-Dec-2016
1582,Revenue,CAHD,Bed Purchasing - North,Permanent Residential,Home Farm Trust Ltd  5-6 Brook Office Pa,3802.88, 20-Dec-2016
1583,Revenue,CAHD,18-25 Year Olds,Permanent Residential,Home From Home Care Ltd,9615.76, 20-Dec-2016
1584,Revenue,CAHD,Home Care - Elderly - South,Other Small Contracts,Homecare 4U,358.02, 08-Dec-2016
1585,Revenue,CAHD,Home Care - Elderly - North,Other Small Contracts,Homecare 4U,985.66, 08-Dec-2016
1586,Revenue,CAHD,Home Care - Elderly - South,Other Small Contracts,Homecare 4U,353.6, 08-Dec-2016
1587,Revenue,CAHD,Home Care - Elderly - North,Other Small Contracts,Homecare 4U,937.04, 08-Dec-2016
1588,Revenue,CAHD,Home Care - Elderly - South,Other Small Contracts,Homecare 4U,353.6, 23-Dec-2016
1589,Revenue,CAHD,Home Care - Elderly - North,Other Small Contracts,Homecare 4U,985.66, 23-Dec-2016
1590,Revenue,CAHD,Home Care - Elderly - South,Other Small Contracts,Homecare 4U,349.18, 29-Dec-2016
1591,Revenue,CAHD,Home Care - Elderly - North,Other Small Contracts,Homecare 4U,1043.12, 29-Dec-2016
1592,Revenue,CAHD,Bed Purchasing - North,Permanent Residential,Homes Caring For Autism Ltd  Churchill H,8071, 20-Dec-2016
1593,Revenue,CAHD,Jointly Funded H&SC Packages,Permanent Residential,Homes Caring For Autism Ltd  Churchill H,2438.64, 20-Dec-2016
1594,Revenue,CAHD,18-25 Year Olds,Permanent Residential,Homes Caring For Autism Ltd  Churchill H,5691.32, 20-Dec-2016
1595,Revenue,CAHD,Jointly Funded H&SC Packages,Permanent Residential,Homes Caring For Autism Ltd  Churchill H,7936.08, 20-Dec-2016
1596,Revenue,CAHD,Bed Purchasing - Southmead Hospital,Permanent Nursing,Horfield Care Limited,1445.57, 06-Dec-2016
1597,Revenue,CAHD,Bed Purchasing - Southmead Hospital,Permanent Nursing,Horfield Care Limited,1816.5, 06-Dec-2016
1598,Revenue,CAHD,Bed Purchasing - Southmead Hospital,Permanent Nursing,Horfield Care Limited,1337.01, 06-Dec-2016
1599,Revenue,CAHD,Bed Purchasing - South,Permanent Nursing,Horfield Care Limited,1334.87, 06-Dec-2016
1600,Revenue,CAHD,Bed Purchasing - South,Permanent Nursing,Horfield Care Limited,1355.83, 06-Dec-2016
1601,Revenue,CAHD,Home Care - Elderly - North,Day Care / Social Activities,Housing & Care 21,1173.9, 22-Dec-2016
1602,Revenue,CAHD,Supporting People Programme,Grants to Voluntary Bodies,Housing 21,631.5, 01-Dec-2016
1603,Revenue,CAHD,Supporting People Programme,Grants to Voluntary Bodies,Housing 21,957.66, 01-Dec-2016
1604,Revenue,CAHD,Supporting People Programme,Grants to Voluntary Bodies,Housing 21,631.5, 29-Dec-2016
1605,Revenue,CAHD,Supporting People Programme,Grants to Voluntary Bodies,Housing 21,957.66, 29-Dec-2016
1606,Revenue,CAHD,Home Care - Elderly - North,Private & Voluntary Home Care,Housing 21,40371.16, 09-Dec-2016
1607,Revenue,CAHD,Home Care - Elderly - South,Private & Voluntary Home Care,Housing 21,25849.77, 01-Dec-2016
1608,Revenue,CAHD,Home Care - Elderly - South,Private & Voluntary Home Care,Housing 21,25849.77, 29-Dec-2016
1609,Revenue,CAHD,CSC - Care Leavers Support Costs,Personal Needs of Clients,Impact Mentoring,975, 29-Dec-2016
1610,Revenue,CAHD,CSC - Care Leavers Support Costs,Personal Needs of Clients,Impact Mentoring,1050, 29-Dec-2016
1611,Revenue,CAHD,CSC - LAT Placements,Personal Needs of Clients,Impact Mentoring,500, 23-Dec-2016
1612,Revenue,CAHD,CSC - Care Leavers Support Costs,Personal Needs of Clients,Impact Mentoring,975, 29-Dec-2016
1613,Revenue,CAHD,CSC - Care Leavers Support Costs,Personal Needs of Clients,Impact Mentoring,975, 29-Dec-2016
1614,Revenue,CAHD,CSC - LAT Placements,Personal Needs of Clients,Impact Mentoring,500, 28-Dec-2016
1615,Revenue,CAHD,CSC - Care Leavers Support Costs,Personal Needs of Clients,Impact Mentoring,1050, 29-Dec-2016
1616,Revenue,CAHD,SEN Transport General Account,Client Transport,Impact Mentoring,720, 20-Dec-2016
1617,Revenue,CAHD,Minor Adaptations Service,Operational Equipment,Initially Yours Embroiderers Limited,552.15, 08-Dec-2016
1618,Revenue,CAHD,Schools Specific Grant Income,Other Public Bodies,Inspirational Futures Trust,500, 16-Dec-2016
1619,Revenue,CAHD,NHS Health Checks & Tobacco Control,Other Supplies & Services,Intermedical,17285, 28-Dec-2016
1620,Revenue,CAHD,Grange School Holding Account,Water Charges,Interserve FS (UK) Limited,853.55, 12-Dec-2016
1621,Revenue,CAHD,CSC - Adoption Support Fund,Post Adoption,Intramosaic Counselling and Psychotherapy Limited,1219.6, 12-Dec-2016
1622,Revenue,CAHD,CSC - Adoption Support Fund,Post Adoption,Intramosaic Counselling and Psychotherapy Limited,1877, 12-Dec-2016
1623,Revenue,CAHD,Care Management Team - South,Agency Staff (Operational)/PCT Pay,IPE,1803.76, 22-Dec-2016
1624,Revenue,CAHD,Social Lettings Agency,Fees - General,Individual,12.22, 09-Dec-2016
1625,Revenue,CAHD,Social Lettings Agency,Other Supplies & Services,Individual,690.32, 09-Dec-2016
1626,Revenue,CAHD,Social Lettings Agency,Fees - General,Individual,10.53, 01-Dec-2016
1627,Revenue,CAHD,Social Lettings Agency,Other Supplies & Services,Individual,595.11, 01-Dec-2016
1628,Revenue,CAHD,Social Lettings Agency,Fees - General,Individual,10.53, 29-Dec-2016
1629,Revenue,CAHD,Social Lettings Agency,Other Supplies & Services,Individual,595.11, 29-Dec-2016
1630,Revenue,CAHD,"Education, Learning and Skills",Consultants Fees,Individual,500, 05-Dec-2016
1631,Revenue,CAHD,CSC - Adoption Support Fund,Post Adoption,Individual,907.5, 02-Dec-2016
1632,Revenue,CAHD,CSC - Adoption Support Fund,Post Adoption,Individual,907.5, 02-Dec-2016
1633,Revenue,CAHD,CSC - Adoption Support Fund,Post Adoption,Individual,1200, 23-Dec-2016
1634,Revenue,CAHD,Implementation of Education Commission,Consultants Fees,Individual,2000, 15-Dec-2016
1635,Revenue,CAHD,Training - Adult Services,Training Expenses,Individual,600, 08-Dec-2016
1636,Revenue,CAHD,Bed Purchasing - South,Permanent Residential,Jonen House,4026.92, 20-Dec-2016
1637,Revenue,CAHD,CSC - Care Leavers Independent Living,Adults - Family Support,Jordan Xavier Ltd,2858.58, 29-Dec-2016
1638,Revenue,CAHD,CSC - Care Leavers Independent Living,Adults - Family Support,Jordan Xavier Ltd,3055.72, 29-Dec-2016
1639,Revenue,CAHD,Virtual School for Looked After Children,Consultants Fees,Individual,1600, 12-Dec-2016
1640,Revenue,CAHD,Virtual School for Looked After Children,Consultants Fees,Individual,4000, 12-Dec-2016
1641,Revenue,CAHD,Home Care - Elderly - South,Supported Living,Julia Simone- Supp. Ind.,1194.4, 20-Dec-2016
1642,Revenue,CAHD,Younger MH non-res purchasing,Supported Living,Julia Simone- Supp. Ind.,1194.4, 20-Dec-2016
1643,Revenue,CAHD,Younger MH non-res purchasing,Supported Living,Julia Simone- Supp. Ind.,1194.4, 20-Dec-2016
1644,Revenue,CAHD,Home Care - Elderly - North,Supported Living,Julia Simone- Supp. Ind.,1228.8, 20-Dec-2016
1645,Revenue,CAHD,Younger MH non-res purchasing,Supported Living,Julia Simone- Supp. Ind.,1194.24, 20-Dec-2016
1646,Revenue,CAHD,Younger MH non-res purchasing,Supported Living,Julia Simone- Supp. Ind.,1194.36, 20-Dec-2016
1647,Revenue,CAHD,Bed Purchasing - South,Permanent Residential,Julia Simone- Supp. Ind.,8835.76, 20-Dec-2016
1648,Revenue,CAHD,Bed purchasing -S28A  Under 65 - North,Permanent Residential,Julia Simone- Supp. Ind.,7873.76, 20-Dec-2016
1649,Revenue,CAHD,CSC - Legal Fees,Legal Fees,K International Plc,1936.76, 14-Dec-2016
1650,Revenue,CAHD,Housing Needs,Interpreting & Translation,K International Plc,577.27, 29-Dec-2016
1651,Revenue,CAHD,Statemented Support Payments to OLAs,Other L.A.'s - General,Katharine Lady Berkeley School,533.3, 09-Dec-2016
1652,Revenue,CAHD,Statemented Support Payments to OLAs,Other L.A.'s - General,Katharine Lady Berkeley School,533.3, 23-Dec-2016
1653,Revenue,CAHD,Community Support - North,Preventative Assistance,KCC Cleaning Services Limited,517.5, 09-Dec-2016
1654,Revenue,CAHD,Community Support - North,Preventative Assistance,KCC Cleaning Services Limited,3270, 23-Dec-2016
1655,Revenue,CAHD,Home Care - Elderly - South,Other Small Contracts,Kensington Community Care,2939.3, 08-Dec-2016
1656,Revenue,CAHD,Home Care - Elderly - North,Other Small Contracts,Kensington Community Care,5175.82, 08-Dec-2016
1657,Revenue,CAHD,Home Care - Elderly - South,Other Small Contracts,Kensington Community Care,2700.62, 13-Dec-2016
1658,Revenue,CAHD,Home Care - Elderly - North,Other Small Contracts,Kensington Community Care,5237.7, 13-Dec-2016
1659,Revenue,CAHD,Home Care - Elderly - South,Other Small Contracts,Kensington Community Care,3071.9, 29-Dec-2016
1660,Revenue,CAHD,Home Care - Elderly - North,Other Small Contracts,Kensington Community Care,5127.2, 29-Dec-2016
1661,Revenue,CAHD,Home Care - Elderly - South,Other Small Contracts,Kensington Community Care,519.01, 08-Dec-2016
1662,Revenue,CAHD,Home Care - Elderly - South,Other Small Contracts,Kensington Community Care,574.81, 08-Dec-2016
1663,Revenue,CAHD,Bed Purchasing - Southmead Hospital,Permanent Residential,Kenver House Residential Home,2220.08, 20-Dec-2016
1664,Revenue,CAHD,Bed Purchasing - Southmead Hospital,Permanent Residential,Kenver House Residential Home,2220.08, 20-Dec-2016
1665,Revenue,CAHD,Bed Purchasing - Southmead Hospital,Permanent Residential,Kenver House Residential Home,2431.48, 20-Dec-2016
1666,Revenue,CAHD,Bed Purchasing - South,Permanent Residential,Kenver House Residential Home,2223.12, 20-Dec-2016
1667,Revenue,CAHD,Bed Purchasing - South,Permanent Residential,Kenver House Residential Home,2220.08, 20-Dec-2016
1668,Revenue,CAHD,Bed Purchasing - North,Permanent Residential,Kenver House Residential Home,2220.08, 20-Dec-2016
1669,Revenue,CAHD,Bed Purchasing - Southmead Hospital,Respite Emergency - Residential,Kenver House Residential Home,1736.77, 20-Dec-2016
1670,Revenue,CAHD,Bed Purchasing - Southmead Hospital,Respite Emergency - Residential,Kenver House Residential Home,694.71, 20-Dec-2016
1671,Revenue,CAHD,Bed Purchasing - Southmead Hospital,Permanent Residential,Kenver House Residential Home,2286.28, 20-Dec-2016
1672,Revenue,CAHD,Bed Purchasing - South,Permanent Residential,Kenver House Residential Home,2431.48, 20-Dec-2016
1673,Revenue,CAHD,Bed Purchasing - South,Permanent Residential,Kenver House Residential Home,4862.96, 20-Dec-2016
1674,Revenue,CAHD,Bed Purchasing - South,Permanent Residential,Kenver House Residential Home,2431.48, 20-Dec-2016
1675,Revenue,CAHD,Bed Purchasing - South,Fees & Charges Income - General,Kenver House Residential Home,1026.93, 20-Dec-2016
1676,Revenue,CAHD,Bed Purchasing - South,Permanent Residential,Kenver House Residential Home,2431.48, 20-Dec-2016
1677,Revenue,CAHD,Bed Purchasing - South,Permanent Residential,Kenver House Residential Home,2431.48, 20-Dec-2016
1678,Revenue,CAHD,Bed Purchasing - South,Permanent Residential,Kenver House Residential Home,2431.48, 20-Dec-2016
1679,Revenue,CAHD,Bed Purchasing - Southmead Hospital,Permanent Residential,Kenver House Residential Home,2220, 20-Dec-2016
1680,Revenue,CAHD,Bed Purchasing - South,Permanent Residential,Kenver House Residential Home,2220.08, 20-Dec-2016
1681,Revenue,CAHD,Supporting People Programme,Grants to Voluntary Bodies,Keyring Living Support Networks,2988.58, 01-Dec-2016
1682,Revenue,CAHD,Supporting People Programme,Grants to Voluntary Bodies,Keyring Living Support Networks,2988.58, 29-Dec-2016
1683,Revenue,CAHD,CSC - Kids Contract,Grants to Voluntary Bodies,Kids,43750, 19-Dec-2016
1684,Revenue,CAHD,CSC - Short Breaks,Grants to Voluntary Bodies,Kids,1343.75, 19-Dec-2016
1685,Revenue,CAHD,Bed Purchasing - North,Permanent Residential,Kilkhampton Lodge,17500, 20-Dec-2016
1686,Revenue,CAHD,CSC - OT Equipment - Children,Daily Living Equipment,Kinderkey Healthcare Limited,1675, 29-Dec-2016
1687,Revenue,CAHD,Bed Purchasing - North,Permanent Nursing,Kingfisher Lodge Care Centre,3286.36, 20-Dec-2016
1688,Revenue,CAHD,Mental Health and Emotional Wellbeing,Project Funding,Kingsmeadow Community Flat,25000, 08-Dec-2016
1689,Revenue,CAHD,Supporting People Programme,Grants to Voluntary Bodies,Kingswood Young Homeless Project,17359.58, 01-Dec-2016
1690,Revenue,CAHD,Supporting People Programme,Grants to Voluntary Bodies,Kingswood Young Homeless Project,17359.58, 29-Dec-2016
1691,Revenue,CAHD,CSC - LAC Housing Support Grants,Grants to Voluntary Bodies,Kingswood Young Homeless Project,9436, 19-Dec-2016
1692,Revenue,CAHD,CSC - Emergency Duty Team,Furniture & Fittings Loose,Kinnarps UK Limited (Invoice Account),582.4, 05-Dec-2016
1693,Revenue,CAHD,CSC - Adoption West Project,Consultants Fees,Individual,6000, 28-Dec-2016
1694,Revenue,CAHD,Bed Purchasing - North,Permanent Residential,Kisimul Group,12079.48, 20-Dec-2016
1695,Revenue,CAHD,Supporting People Programme,Grants to Voluntary Bodies,Knightstone Housing Association Limited,2544.33, 01-Dec-2016
1696,Revenue,CAHD,Supporting People Programme,Grants to Voluntary Bodies,Knightstone Housing Association Limited,865.25, 01-Dec-2016
1697,Revenue,CAHD,Supporting People Programme,Grants to Voluntary Bodies,Knightstone Housing Association Limited,2543.75, 01-Dec-2016
1698,Revenue,CAHD,Supporting People Programme,Grants to Voluntary Bodies,Knightstone Housing Association Limited,1833.66, 01-Dec-2016
1699,Revenue,CAHD,Supporting People Programme,Grants to Voluntary Bodies,Knightstone Housing Association Limited,13845.33, 01-Dec-2016
1700,Revenue,CAHD,Supporting People Programme,Grants to Voluntary Bodies,Knightstone Housing Association Limited,8747.5, 01-Dec-2016
1701,Revenue,CAHD,Supporting People Programme,Grants to Voluntary Bodies,Knightstone Housing Association Limited,7789, 01-Dec-2016
1702,Revenue,CAHD,Supporting People Programme,Grants to Voluntary Bodies,Knightstone Housing Association Limited,2544.33, 29-Dec-2016
1703,Revenue,CAHD,Supporting People Programme,Grants to Voluntary Bodies,Knightstone Housing Association Limited,865.25, 29-Dec-2016
1704,Revenue,CAHD,Supporting People Programme,Grants to Voluntary Bodies,Knightstone Housing Association Limited,2543.75, 29-Dec-2016
1705,Revenue,CAHD,Supporting People Programme,Grants to Voluntary Bodies,Knightstone Housing Association Limited,1833.66, 29-Dec-2016
1706,Revenue,CAHD,Supporting People Programme,Grants to Voluntary Bodies,Knightstone Housing Association Limited,7789, 29-Dec-2016
1707,Revenue,CAHD,Supporting People Programme,Grants to Voluntary Bodies,Knightstone Housing Association Limited,8747.5, 29-Dec-2016
1708,Revenue,CAHD,Supporting People Programme,Grants to Voluntary Bodies,Knightstone Housing Association Limited,13845.33, 29-Dec-2016
1709,Revenue,CAHD,Placements OLA Special Schools and RB,Other L.A.'s - General,Knowle DGE,2198.33, 23-Dec-2016
1710,Revenue,CAHD,Placements OLA Special Schools and RB,Other L.A.'s - General,Knowle DGE,2198.33, 19-Dec-2016
1711,Revenue,CAHD,Placements OLA Special Schools and RB,Other L.A.'s - General,Knowle DGE,948.33, 23-Dec-2016
1712,Revenue,CAHD,Placements OLA Special Schools and RB,Other L.A.'s - General,Knowle DGE,948.33, 19-Dec-2016
1713,Revenue,CAHD,Placements OLA Special Schools and RB,Other L.A.'s - General,Knowle DGE,948.33, 23-Dec-2016
1714,Revenue,CAHD,Placements OLA Special Schools and RB,Other L.A.'s - General,Knowle DGE,948.33, 19-Dec-2016
1715,Revenue,CAHD,Placements OLA Special Schools and RB,Other L.A.'s - General,Knowle DGE,948.33, 23-Dec-2016
1716,Revenue,CAHD,Placements OLA Special Schools and RB,Other L.A.'s - General,Knowle DGE,948.33, 19-Dec-2016
1717,Revenue,CAHD,Home Care - Elderly - South,Other Small Contracts,Kumari Care Limited,1460.6, 20-Dec-2016
1718,Revenue,CAHD,Home Care - Elderly - North,Other Small Contracts,Kumari Care Limited,847.37, 20-Dec-2016
1719,Revenue,CAHD,Home Care - Elderly - South,Other Small Contracts,Kumari Care Limited,1552.16, 08-Dec-2016
1720,Revenue,CAHD,Home Care - Elderly - North,Other Small Contracts,Kumari Care Limited,844.32, 08-Dec-2016
1721,Revenue,CAHD,Home Care - Elderly - South,Other Small Contracts,Kumari Care Limited,1713.48, 20-Dec-2016
1722,Revenue,CAHD,Home Care - Elderly - North,Other Small Contracts,Kumari Care Limited,847.31, 20-Dec-2016
1723,Revenue,CAHD,Home Care - Elderly - North,Other Small Contracts,Kumari Care Limited,2556.83, 07-Dec-2016
1724,Revenue,CAHD,Bed Purchasing - North,Permanent Nursing,Larchfield Care Home,3029, 20-Dec-2016
1725,Revenue,CAHD,Bed Purchasing - North,Permanent Residential,Leonard Cheshire  National Account Centr,3414.72, 20-Dec-2016
1726,Revenue,CAHD,Bed Purchasing - South,Permanent Residential,Leonard Cheshire  National Account Centr,3776.36, 20-Dec-2016
1727,Revenue,CAHD,Bed Purchasing - North,Permanent Nursing,Leonard Cheshire  National Account Centr,3963.8, 20-Dec-2016
1728,Revenue,CAHD,Bed Purchasing - North,Permanent Nursing,Leonard Cheshire  National Account Centr,3263.68, 20-Dec-2016
1729,Revenue,CAHD,18-25 Year Olds,Permanent Residential,Leonard Cheshire  National Account Centr,3709.52, 20-Dec-2016
1730,Revenue,CAHD,Bed Purchasing - North,Permanent Residential,Leonard Cheshire  National Account Centr,6433, 20-Dec-2016
1731,Revenue,CAHD,Bed Purchasing - North,Permanent Residential,Leonard Cheshire  National Account Centr,1148.46, 20-Dec-2016
1732,Revenue,CAHD,Bed Purchasing - North,Permanent Nursing,Leonard Cheshire  National Account Centr,3303.68, 20-Dec-2016
1733,Revenue,CAHD,Bed Purchasing - North,Permanent Nursing,Leonard Cheshire  National Account Centr,5435.88, 20-Dec-2016
1734,Revenue,CAHD,Bed Purchasing - North,Permanent Residential,Leonard Cheshire  National Account Centr,3356.88, 20-Dec-2016
1735,Revenue,CAHD,Bed Purchasing - North,Permanent Nursing,Leonard Cheshire  National Account Centr,3206.68, 20-Dec-2016
1736,Revenue,CAHD,Bed Purchasing - North,Permanent Nursing,Leonard Cheshire  National Account Centr,5740.64, 20-Dec-2016
1737,Revenue,CAHD,Bed Purchasing - South,Permanent Nursing,Leonard Cheshire  National Account Centr,3386.96, 20-Dec-2016
1738,Revenue,CAHD,Bed Purchasing - Southmead Hospital,Permanent Nursing,Leonard Cheshire  National Account Centr,3468.24, 20-Dec-2016
1739,Revenue,CAHD,South Glos Users in all other LA Homes,Permanent Nursing,Leonard Cheshire  National Account Centr,860.16, 20-Dec-2016
1740,Revenue,CAHD,Bed Purchasing - South,Respite Emergency - Residential,Leonard Cheshire  National Account Centr,17121.87, 20-Dec-2016
1741,Revenue,CAHD,Bed Purchasing - South,Respite Emergency - Residential,Leonard Cheshire  National Account Centr,4637.17, 20-Dec-2016
1742,Revenue,CAHD,Bed Purchasing - North,Permanent Nursing,Leonard Cheshire  National Account Centr,3796.6, 20-Dec-2016
1743,Revenue,CAHD,Bed Purchasing - North,Permanent Nursing,Leonard Cheshire  National Account Centr,4555.68, 20-Dec-2016
1744,Revenue,CAHD,Home Care - Elderly - North,Supported Living,Lifeways Community Care (Gloucester) Limited,2835, 29-Dec-2016
1745,Revenue,CAHD,Bed Purchasing - Southmead Hospital,Permanent Residential,Little Croft,1831.32, 20-Dec-2016
1746,Revenue,CAHD,Bed Purchasing - Southmead Hospital,Permanent Residential,Little Croft,1831.32, 20-Dec-2016
1747,Revenue,CAHD,Bed Purchasing - North,Permanent Residential,Little Croft,1831.32, 20-Dec-2016
1748,Revenue,CAHD,Bed Purchasing - South,Permanent Residential,Little Croft,2027.2, 20-Dec-2016
1749,Revenue,CAHD,Bed Purchasing - Southmead Hospital,Permanent Residential,Little Croft,2008, 20-Dec-2016
1750,Revenue,CAHD,Bed Purchasing - Southmead Hospital,Permanent Residential,Little Croft,1831.32, 20-Dec-2016
1751,Revenue,CAHD,Bed Purchasing - North,Permanent Residential,Little Croft,1831.32, 20-Dec-2016
1752,Revenue,CAHD,Bed Purchasing - Southmead Hospital,Permanent Residential,Little Croft,2229.92, 20-Dec-2016
1753,Revenue,CAHD,Bed Purchasing - Southmead Hospital,Respite Planned - Residential,Little Croft,2700, 20-Dec-2016
1754,Revenue,CAHD,Bed Purchasing - Southmead Hospital,Permanent Residential,Little Croft,867.86, 20-Dec-2016
1755,Revenue,CAHD,Bed Purchasing - South,Permanent Residential,Little Croft,2300, 20-Dec-2016
1756,Revenue,CAHD,Bed Purchasing - Southmead Hospital,Permanent Residential,Little Croft,3375, 20-Dec-2016
1757,Revenue,CAHD,Bed Purchasing - Southmead Hospital,Permanent Residential,Little Croft,2700, 20-Dec-2016
1758,Revenue,CAHD,Bed Purchasing - South,Permanent Residential,Little Croft,1831.32, 20-Dec-2016
1759,Revenue,CAHD,Bed Purchasing - Southmead Hospital,Permanent Residential,Little Croft,2304.52, 20-Dec-2016
1760,Revenue,CAHD,Bed Purchasing - Southmead Hospital,Permanent Residential,Little Croft,1813.52, 20-Dec-2016
1761,Revenue,CAHD,Bed Purchasing - South,Permanent Residential,Little Croft,2276.85, 20-Dec-2016
1762,Revenue,CAHD,Bed Purchasing - South,Permanent Residential,Little Croft,2500, 20-Dec-2016
1763,Revenue,CAHD,Bed Purchasing - Southmead Hospital,Permanent Residential,Little Croft,1989.28, 20-Dec-2016
1764,Revenue,CAHD,Bed Purchasing - South,Permanent Residential,Little Croft,2010.4, 20-Dec-2016
1765,Revenue,CAHD,Bed Purchasing - Southmead Hospital,Permanent Residential,Little Croft,2500, 20-Dec-2016
1766,Revenue,CAHD,Bed Purchasing - Southmead Hospital,Permanent Residential,Little Croft,1831.32, 20-Dec-2016
1767,Revenue,CAHD,Bed Purchasing - South,Permanent Residential,Little Croft,5914.29, 20-Dec-2016
1768,Revenue,CAHD,Bed Purchasing - South,Permanent Residential,Little Croft,2300, 20-Dec-2016
1769,Revenue,CAHD,Bed Purchasing - South,Fees & Charges Income - General,Little Croft,1803.06, 20-Dec-2016
1770,Revenue,CAHD,Bed Purchasing - South,Fees & Charges Income - General,Little Croft,1325.67, 20-Dec-2016
1771,Revenue,CAHD,Bed Purchasing - Southmead Hospital,Permanent Residential,Little Croft,2200, 20-Dec-2016
1772,Revenue,CAHD,Bed Purchasing - Southmead Hospital,Permanent Residential,Little Croft,2700, 20-Dec-2016
1773,Revenue,CAHD,Bed Purchasing - Southmead Hospital,Permanent Residential,Little Croft,1350, 20-Dec-2016
1774,Revenue,CAHD,Bed Purchasing - North,Permanent Residential,Little Croft,1831.32, 20-Dec-2016
1775,Revenue,CAHD,Bed Purchasing - Southmead Hospital,Permanent Residential,Little Croft,1800, 20-Dec-2016
1776,Revenue,CAHD,Bed Purchasing - South,Permanent Residential,Little Croft,2010.4, 20-Dec-2016
1777,Revenue,CAHD,Bed Purchasing - Southmead Hospital,Permanent Residential,Little Croft,1831.32, 20-Dec-2016
1778,Revenue,CAHD,Bed Purchasing - Southmead Hospital,Permanent Residential,Little Croft,2700, 20-Dec-2016
1779,Revenue,CAHD,Bed Purchasing - Southmead Hospital,Permanent Residential,Little Croft,1831.32, 20-Dec-2016
1780,Revenue,CAHD,Bed Purchasing - South,Permanent Residential,Little Croft,2008, 20-Dec-2016
1781,Revenue,CAHD,Bed Purchasing - South,Permanent Residential,Little Croft,2200, 20-Dec-2016
1782,Revenue,CAHD,Bed Purchasing - North,Permanent Residential,Littlecroft Residential Homes  Longcroft,6967.6, 20-Dec-2016
1783,Revenue,CAHD,Mental Health and Emotional Wellbeing,Project Funding,Liz Andrews,720, 06-Dec-2016
1784,Revenue,CAHD,CSC - Vinney Green Secure Unit,"Holidays, Outings & Visits",Lloyds TSB Commercial Finance Limited,2235.6, 13-Dec-2016
1785,Revenue,CAHD,18-25 Year Olds,Supported Living,Lloyds TSB Commercial Finance Limited,2878.4, 16-Dec-2016
1786,Revenue,CAHD,Home Care - Elderly - South,Day Care / Social Activities,Lloyds TSB Commercial Finance Limited,5365.88, 16-Dec-2016
1787,Revenue,CAHD,Home Care - Elderly - South,Other Small Contracts,Lloyds TSB Commercial Finance Limited,5935.47, 16-Dec-2016
1788,Revenue,CAHD,Home Care - Elderly - South,Supported Living,Lloyds TSB Commercial Finance Limited,8235.61, 16-Dec-2016
1789,Revenue,CAHD,Home Care - Elderly - North,Day Care / Social Activities,Lloyds TSB Commercial Finance Limited,212.16, 16-Dec-2016
1790,Revenue,CAHD,Home Care - Elderly - North,Supported Living,Lloyds TSB Commercial Finance Limited,1984.58, 16-Dec-2016
1791,Revenue,CAHD,Younger MH non-res purchasing,Other Small Contracts,Lloyds TSB Commercial Finance Limited,10793.12, 16-Dec-2016
1792,Revenue,CAHD,18-25 Year Olds,Supported Living,Lloyds TSB Commercial Finance Limited,2878.4, 16-Dec-2016
1793,Revenue,CAHD,Home Care - Elderly - South,Day Care / Social Activities,Lloyds TSB Commercial Finance Limited,5339.36, 16-Dec-2016
1794,Revenue,CAHD,Home Care - Elderly - South,Other Small Contracts,Lloyds TSB Commercial Finance Limited,6299.81, 16-Dec-2016
1795,Revenue,CAHD,Home Care - Elderly - South,Supported Living,Lloyds TSB Commercial Finance Limited,7653.97, 16-Dec-2016
1796,Revenue,CAHD,Home Care - Elderly - North,Day Care / Social Activities,Lloyds TSB Commercial Finance Limited,212.16, 16-Dec-2016
1797,Revenue,CAHD,Home Care - Elderly - North,Supported Living,Lloyds TSB Commercial Finance Limited,1993.42, 16-Dec-2016
1798,Revenue,CAHD,Younger MH non-res purchasing,Other Small Contracts,Lloyds TSB Commercial Finance Limited,10792.72, 16-Dec-2016
1799,Revenue,CAHD,18-25 Year Olds,Supported Living,Lloyds TSB Commercial Finance Limited,2878.4, 16-Dec-2016
1800,Revenue,CAHD,Home Care - Elderly - South,Day Care / Social Activities,Lloyds TSB Commercial Finance Limited,5357.04, 16-Dec-2016
1801,Revenue,CAHD,Home Care - Elderly - South,Other Small Contracts,Lloyds TSB Commercial Finance Limited,6290.59, 16-Dec-2016
1802,Revenue,CAHD,Home Care - Elderly - South,Supported Living,Lloyds TSB Commercial Finance Limited,7987.18, 16-Dec-2016
1803,Revenue,CAHD,Home Care - Elderly - North,Day Care / Social Activities,Lloyds TSB Commercial Finance Limited,212.16, 16-Dec-2016
1804,Revenue,CAHD,Home Care - Elderly - North,Supported Living,Lloyds TSB Commercial Finance Limited,870.74, 16-Dec-2016
1805,Revenue,CAHD,Younger MH non-res purchasing,Other Small Contracts,Lloyds TSB Commercial Finance Limited,10824.98, 16-Dec-2016
1806,Revenue,CAHD,18-25 Year Olds,Supported Living,Lloyds TSB Commercial Finance Limited,2878.4, 29-Dec-2016
1807,Revenue,CAHD,Home Care - Elderly - South,Day Care / Social Activities,Lloyds TSB Commercial Finance Limited,5348.2, 29-Dec-2016
1808,Revenue,CAHD,Home Care - Elderly - South,Other Small Contracts,Lloyds TSB Commercial Finance Limited,6304.42, 29-Dec-2016
1809,Revenue,CAHD,Home Care - Elderly - South,Supported Living,Lloyds TSB Commercial Finance Limited,8253.29, 29-Dec-2016
1810,Revenue,CAHD,Home Care - Elderly - North,Day Care / Social Activities,Lloyds TSB Commercial Finance Limited,212.16, 29-Dec-2016
1811,Revenue,CAHD,Home Care - Elderly - North,Supported Living,Lloyds TSB Commercial Finance Limited,1980.16, 29-Dec-2016
1812,Revenue,CAHD,Younger MH non-res purchasing,Other Small Contracts,Lloyds TSB Commercial Finance Limited,10782.58, 29-Dec-2016
1813,Revenue,CAHD,CSC - Adoption Support Fund,Post Adoption,Lloyds TSB Commercial Finance Limited,1800, 02-Dec-2016
1814,Revenue,CAHD,CSC - Adoption Support Fund,Post Adoption,Lloyds TSB Commercial Finance Limited,1800, 09-Dec-2016
1815,Revenue,CAHD,CSC - Adoption Support Fund,Post Adoption,Lloyds TSB Commercial Finance Limited,550, 23-Dec-2016
1816,Revenue,CAHD,CSC - Vinney Green Secure Unit,"Holidays, Outings & Visits",Lloyds TSB Commercial Finance Limited,2154.18, 29-Dec-2016
1817,Revenue,CAHD,Home Care - Elderly - North,Supported Living,Lloyds TSB Commercial Finance Limited,537.6, 07-Dec-2016
1818,Revenue,CAHD,Home Care - Elderly - South,Supported Living,Lloyds TSB Commercial Finance Limited,770.4, 07-Dec-2016
1819,Revenue,CAHD,South Glos Users in South Glos Homes,Permanent Nursing,Lodge House,625, 20-Dec-2016
1820,Revenue,CAHD,South Glos Users in South Glos Homes,Permanent Nursing,Lodge House,625, 20-Dec-2016
1821,Revenue,CAHD,Bed Purchasing - South,Permanent Nursing,Lodge House,2219.88, 20-Dec-2016
1822,Revenue,CAHD,South Glos Users in South Glos Homes,Permanent Nursing,Lodge House,625, 20-Dec-2016
1823,Revenue,CAHD,South Glos Users in South Glos Homes,Permanent Nursing,Lodge House,625, 20-Dec-2016
1824,Revenue,CAHD,South Glos Users in South Glos Homes,Permanent Nursing,Lodge House,625, 20-Dec-2016
1825,Revenue,CAHD,South Glos Users in South Glos Homes,Permanent Nursing,Lodge House,625, 20-Dec-2016
1826,Revenue,CAHD,Bed Purchasing - South,Permanent Nursing,Lodge House,2709.44, 20-Dec-2016
1827,Revenue,CAHD,South Glos Users in South Glos Homes,Permanent Nursing,Lodge House,625, 20-Dec-2016
1828,Revenue,CAHD,Bed Purchasing - South,Permanent Nursing,Lodge House,2692.68, 20-Dec-2016
1829,Revenue,CAHD,South Glos Users in South Glos Homes,Permanent Nursing,Lodge House,625, 20-Dec-2016
1830,Revenue,CAHD,South Glos Users in South Glos Homes,Permanent Nursing,Lodge House,625, 20-Dec-2016
1831,Revenue,CAHD,Bed Purchasing - South,Permanent Nursing,Lodge House,3252, 20-Dec-2016
